Workbook

Sheet Title Page
O1: =ROW() -> 1
B2: This version of the BTA spreadsheet was posted on . . . | G2: 2019-09-15 | H2: =CONCATENATE(" (",TEXT(G2,"MMMM DD, YYYY)")) -> (September 15, 2019) | K2: =CONCATENATE("Scenario running now: ",Results!$K$27, ".") -> Scenario running now: Fix NYC higher-range plan. | O2: =ROW() -> 2
O3: =ROW() -> 3
K4: Latest version of the BTA is always available on the Web: http://www.nnyn.org/kheelplan/BTA_1.1.xls Requires "genuine" Excel (2007 or later). Will NOT run as Google Doc. | O4: =ROW() -> 4
B5: W e l c o m e t o . . . | E5: © 2007-2019 Nurture New York’s Nature & Charles Komanoff | O5: =ROW() -> 5
O6: =ROW() -> 6
B7: The BTA (Balanced Transportation Analyzer) | O7: =ROW() -> 7
O8: =ROW() -> 8
K9: This version supersedes prior ones. Results may differ from previously published figures due to | O9: =ROW() -> 9
O10: =ROW() -> 10
K11: (i) updated baseline values (e.g., traffic volumes) | O11: =ROW() -> 11
K12: (ii) alterations to algorithms | O12: =ROW() -> 12
K13: (iii) revisions in plans being modeled | O13: =ROW() -> 13
K14: (iv) bug fixes. | O14: =ROW() -> 14
B15: An integrated spreadsheet model to assess traffic improvements, revenue generation and other benefits from reforming road tolls and transit fare policies in New York City | K15: See 'About' tab for more info. | O15: =ROW() -> 15
K16: Click for tutorial: why road pricing is key to curing traffic congestion | O16: =ROW() -> 16
O17: =ROW() -> 17
O18: =ROW() -> 18
B19: Following links go directly to key modeling results | O19: =ROW() -> 19
O20: =ROW() -> 20
B21: • Table of Contents showing the 75 "tabs" (pages) in this spreadsheet with links to instantly access them. | O21: =ROW() -> 21
B22: • Graphic of costs (new tolls, mostly) and benefits (travelers' time savings, enviro, etc.) of toll plan the model is running. | O22: =ROW() -> 22
B23: • Key results predicted for toll plan: traffic speeds, new revenue, time savings, etc. | O23: =ROW() -> 23
B24: • Bar charts showing predicted traffic-pricing revenues and possible uses of them. | O24: =ROW() -> 24
B25: • Pie chart showing traffic-pricing revenues in greater detail ─ how much from cordon toll, yellow cabs, Ubers, etc. | O25: =ROW() -> 25
B26: • To switch to a different toll plan, click here. | O26: =ROW() -> 26
B27: • To modify any of the pre-set toll plans, or the tolls, surcharges, etc. built into them, click here. | O27: =ROW() -> 27
B28: • Pie-chart showing "mode shifts" for CBD trips due to the toll plan. | O28: =ROW() -> 28
B29: • Pie-chart showing how much residents of each borough, county and state will pay under the new tolls. | O29: =ROW() -> 29
O30: =ROW() -> 30
B31: ON THE WEB: The BTA spreadsheet is Web-available via this link: <http://www.nnyn.org/kheelplan/BTA_1.1.xls> We are continually upgrading and updating the BTA. Please access the above link often to ensure you're using a reasonably current version. (Note date stamp at top of every page.) | O31: =ROW() -> 31
O32: =ROW() -> 32
O33: =ROW() -> 33
B34: The Manhattan CBD … is the 8.5-square mile section of Manhattan Island south of 60th Street and the commercial heart of New York City. CBD is short for Central Business District. It is served by four bridges and four tunnels. | O34: =ROW() -> 34
O35: =ROW() -> 35
B36: A "Macro" … is a set of instructions embedded within the spreadsheet that "execute," on command, a particular calculation -- a "program within a program." When you opened the spreadsheet, you should have chosen the "Enable Macros" option. If you did not, please exit and reload the spreadsheet, selecting "Enable." | O36: =ROW() -> 36
O37: =ROW() -> 37
O38: =ROW() -> 38
B39: Try your own toll plan … Go to Policy Levers worksheet ― fifth "tab" in list at bottom, or click link to it (seventh bullet above) ― and follow directions there. See how your toll plan's traffic and revenue results match up with ours! | O39: =ROW() -> 39
O40: =ROW() -> 40
O41: =ROW() -> 41
B42: Note: Excel sometimes defaults to a setting that can't handle the mathematical interactivity built into the BTA. You'll know this is happening if Excel shows an error message about circular values, or if some cells display #NUM values when you open the file). If that occurs, follow these 7 steps: | O42: =ROW() -> 42
O43: =ROW() -> 43
O44: =ROW() -> 44
O45: =ROW() -> 45
B46: 1. Click MS Office or File button at left of top "ribbon." | F46: 2. Click Excel Options at bottom of pop-up window. | O46: =ROW() -> 46
B47: 3. In left-hand column (near top), click Formulas. | F47: 4. In Calculation options section, select Enable iterative calculation check box. | O47: =ROW() -> 47
B48: 5. Set maximum number of iterations to 100. | O48: =ROW() -> 48
B49: 6. Set maximum change box to 0.001. | F49: 7. Press OK at the bottom. | O49: =ROW() -> 49
O50: =ROW() -> 50
B51: To learn more about the BTA, read text below, or click on links below (green boxes) to magazine pieces. Feel free to skip rest of this worksheet (and all of next several) and proceed to Results tab. There you can view traffic and revenue impacts of our various pricing scenarios, as well as your own. | O51: =ROW() -> 51
O52: =ROW() -> 52
O53: =ROW() -> 53
O54: =ROW() -> 54
B55: Unique Features of the Balanced Transportation Analyzer | K55: New York magazine, March 27, 2018 (by Justin Davidson) | O55: =ROW() -> 55
B56: The BTA is the first publicly available software tool capturing the crucial transportation interactivities present in cities with a downtown core, and thus permitting robust evaluation of road and/or transit pricing proposals for such cities. | K56: Why You Should Be in Favor of Congestion Pricing in NY | O56: =ROW() -> 56
K57: "Charles Komanoff’s Balanced Transportation Analyzer sounds like it ought to have gears and smoking test tubes but is actually a downloadable spreadsheet that incorporates dozens of different variables. [Gov. Cuomo's] Fix NYC panel adopted it for their analysis, and it’s a beautiful plaything for a data geek. Want to know how much more slowly cars will be driving through midtown if truck traffic increases by, say, 8 percent in five years? Download the spreadsheet and plug in the numbers." | O57: =ROW() -> 57
B58: Among the interactivities it captures (reflects): | O58: =ROW() -> 58
B59: A. Relationships between the price (fare) to drive, use transit and take FHV's (for-hire vehicles), and usage of those modes. | O59: =ROW() -> 59
B60: B. “Rebound effect” by which reduced auto use is tempered by trip growth from driving's reduced “time cost.” | O60: =ROW() -> 60
B61: C. Mode-shifting between autos and transit, as changes in the price of one lead to changes in use of the other. | O61: =ROW() -> 61
B62: D. Time-of-day shifting for both modes, via algorithms that capture the propensity of drivers and transit users to shift travel times to take advantage of lower tolls or fares. | O62: =ROW() -> 62
O63: =ROW() -> 63
B64: E. Changes in demand for transit service as traffic volumes, service quality and fare collection media change. | O64: =ROW() -> 64
B65: Dual Purpose of the Balanced Transportation Analyzer | O65: =ROW() -> 65
B66: A. The BTA offers transportation planners, agency officials and advocates a transparent and straightforward tool for testing policy proposals for impacts on traffic levels, travel speeds, time spent traveling, agency revenues, emissions and other "externalities," and other key indicators. B. It is specifically tailored to analyize prospective new tolling arrangements such as the Move NY - Sam Schwartz 'Fair Tolling' plan. The "default" settings in the saved version you have downloaded reflect the Move NY plan, but you can also substitute your own tolls, if you wish. See instructions in text area above, "Try Your Own Toll Plan." | K66: Motherboard / Vice, November 2017 (by Aaron Gordon) | O66: =ROW() -> 66
K67: Meet the Spreadsheet That Can Solve NYC Transit (and the Man Who Made It) | O67: =ROW() -> 67
O68: =ROW() -> 68
K69: "In August, Gov. Andrew Cuomo announced his support for congestion pricing, calling it 'an idea whose time has come.' In October, he appointed a panel to study it. And, like an ancient alien buried in the ground waiting for a signal, an energy policy analyst named Charles Komanoff got back to work..." | O69: =ROW() -> 69
O70: =ROW() -> 70
O71: =ROW() -> 71
O72: =ROW() -> 72
B73: For more about BTA origin and sponsorship, and to learn why the State of New York's "Fix NYC" task force employed the BTA in 2017-18 as its primary analytical tool, see text box directly below or click: | O73: =ROW() -> 73
O74: =ROW() -> 74
B75: More About BTA | K75: Traffic Technology Int'l, January 2013 (by Max Glaskin) | O75: =ROW() -> 75
K76: Transport economist Charles Komanoff is determined to solve New York City's traffic problems — and mathematical models are his congestion-busting tools. | O76: =ROW() -> 76
B77: Gov. Cuomo's "Fix NYC Advisory Panel Report" used the BTA as its primary quantitative tool. Here the panel says why: | O77: =ROW() -> 77
B78: The traffic and revenue estimates of various tolling strategies were performed using the Balanced Transportation Analyzer, or BTA. This spreadsheet model, developed by Charles Komanoff, provides a framework for assessing the extent to which zone pricing can both generate revenue and improve traffic conditions in the Central Business District (CBD). The BTA was chosen as the tool for this study because it offers four key advantages in supporting the zone pricing analysis: | O78: =ROW() -> 78
O79: =ROW() -> 79
K80: Wired magazine, June 2010 (by Felix Salmon) | O80: =ROW() -> 80
K81: The Man Who Could Unsnarl Manhattan Traffic | O81: =ROW() -> 81
B82: ▪ As a spreadsheet model, it can rapidly evaluate and compare multiple tolling strategies. | K82: Financial blogger Felix Salmon traces the intersection of Ted Kheel's and Charles Komanoff's lifelong transit advocacy and elucidates the ethical and pragmatic basis of congestion pricing: the social delay costs caused by each additional car trip into the Manhattan CBD. | O82: =ROW() -> 82
B83: ▪ The model draws from a broad array of well-documented sources of traffic and transportation data. | O83: =ROW() -> 83
B84: ▪ It is transparent. The underlying data is clearly identified and the assumptions governing the use of this data are highlighted. | O84: =ROW() -> 84
B85: ▪ It yields the outputs that are most relevant to our analysis—namely, increase in revenue, improvement in average vehicular speed, and reduction in congestion. | O85: =ROW() -> 85
O86: =ROW() -> 86
E119: NONE
B203: 2017 Projected Farebox Revenue (November 2017 forecast) | F203: 730069000 | H203: 736985000
B204: Source: MTA 2018 Budget and 2018-2021 Financial Plan Adoption Materials, Pages 39 (LIRR) & 52 (M-North) of 124. Available at http://web.mta.info/mta/budget/pdf/MTA_2018_Budget_2018-2021_Financial_Plan_Adoption_Materials.pdf.

Sheet Table of Contents
B1: Table of Contents | D1: ='Title Page'!G2 -> 2019-09-15
D2: =CONCATENATE("Scenario now being run: ",Results!$K$27, ".") -> Scenario now being run: Fix NYC higher-range plan.
B3: The BTA has 75 worksheet "tabs," or "pages." Clicking on any linked tab takes you to that page.
B5: We've grouped and color-coded them to lend a thematic sense and reveal the spreadsheet's underlying structure.
B7: Section | C7: Linked tab or page | D7: Description
B8: Front Matter | C8: Title Page | D8: Summarizes nature and purpose of the spreadsheet. Includes links to particularly interesting and/or important tabs and graphics.
C9: Table of Contents | D9: (this page)
C10: About | D10: BTA origins, sponsorship, features, acknowledgments, contact info.
B11: Key Outputs & Inputs | C11: Results | D11: Shows projected impacts of modeled pricing plan on traffic speeds, transit use, agency revenues, time lost in traffic, and other key economic and quality of life indicators.
C12: Policy Levers | D12: Lists the 95 (count 'em) key parameters built into our pre-loaded congestion pricing scenarios (which users may vary to test own scenarios).
B13: Economic Outputs | C13: Cost-Benefit | D13: Reports monetized values of changes in traffic, travel and revenues resulting from the congestion-pricing plan the model is running. Net result is best single indicator of plan "value."
C14: Revenues | D14: Calculates and displays agency revenues associated with policies being modeled.
C15: Incidence | D15: Estimates toll-plan incidence by county; demonstrates graphically the impact of taxi/FHV surcharges on Manhattan's toll burden vis-à-vis boroughs and suburbs.
C16: Taxes Instead | D16: Estimates increases in sales taxes, fuel taxes or other real or quixotic tax measures that would be needed to collect the same net revenue as traffic-pricing.
B17: Traffic Pricing 101 | C17: Why | D17: Tutorial explaining logical underpinnings of congestion pricing: without it, drivers' trip-making decision-making can ignore delay costs caused by each trip.
C18: Flowchart | D18: Outlines key relationships among car/truck, taxi, subway and bus use that effectively define the BTA.
C19: Assumptions | D19: Catalogues several hundred key assumptions that drive the BTA, including elasticities, baseline costs to drive into the CBD, value of an hour of saved time, and more.
C20: Traffic Pricing Plans | D20: Summarizes some of the traffic-transit policy proposals developed using the BTA, including the current Move NY Plan, earlier Move NY plans, and Kheel-Komanoff precursors.
C21: BdB's Plan | D21: Quantifies potential time savings and resulting societal benefits from Mayor de Blasio's new traffic-control measures announced in Oct. 2017.
B22: Travel | C22: CBD Congestion | D22: Quantifies factors ― advent of app-based FHV's (Uber), installation of bicycle lanes, cheaper gasoline ― that could (and largely do) account for slowdown in CBD traffic speeds.
C23: Stuck in Traffic | D23: Estimates change due to ongestion pricing in minutes & seconds that a vehicle user (car or van driver, FHV passenger, bus rider) will be stationary or barely moving in CBD traffic.
C24: MTA Crossings | D24: Calculates baseline revenues from MTA bridges and tunnels; estimates changes from cordon tolling and possible discounting of tolls on MTA bridges.
C25: Canal St. | D25: Assesses two complementary policies to reduce Lower Manhattan traffic congestion: congestion pricing and restoring two-way tolling on the Verrazano-Narrows Bridge
C26: Travel | D26: Estimates changes in number of persons expected to enter the CBD in cars, taxis, subways and buses.
C27: Distances | D27: Calculates mean driving distance for auto commuters to edge of Manhattan CBD. Also estimates mean distance between pairs of random points w/i the CBD.
C28: Approaches | D28: Estimates share of traffic on approach roads to CBD accounted for by cars and trucks that enter CBD and pay toll. Figures in traffic modeling in Motor Vs worksheets.
B29: Toll Crunching: How tolls thin traffic volumes | C29: MV Condensed | D29: Abridged version of 'Motor Vs' worksheet tab, included as a tutorial to help BTA users vet the model's traffic-level inputs and its toll-revenue outputs.
C30: Data Flow | D30: Explicates key data inputs and processing in Motor Vs worksheet.
C31: Motor Vs | D31: Calculates changes in motor vehicle traffic within and outside CBD as result of congestion tolls, new transit fares and related policies, and estimates resulting toll revenue.
C32: Motor Vs Weekends | D32: Duplicates Motor Vs worksheet, for weekends (Saturdays, Sundays, Holidays).
C33: Trucks | D33: Estimates mix of truck types that currently enter the CBD and calculates average ratio of truck-car tolls from axle-based truck toll schedule.
B34: For-Hire Vehicles | C34: Taxis | D34: Estimates impacts of cordon toll and possible taxi surcharges on use of yellow cabs, and feeds those results back to other BTA worksheets.
C35: Taxi Farecalcs | D35: Calculates before & after fares for a range of taxi trips in order to provide a more representative sample of fare impacts beyond the central-point example in the Taxis worksheet.
C36: UberLyft | D36: (Still in formation) Critical parameters to enable the BTA to model impacts of cordon tolls and FHV surcharges on app-based ride services such as Uber and Lyft.
B37: Transit | C37: Transit | D37: Estimates improvements in transit travel times from increased transit investment.
C38: Subways | D38: Calculates effects of any hour-by-hour "regime" of subway fares chosen by user; with over 400 rows and 40 columns, is BTA's transit workhorse.
C39: CBTC | D39: Compiles costs of past and future implementation of modern subway signaling; estimates increases in train capacity and reductions in trip durations
C40: Subway v. Bus | D40: Develops algorithm for assigning new transit trips between subway and bus modes.
C41: Buses | D41: Estimates impact of new pricing on bus service; also compiles number of buses and their passengers entering the CBD on weekdays.
C42: Bus Routes | D42: Apportions annual ridership on NYC Transit buses among the five boroughs.
C43: Bus Boarding | D43: Estimates time savings from fare-free boarding.
C44: Fare Collection | D44: Estimates monetary savings from eliminating fares on NYC buses and subways.
C45: Bicycles | D45: (in formation) Will calculate mortality changes, street-space and delay costs, mode shifts, and traffic impacts of increased provision for bicycles.
B46: 24-7 | C46: Weekday Hours | D46: Estimates baseline 24-hour weekday divisions of CBD traffic and chooses hourly cordon tolls (user may vary). These specs go into traffic model in Motor Vs worksheet.
C47: Weekend Hours | D47: Estimates baseline 24-hour weekend divisions of CBD traffic and chooses hourly cordon tolls (user may vary). These specs go into traffic model in Motor Vs Weekends worksheet.
C48: Weekends | D48: Compiles hour-by-hour weekend traffic levels as percentages of weekday levels.
C49: Travel-Time Switching | D49: This text-only worksheet explains algorithms in Motor V's and Subways that estimate number of trips that will switch travel time in response to time-of-day tolling and subway fares.
B50: Delays | C50: Delays | D50: Estimates aggregate hours and minutes of vehicle-delay caused per each additional trip into the CBD.
C51: Delays Weekends | D51: Does same as Delays, for weekend vehicle travel.
B52: Tech Details | C52: Speed-Vol., Cordon | D52: Presents mathematical relationships used in Motor Vs worksheet to translate changes in CBD traffic volumes due to tolling, into changes in traffic speeds within the CBD.
C53: Speed-Vol., non-Cordon | D53: Presents mathematical relationships used in Motor Vs worksheet to translate changes in non-CBD traffic volumes due to tolling, into changes in traffic speeds outside CBD.
C54: VMT | D54: Calculates and aggregates citywide reductions in vehicle miles traveled from new tolls and fares.
C55: Elasticities | D55: Compiles estimates of transit and motor vehicle "time" and "price" elasticities (i.e., measures of sensitivity of travel demand to travel times and prices) used in the model.
C56: Gini | D56: Calculates extent to which pricing smoothes hour-by-hour profile of subway use. (Named for economist Corrado Gini whose eponymous coefficient measures income inequality.)
C57: Cordon | D57: Estimates costs to build, operate and administer the cordon charging system. Also estimates lane-miles and public space "created" by reducing VMT within the CBD.
B58: Key Externalities | C58: Crashes | D58: Subdivides NYC crash data into geographical districts, and applies projected reductions in VMT for each to project reductions in fatalities and injuries.
C59: Emissions | D59: Calculates changes in emissions of CO2, Total Organic Gases, Carbon Monoxide, Nitrogen Oxides, and PM10 that are projected to result from toll and fare changes.
C60: Air Pollution | D60: Calculates health-damage costs from the changes in emissions estimated in the preceding worksheet.
C61: EMFAC | D61: Displays outputs of EMFAC (Emission Factors model developed by the California Air Resources Board for a range of vehicle speeds and vehicle types.
C62: Speed-CO2 | D62: Calculates average CO2 emission rates as function of vehicle speed, based on empirical observations taken on freeways in California for range of traffic conditions.
B63: Parking | C63: Parking | D63: Estimates baseline %'s of paid vs. free parking within CBD, for input into Motor Vs. Also estimates revenue gain from eliminating Manhattan residents' monthly-parking tax break.
C64: Parking Placards | D64: Estimates VMT and speed impacts of NYC's May 2017 decision to issue 50,000 new free-parking placards to teachers and other school staff.
C65: Park-and-Ride | D65: Estimates extent to which drivers might be likely to park outside CBD and complete their journey by subway, to avoid congestion toll.
B66: Who Wins? | C66: Breakeven | D66: Compares time savings vs. toll payment for an individual commute trip into the CBD.
C67: Winners-Losers | D67: Estimates number of persons and/or trips that will be positively and/or negatively affected by the changes in travel prices and speeds under the plan chosen.
B68: Data | C68: Hub-Bound | D68: Compiles data on motor vehicle entries into CBD on typical weekday, for use in Motor Vs and Traffic worksheets.
C69: Trip Price | D69: Calculates impact of cordon tolling on out-of-pocket cost for an average East River vehicle trip, and estimates resultant decrease in driving.
C70: H.I.S. | D70: (Household Interview Survey) Compiles data from NYMTC 1997-98 Household Interview Survey that informs some parameter estimates used in the model.
C71: Bridges | D71: Estimates before-and-after crossings at individual bridges and tunnels. Compiles other bridge/tunnel data used in other worksheets.
C72: Population & Employment | D72: Derives compound growth rates suitable for bringing 2004 travel data to 2007 baseline (not used currently).
C73: 40 Years On | D73: Makes 40-year revenue projections for congestion pricing plan selected in Results worksheet.
C74: Toll Rates | D74: Estimates effective toll rate for passenger car crossings each year. Also compiles annual employment data for Manhattan, for us in Regression worksheet.
B75: Valuation | C75: Value of Time | D75: Derives our estimate of value of vehicle-hours saved in traffic through our proposed policies.
C76: Constants | D76: Compiles several parameters that are used in more than one worksheet.
B77: Special Cases | C77: FreshDirect | D77: Calculates delays to other road users due to use of highway, curb and street space by FreshDirect trucks delivering groceries to customers from its Long Island City depot.
C78: FreshDirect Bronx | D78: Calculates prospective delays to other road users due to use of highway, curb and street space by FreshDirect trucks delivering groceries from its proposed Harlem River Yards depot.
C79: Horses | D79: Logistics of NYC's horse-drawn carriage industry, and parameters for estimating its impact on CBD traffic.
B80: Outtakes | C80: New Ideas | D80: Policy/analytical exercises of possible interest that could be modeled with the BTA
C81: Regressions | D81: Displays results of earlier linear regression analysis by Komanoff that estimated price-elasticity of auto across East River.
C82: BTA 1.0 | D82: Summarizes this spreadsheet's predecessor: Version 1.0 of the Balanced Transportation Analyzer.

Sheet About
B1: About | J1: ='Title Page'!G2 -> 2019-09-15
J2: =CONCATENATE("Scenario now being run: ",Results!$K$27, ".") -> Scenario now being run: Fix NYC higher-range plan.
B5: A. How Current Is This Version of the BTA? | F5: Data now publicly available | G5: Data in this version of the model | H5: We do our best to stay up to date w/ available data. Latest changes: we've inputted 1H 2018 taxi and "UberLyft" volumes; also, NYMTC's 2017 'Hub-Bound' volumes, even though that report isn't yet available to the public. | M5: Shown below: Fix NYC report cover, and complete Appendix outlining how and why the consultant team hired by New York State employed the BTA as its primary quantitative and analytical tool.
B7: Input Parameters
B8: NYC bridge and tunnel tolls | F8: 2019 | G8: 2019
B9: NYC bridge and tunnel toll volumes | F9: 2017 | G9: 2017
B10: Inbound and Outbound CBD volumes | F10: 2017 | G10: 2017
B11: CBD average travel speeds | F11: 2016 | G11: 2016
B12: NYC subway and bus ridership | F12: 2017 | G12: 2017
B13: Taxi and "TNC" volumes (Transpo Network Companies) | F13: 2018 | G13: 2018
B15: B. Sponsorship of the Balanced Transportation Analyzer
B16: Development of the BTA began in Sept. 2007 and continues today, under the auspices of The Nurture Nature Foundation (NNF), a non-profit founded by Theodore (Ted) Kheel (May 9, 1914 - Nov. 12, 2010).
B19: to learn about Ted's illustrious career → | F19: http://bit.ly/z3pjUx
B20: to learn about the Nurture Nature Foundation → | F20: http://www.nnyn.org
B21: for Charles Komanoff's eulogy to Ted → | F21: http://bit.ly/cWuexa
B22: Lead developer of the BTA is Charles Komanoff → | F22: for information about Komanoff
B24: C. A prior version of the Balanced Transportation Analyzer (BTA 1.0) …
B25: supported NNYN's Jan. 2008 report, "Balancing Free Transit and Congestion Pricing in New York City":
B26: https://cdn.shopify.com/s/files/1/0703/6475/files/Full_Kheel_Report_for_web___23_Jan_2008.pdf?343272605369992348
B27: Version 1.0 is superseded by this Version 1.1. The last worksheet tab of this spreadsheet has instructions to access BTA 1.0.
B29: D. BTA 1.1 improves upon Version 1.0 with these features:
B30: (i) time-of-day cordon pricing -- seven different weekday time periods and tolls (six on weekends) replace the confining one-price-fits-all assumption in BTA 1.0;
B32: (ii) time-of-day subway fares -- a possible means to improve capacity utilization and avoid worsened crowding from congestion pricing's conversion of some auto trips to transit trips;
B34: (iii) explicit treatment of weekends/holidays for autos, transit and taxis;
B35: (iv) explicit modeling of intra-CBD travel;
B36: (v) improved modeling of speed-volume relationships (which translate reduced vehicle volumes to improvements in motor vehicle speeds);
B38: (vi) ability to adjust baseline traffic volumes to reflect possible deviations from pre-toll traffic levels, including possible return to pre-recession levels;
B40: (vii) full specification of medallion taxicabs as an autonomous travel mode alongside autos and transit;
B41: (viii) full specification of Ubers (and Lyfts, etc.) as an autonomous travel mode alongside medallion taxis;
B42: (ix) separate "levers" to vary the three elements of medallion taxi and Uber fares: "drop," per-mile charge, and wait-time charge for crawling along in congested traffic;
B44: (x) an additional lever to charge Ubers for "trawling" (the time they spend in taxi zone waiting to be pinged)
B45: (xi) separate "levers" to vary truck tolls according to the number of axles.
B46: (xi) feedback of traffic impacts into mode choice which then further affects traffic impacts;
B47: (xiii) estimation of changes in the number of people (as opposed to vehicles) entering the CBD;
B48: (xiv) approximation of a relationship between increased capital investment in transit and reduced transit trip times, allowing dedication of toll revenues to transit investment to be translated into increased transit use and revenue;
B51: (xv) specification of relationship between toll increases and car occupancies (carpooling);
B52: (xvi) ability to model a policy option that waives toll on each vehicle's first E-ZPass paid toll for CBD bound trips, that month;
B54: (xvii) ability to test whether park-and-ride commuters will flood gateway neighborhoods to the CBD.
B56: E. Acknowledgments
B57: Much of the mathematics, programming, trouble-shooting and debugging of the BTA was performed by physicist Deena M. Patel, PhD, and computer scientist Will Fisher. Many key elements, including emissions calculations, delay estimation, and speed-volume relationships, are their handiwork. Urban planner Josef Szende quantified means-tested tolling impacts and costs and played a big part in analyzing transit upgrades. Other major contributions were made by transportation planner Ed Pike, mathematician Howard Shaw, PhD and programmer Michael J. Smith. Spreadsheet architect Charles Komanoff also gratefully acknowledges the intellectual contributions of Michael Brown, George Haikalis, Brodie Hefner, David Jordan, Reuben Juster, Brian Ketcham, Carolyn Konheim, Gary Roth, Sam Schwartz, Prof. Ken Small, PhD, Jane Kheel Stanley, Vince Taylor, PhD, and Jeff Zupan.
B67: F. Articles/Stories about the BTA
B68: =CONCATENATE("See lime-green text boxes in 'Title Page' tab, starting at Row ",'Title Page'!O55, ", for links to stories about the BTA in 'New York' magazine (2018), 'Vice/Motherboard' (2017), 'Traffic Technology International' (2013) and 'Wired' (2010). They're informative and entertaining!") -> See lime-green text boxes in 'Title Page' tab, starting at Row 55, for links to stories about the BTA in 'New York' magazine (2018), 'Vice/Motherboard' (2017), 'Traffic Technology International' (2013) and 'Wired' (2010). They're informative and entertaining!
B71: G. Contact Info
B72: Please direct suggestions, comments & questions to Charles Komanoff <komanoff@gmail.com>.

Sheet Results
B1: Results | K1: ='Title Page'!G2 -> 2019-09-15 | N1: =ROW() -> 1
G2: 2019-06-24 | K2: =CONCATENATE("Scenario now being run: ",Results!$K$27, ".") -> Scenario now being run: Fix NYC higher-range plan. | N2: =ROW() -> 2
N3: =ROW() -> 3
B4: Hello! You've come to the right place. This tab shows topline results (e.g., revenue generation, traffic flow improvements) from the toll scenario the model is running. | G4: Internal links to key results (within this worksheet tab) | K4: External links to key results (outside this tab) | N4: =ROW() -> 4
G5: 1. Key impacts, and menu to choose among our six pre-set plans | K5: 1. Incidence (Who Pays?) | N5: =ROW() -> 5
G6: 2. Revenues and expenditures | K6: 2. Tax Alternatives (rises in taxes, in lieu of toll plan) | N6: =ROW() -> 6
G7: 3. Revenues and Expenditures Graphs | K7: 3. Net societal costs and benefits of toll plan | N7: =ROW() -> 7
N8: =ROW() -> 8
B9: K e y R e s u l t s A p p e a r i n B o x e s B e l o w. P l a n S e l e c t e d i s N a m e d a t R I g h t: | J9: =K27 -> Fix NYC higher-range plan | M9: =CONCATENATE("Blue box at Cell B",N17, " explains how to turn switch on/off.") -> Blue box at Cell B17 explains how to turn switch on/off. | N9: =ROW() -> 9
B10: Predicted results are sensitive to whether a "switch" in the model crediting toll-revenue investments with improved subway service is ON or OFF. Cell at right shows status of switch: | L10: =CONCATENATE("Switch is ",IF('Policy Levers'!K191 = "YES","ON","OFF")) -> Switch is ON | N10: =ROW() -> 10
B11: Average change in CBD vehicle speeds weekdays 6am-6pm | E11: Annual net revenue available to improve travel | H11: Manhattan residents' share of new tolls + surcharges | J11: Predicted annual net benefit | L11: Daily traveler time savings (hours) | N11: =ROW() -> 11
M12: Always hit F9 (recalc) key several times after changing scenarios or inputs, so spreadsheet can iterate & reach equilibrium. Also: See 'About' tab for 'currency' of data in model. | N12: =ROW() -> 12
N13: =ROW() -> 13
B14: =H119 -> 0.2070877991 | E14: =ROUND(K69,-1)*1000000 -> 1910000000 | H14: =Incidence!I426 -> 0.3245953126 | J14: =ROUND('Cost-Benefit'!K88*1000000,-7) -> 3840000000 | L14: =ROUND(S122*1000000/Constants!J7,-3) -> 507000 | N14: =ROW() -> 14
N15: =ROW() -> 15
B16: =CONCATENATE("(From Cell H",N119,")") -> (From Cell H119) | E16: =CONCATENATE("(From Cell K",N69, ")") -> (From Cell K69) | H16: =CONCATENATE("(From 'Incidence' tab, Cell I",Incidence!AA426, ")") -> (From 'Incidence' tab, Cell I426) | J16: =CONCATENATE("(From 'Cost-Benefit' tab, Cell K",'Cost-Benefit'!O88, ")") -> (From 'Cost-Benefit' tab, Cell K88) | L16: =CONCATENATE("from Cell S",N122,"") -> from Cell S122 | N16: =ROW() -> 16
B17: =IF('Policy Levers'!K191="YES",CONCATENATE("Speed improvement above is some years in future, after transit investments have borne fruit. To see *immediate* CBD speed gain, without the fruits of transit investment, follow instruxns in Cell E",'Policy Levers'!O192, " of 'Policy Levers' (tab directly following this one)."),CONCATENATE("Speed improvement above is immediate, i.e., not taking credit for transit investments. To see *longer-term* CBD speed gain, reflecting fruits of transit investment, follow instruxns in Cell E",'Policy Levers'!O192," of 'Policy Levers' (the tab directly following this one) .")) -> Speed improvement above is some years in future, after transit investments have borne fruit. To see *immediate* CBD speed gain, without the fruits of transit investment, follow instruxns in Cell E192 of 'Policy Levers' (tab directly following this one). | E17: Above figure encompasses all "new" toll and surcharge revenues from plan running in the model, less its administrative costs. | H17: Other 4 boroughs: | I17: =H164-H166 -> 0.3751577427 | J17: Figure above is best single "index of merit" for plan being run in model. Includes traveler time savings, enviro benefits, etc., less new tolls and other costs. | L17: Figure reflects 365 days. Weekday-only average is greater. | N17: =ROW() -> 17
N18: =ROW() -> 18
H19: 7 MTA subur-ban counties: | I19: =H172 -> 0.1640295329 | N19: =ROW() -> 19
N20: =ROW() -> 20
H21: NJ, CT, other: | I21: =H173+H174 -> 0.1362174118 | N21: =ROW() -> 21
B22: Predicted net income (net revenue less allocations): | D22: =CONCATENATE("(Figure below is from Cell L",N79, ")") -> (Figure below is from Cell L79) | F22: Plan must be designed so figure at left is small or zero. Negative means plan is spending $ it isn't raising. Large means plan is sitting on revenue. | I22: =CONCATENATE("Click on Cell K",N27," for pull-down menu letting you select among six plans shown. Baseline plan (#1) is pre-set to represent conditions w/o congestion charges.") -> Click on Cell K27 for pull-down menu letting you select among six plans shown. Baseline plan (#1) is pre-set to represent conditions w/o congestion charges. | N22: =ROW() -> 22
D23: =CONCATENATE("$",(ROUND(L79,-1))," million / yr") -> $830 million / yr | N23: =ROW() -> 23
N24: =ROW() -> 24
B25: =CONCATENATE("Click on cell K",N27," for pull-down menu to choose among the six plans shown at right. To create your own plan, change the settings in 'Policy Levers' worksheet (the tab immediately following this one).") -> Click on cell K27 for pull-down menu to choose among the six plans shown at right. To create your own plan, change the settings in 'Policy Levers' worksheet (the tab immediately following this one). | E25: Choose among plans. To test your own, select #1 (Baseline), then edit in 'Policy Levers' tab. | K25: Plan below is running now. | L25: Click anywhere on black cell at left. A small triangle should appear. Click it, and a "drop-down menu" will appear. Use it to select among Plans 1-6. | N25: =ROW() -> 25
E26: 1 | F26: 2 | G26: 3 | H26: 4 | I26: 5 | J26: 6 | N26: =ROW() -> 26
E27: Baseline | F27: Fix NYC lower-range plan | G27: Fix NYC higher-range plan | H27: Fix NYC turbo-charged | I27: Move NY Plan (Flat Toll) | J27: Move NY Plan w Variable Tolls | K27: Fix NYC higher-range plan | N27: =ROW() -> 27
N28: =ROW() -> 28
N29: =ROW() -> 29
N30: =ROW() -> 30
N31: =ROW() -> 31
B32: 1. Revenues and Expenditures | N32: =ROW() -> 32
K33: Revenue (income) | L33: Expenditures (outflow) | N33: =ROW() -> 33 | P33: Worksheet in which $$ calc'd
B34: Inflow and Outflow Summary (all $$ are annual) | N34: =ROW() -> 34
N35: =ROW() -> 35
B36: Inflows | E36: Description | K36: Figures are in millions of dollars, are rounded and are annual | N36: =ROW() -> 36
B37: CBD Toll | N37: =ROW() -> 37
B38: New CBD Toll Revenue | E38: Gross change in revenue from tolling motor vehicle trips into and out of Manhattan Central Business District. | K38: =ROUND(Revenues!K56,-1) -> 940 | N38: =ROW() -> 38 | P38: Results
B39: CBD Toll Administration Costs | E39: Toll collection operating costs + annualized capital cost. | K39: =-0.5*ROUND(2*Cordon!O253/1000000,-1) -> -115 | N39: =ROW() -> 39 | P39: Cordon
B40: CBD Toll Revenue, Net of Admin Costs | E40: =CONCATENATE("Sum of figures in Rows ",N38, "-",N39, ".") -> Sum of figures in Rows 38-39. | K40: =K38+K39 -> 825 | N40: =ROW() -> 40 | P40: Results
B41: MTA (TBTA) bridges discounts (if applicable) | N41: =ROW() -> 41
B42: MTA gross revenue impact from bridges discounts | E42: MTA loss from discounting "outer-borough" (e.g., Verrazano, Throgs, Whitestone, Triboro, 3 others) tolls. | K42: =0.5*ROUND(2*'MTA Crossings'!R279,-1) -> 0 | M42: =CONCATENATE("IF stmnt makes cell zero unless toll on Whitestone (a 'representative' TBTA bridge) has been reduced by at least $1, as shown in Policy Levers tab, cell K",'Policy Levers'!O108, ".") -> IF stmnt makes cell zero unless toll on Whitestone (a 'representative' TBTA bridge) has been reduced by at least $1, as shown in Policy Levers tab, cell K108. | N42: =ROW() -> 42 | P42: MTA Crossings
B43: MTA windfall from bridges discounts | E43: Potential MTA gain from increased volume if discount "outer-borough" tolls. | K43: =IF('Policy Levers'!K108<-0.1,0.5*ROUND(2*'MTA Crossings'!Q315/1000000,-1),0) -> 0 | N43: =ROW() -> 43 | P43: MTA Crossings
B44: MTA net revenue impact from bridges discounts | E44: =CONCATENATE("Sum of Rows ",N42, " and ",N43, ".") -> Sum of Rows 42 and 43. | K44: =K42+K43 -> 0 | N44: =ROW() -> 44
B45: Yellow Taxi Surcharges | N45: =ROW() -> 45
B46: New Surcharge(s) on Medallion Taxis | E46: Revenue from "new" taxi surcharge (if any). | K46: =0.5*ROUND(2*Revenues!K69,-1) -> 385 | N46: =ROW() -> 46 | P46: Revenues
B47: Change in "Ravitch" Taxi Surcharge | E47: Change (if any) in revenue from "Ravitch" surcharge. | K47: =0.5*ROUND(2*Revenues!J88,-1) -> 0 | N47: =ROW() -> 47 | P47: Revenues
B48: Portion Set Aside for Cab Drivers' Health Fund | E48: Assigning a fixed % of the revenues to drivers and/or owners may help win their acceptance. | L48: =0.5*ROUND(2*'Policy Levers'!K151*Results!K46,-1) -> 0 | N48: =ROW() -> 48
B49: Surcharges on "UberLyft" (App-based FHVs) | K49: =0.5*ROUND(2*Revenues!O69,-1) -> 390 | N49: =ROW() -> 49
B50: NYC Transit Windfalls | N50: =ROW() -> 50
B51: Subway Farebox Windfall | E51: Revenue gain from plan measures that lead to increased ridership on NYC Transit subways. | K51: =0.5*(ROUND(2*Revenues!G126*'Policy Levers'!$K$188,-1)) -> 300 | N51: =ROW() -> 51 | P51: Revenues
B52: Bus Farebox Windfall | E52: Revenue gain from plan measures that lead to increased ridership on NYC Transit buses. | K52: =0.5*(ROUND(2*Revenues!J126*'Policy Levers'!$K$188,-1)) -> 10 | N52: =ROW() -> 52 | P52: Revenues
B53: Fare Administration Savings | E53: Reflects any savings from eliminating or reducing fare collection machinery. | K53: =0.5*ROUND(2*'Fare Collection'!K140/1000000,-1) -> 0 | N53: =ROW() -> 53 | P53: Fare Collection
B54: Total NYC Transit Windfall + Savings | E54: =CONCATENATE("Sum of figures in Rows ",N51, "-",N53, ".") -> Sum of figures in Rows 51-53. | K54: =SUM(K51:K53) -> 310 | N54: =ROW() -> 54
B55: NYC Transit Fare Adjustments | N55: =ROW() -> 55
B56: $1.00 NYC Bus Fares (in "subway deserts") | E56: Revenue loss if selected plan offers $1.00 fare for buses serving residents > 1/3-mile from subway | L56: =IF('Policy Levers'!K255="YES",Buses!J331,0) -> 0 | N56: =ROW() -> 56 | P56: Buses
B57: Other Bus Fare Discounts | E57: Revenue loss if selected plan discounts some bus fares (other than via directly preceding element) | L57: 0 | M57: These cells are zero'd out, pending possible (unlikely) discount offer. | N57: =ROW() -> 57 | P57: Revenues
B58: Subway Fare Discounts | E58: Revenue loss if selected plan discounts some subway fares | L58: 0 | N58: =ROW() -> 58 | P58: Revenues
B59: Total NYC Transit Fare Adjustments | E59: =CONCATENATE("Sum of figures in Rows ",N56, "-",N58, ".") -> Sum of figures in Rows 56-58. | L59: =SUM(L56:L58) -> 0 | N59: =ROW() -> 59
B60: Other Transit Fare Adjustments | M60: All figures are in millions of dollars and are annual (recurring). We've rounded them to the nearest $5 million, for easier compre-hension. | N60: =ROW() -> 60
B61: Commuter Rail Farebox: Blanket Discounts | E61: Revenue loss if selected plan discounts all Metro-North and LIRR Commuter Rail Road fares | L61: =0.5*ROUND(2*Revenues!J247/1000000,-1) -> 0 | N61: =ROW() -> 61 | P61: Revenues
B62: Commuter Rail Farebox: Intra-City Trip Discounts | E62: Revenue loss if selected plan expands/extends "City Ticket" discounts on M-N and LIRR intra-city rides | L62: =0.5*ROUND(2*Revenues!M386/1000000,-1) -> 0 | N62: =ROW() -> 62 | P62: Revenues
B63: Express Bus Farebox: Blanket Discounts | E63: Revenue loss if selected plan reduces fares on MTA Express Buses | L63: =0.5*ROUND(2*Revenues!I226/1000000,-1) -> 20 | N63: =ROW() -> 63 | P63: Revenues
B64: Total Other Transit Fare Adjustments | E64: =CONCATENATE("Sum of figures in Rows ",N61, "-",N63, ".") -> Sum of figures in Rows 61-63. | L64: =SUM(L61:L63) -> 20 | N64: =ROW() -> 64
B65: Revenue Adjustments and Allocations | N65: =ROW() -> 65
B66: Tax $ from zeroing Manhattanites' parking break | E66: Sales tax gain from eliminating surtax exemption granted to qualifying Manhattan monthly parkers | K66: =0.5*ROUND(2*Parking!I484/1000000,-1)*IF('Policy Levers'!K119="YES",1,0) -> 0 | N66: =ROW() -> 66 | P66: Parking
B67: Payment to PANYNJ to Offset Reduced Tolls | E67: If NYC and/or MTA compensate PA for lost revenue due to lesser use of GWB or other crossings. | L67: =IF('Policy Levers'!K92="YES",-0.5*ROUND(2*Revenues!P184/1000000,-1),0) -> 0 | N67: =ROW() -> 67 | P67: Revenues
B68: CBD Toll Revenue Appropriated by NYC (if any) | E68: =CONCATENATE("Product of (i) Row ",N40, ", (ii) Cell I",Approaches!O226, " in 'Approaches' tab, and (iii) Cell K",'Policy Levers'!O101, " in 'Policy Levers' tab.") -> Product of (i) Row 40, (ii) Cell I226 in 'Approaches' tab, and (iii) Cell K101 in 'Policy Levers' tab. | L68: =0.5*ROUND(2*'Policy Levers'!K101*Approaches!I226*K40,-1) -> 0 | N68: =ROW() -> 68 | P68: Results&Approach.
B69: Total Net Income (Revenue) | H69: Cell at right is sum of yellow-colored cells in Col. I, less yellow-colored cells in Col. J. | K69: =ROUND(K40+K44+K46+K47+K49+K54+K66-L67-L68,-1) -> 1910 | N69: =ROW() -> 69
N70: =ROW() -> 70
B71: Outflows | N71: =ROW() -> 71
B72: Spending and Allocations | N72: =ROW() -> 72
B73: Revenues Invested in System Improvements (Capital) | E73: Portion of annual revenue stream dedicated to transit capital plan. | L73: ='Policy Levers'!K198*IF('Policy Levers'!K191="YES",1,0) -> 1000 | N73: =ROW() -> 73
B74: Revenues Spent on Service Enhancements (Operating) | E74: Portion of annual revenue stream spent on expanding transit service w/o capital investment. | L74: ='Policy Levers'!K201 -> 60 | N74: =ROW() -> 74
B75: Revenues Spent on Roads and Bridges | E75: Portion of annual revenue stream spent on maintaining and improving NY-area roads and bridges. | L75: ='Policy Levers'!K205 -> 1e-05 | N75: =ROW() -> 75
B76: Revenues Spent on Fare Support (discounts) | E76: Portion of annual revenue stream spent on discounts to certain fares. | L76: =L59+L64 -> 20 | N76: =ROW() -> 76
B77: Total Spending and Allocations | K77: Cell at right is sum of light blue-colored cells in Col. J. | L77: =L48+SUM(L73:L76) -> 1080.00001 | N77: =ROW() -> 77
N78: =ROW() -> 78
B79: Net Income (Revenues Less Expenditures) | K79: In case of deficit (indicated by red), user must reduce road and/or transit expenditures, in "Policy Levers" tab. | L79: =K69-L77 -> 829.99999 | N79: =ROW() -> 79
N80: =ROW() -> 80
B81: 2. Revenues and Expenditures Graphs | N81: =ROW() -> 81
N82: =ROW() -> 82
N83: =ROW() -> 83
N84: =ROW() -> 84
D85: ='Cost-Benefit'!I6 -> Fix NYC higher-range plan | N85: =ROW() -> 85
N86: =ROW() -> 86
N87: =ROW() -> 87
N88: =ROW() -> 88
N89: =ROW() -> 89
N90: =ROW() -> 90
N91: =ROW() -> 91
N92: =ROW() -> 92
N93: =ROW() -> 93
N94: =ROW() -> 94
N95: =ROW() -> 95
N96: =ROW() -> 96
N97: =ROW() -> 97
N98: =ROW() -> 98
N99: =ROW() -> 99
N100: =ROW() -> 100
B101: =CONCATENATE("3. Tax Alternatives ─ amounts by which other taxes must rise throughout 12-county MTA region if revenue isn't generated through ",Select_Plan_Box, ".") -> 3. Tax Alternatives ─ amounts by which other taxes must rise throughout 12-county MTA region if revenue isn't generated through Fix NYC higher-range plan. | N101: =ROW() -> 101
N102: =ROW() -> 102
N103: =ROW() -> 103
B104: Incremental sales tax increase to yield net revenue projected from selected plan: | G104: ='Taxes Instead'!J87 -> 0.007776714643 | H104: =CONCATENATE("This figure is shown in Row ",'Taxes Instead'!L87, " of 'Taxes Instead' wksheet and is derived there.") -> This figure is shown in Row 87 of 'Taxes Instead' wksheet and is derived there. | N104: =ROW() -> 104
B105: or | N105: =ROW() -> 105
B106: Incremental increase in motor fuels tax to yield net revenue projected from that plan: | G106: ='Taxes Instead'!J133 -> 0.6430976431 | H106: =CONCATENATE("This figure is shown in Row ",'Taxes Instead'!L133, " of 'Taxes Instead' worksheet and is derived in that tab." ) -> This figure is shown in Row 133 of 'Taxes Instead' worksheet and is derived in that tab. | N106: =ROW() -> 106
B107: or | N107: =ROW() -> 107
B108: Incremental increase in Payroll Mobility Tax to yield net revenue projected from the plan: | G108: ='Taxes Instead'!J151 -> 0.003361283644 | H108: =CONCATENATE("This figure is shown in Row ",'Taxes Instead'!L151, " of 'Taxes Instead' worksheet and is derived in that tab." ) -> This figure is shown in Row 151 of 'Taxes Instead' worksheet and is derived in that tab. | N108: =ROW() -> 108
B109: or | N109: =ROW() -> 109
B110: Incremental increase in annual auto-registration charge (this item applies only to NYC): | G110: ='Taxes Instead'!J162 -> 1016.247185 | H110: =CONCATENATE("This figure is shown in Row ",'Taxes Instead'!L162, " of 'Taxes Instead' worksheet and is derived in that tab." ) -> This figure is shown in Row 162 of 'Taxes Instead' worksheet and is derived in that tab. | N110: =ROW() -> 110
B111: or | N111: =ROW() -> 111
B112: Subway fare hike to pay debt service on Albany's unfunded capital plan obligation: | G112: ='Taxes Instead'!J311 -> 0.08251410138 | H112: =CONCATENATE("This figure is shown in Row ",'Taxes Instead'!L311, " of 'Taxes Instead' worksheet and is derived there. It does NOT nearly cover replaced Move NY funds -- only the debt service on Albany's capital plan obligation." ) -> This figure is shown in Row 311 of 'Taxes Instead' worksheet and is derived there. It does NOT nearly cover replaced Move NY funds -- only the debt service on Albany's capital plan obligation. | N112: =ROW() -> 112
N113: =ROW() -> 113
B114: 4. Travel Results (speeds, time savings, people entering CBD, transit usage, taxi trips, etc.) | H114: "CBD" denotes all of Manhattan south of 60th St.) | I114: Click for table of VMT changes in specific districts | N114: =ROW() -> 114
B115: (all figures are 5 years out, when transit investments have borne fruit) | N115: =ROW() -> 115
E116: Worksheet where calc'd | N116: =ROW() -> 116
B117: Weekday Traffic Speeds & VMT | I117: Roads to and from CBD | N117: =ROW() -> 117 | P117: Revenues | Q117: Spending | R117: Time $ | S117: Hours/106
E118: Motor Vs | F118: Note: "VMT" (Vehicle Miles Traveled) measures the amount of driving. | H118: within CBD | N118: =ROW() -> 118 | P118: Graph inputs. Do not disturb!
B119: Speed gain, 6am - 6pm | G119: Change: | H119: ='Motor Vs'!G1029-1 -> 0.2070877991 | I119: ='Motor Vs'!G1034-1 -> 0.07074179809 | N119: =ROW() -> 119 | P119: =K38 -> 940 | Q119: =-K39 -> 115 | R119: =H127 -> 1560 | S119: ='Cost-Benefit'!K235*Travel!H104/1000000 -> 45.36893838 | T119: Driver + Passenger time savings include buses, but counted only at avg auto occupancies from Travel worksheet (betw 1-1.5) rather than actual ~20. Thus, bus inclusion causes only a minor overestimate of total hour saved.
B120: Speed gain, 24-hour | G120: Change: | H120: ='Motor Vs'!H1029-1 -> 0.2045059507 | I120: ='Motor Vs'!H1034-1 -> 0.06330487933 | N120: =ROW() -> 120 | P120: =K42 -> 0 | Q120: =L48 -> 0 | R120: =I127 -> 800 | S120: ='Cost-Benefit'!K249*Travel!H104/1000000 -> 42.82768495
B121: VMT change, 6am - 6pm | G121: Change: | H121: ='Motor Vs'!G1042-1 -> -0.07913288721 | I121: =('Motor Vs'!G1046-1)*Approaches!$F$22 -> -0.06936086176 | N121: =ROW() -> 121 | P121: =K43 -> 0 | Q121: =L73 -> 1000 | R121: =ROUND('Cost-Benefit'!K58,-1) -> 1650 | S121: =('Cost-Benefit'!K137+'Cost-Benefit'!K166+'Cost-Benefit'!I200)/1000000 -> 96.97514052
B122: VMT change, annual average (24x365) | G122: Change: | H122: =VMT!K45 -> -0.063871588 | I122: =('Motor Vs'!H1046-1)*Approaches!$F$22 -> -0.05587580353 | N122: =ROW() -> 122 | P122: =K51+K52 -> 310 | Q122: =L74 -> 60 | R122: =SUM(R119:R121) -> 4010 | S122: =SUM(S119:S121) -> 185.1717638
B123: Number of CBD entries, % change, 6am - 6pm | G123: Change: | H123: ='Motor Vs'!N986 -> -0.202077876 | I123: NA | N123: =ROW() -> 123 | P123: =K47+K46 -> 385 | Q123: =L75 -> 1e-05
B124: Number of CBD entries, % change, 24 hours | G124: Change: | H124: ='Motor Vs'!N985 -> -0.1291891729 | I124: NA | N124: =ROW() -> 124 | P124: =K66 -> 0 | Q124: =L58 -> 0
H125: Trips that make some use of CBD | I125: Trips that make zero use of CBD | N125: =ROW() -> 125 | P125: =SUM(P119:P124) -> 1635 | Q125: =L57+L56 -> 0
B126: Time Savings | E126: Cost-Benefit | N126: =ROW() -> 126 | Q126: =L62 -> 0
B127: Time Savings to Drivers (vehicle users), millions per year | H127: =ROUND('Cost-Benefit'!H63,-1) -> 1560 | I127: =ROUND('Cost-Benefit'!H64,-1) -> 800 | N127: =ROW() -> 127 | Q127: =L63 -> 20
B128: Extra Savings to Bus Riders if zero fare (saving from faster traffic is subsumed in prior row) | H128: ='Cost-Benefit'!I206 -> 0 | N128: =ROW() -> 128 | Q128: =L67 -> 0
B129: Total Time Savings ($ millions) | H129: =SUM(H127:I128) -> 2360 | N129: =ROW() -> 129 | Q129: =L79 -> 829.99999
F130: Before | G130: After | H130: Change | I130: Change, % | N130: =ROW() -> 130 | Q130: =SUM(Q119:Q129) -> 2025
B131: Number of Persons Traveling to CBD on a Typical Weekday | F131: =Travel!G182 -> 3472000 | G131: =Travel!H182 -> 3624000 | H131: =Travel!I182 -> 152000 | I131: =Travel!J182 -> 0.04377880184 | N131: =ROW() -> 131
B132: (via subway, bus and auto combined; excludes commuter rail, medallion taxi, bike, walk, ferry) | F132: Click here to go to tab where these figures are calculated. | N132: =ROW() -> 132
N133: =ROW() -> 133
E134: Worksheet where calc'd | N134: =ROW() -> 134
N135: =ROW() -> 135
B136: Total Driving in NYC (vehicle miles traveled) | E136: VMT | F136: (excludes proj'd VMT ∆ on MTA bridges) | H136: Change: | I136: =VMT!I22 -> -0.0334075659 | N136: =ROW() -> 136
N137: =ROW() -> 137
B138: Subway Usage | N138: =ROW() -> 138
B139: 365-day increase (weekdays + weekends/holidays) | E139: Subways | H139: Change: | I139: =Subways!AN398 -> 0.0956799872 | N139: =ROW() -> 139
B140: Weekday increase, 24h | H140: Change: | I140: =Subways!M512 -> 0.09231922064 | N140: =ROW() -> 140
B141: Weekday increase, a.m. peak (8-9) | H141: Change: | I141: =Subways!X398 -> 0.08927706241 | N141: =ROW() -> 141
B142: Weekday increase, p.m. peak (5-6) | H142: Change: | I142: =Subways!AG398 -> 0.08322272328 | N142: =ROW() -> 142
B143: E. MTA Bus Co. | H143: Change: | I143: =Subways!AN400 -> 0.09804032919 | N143: =ROW() -> 143
B144: Peaks and valleys of Mon-Fri subway use (Gini coefficient) | E144: Gini | F144: Negative figure denotes peak-leveling. | H144: Change: | I144: =Gini!C81 -> -0.007752842181 | N144: =ROW() -> 144
N145: =ROW() -> 145
B146: Subway Speeds | E146: Subway v. Bus | F146: =IF('Policy Levers'!K191="YES",CONCATENATE("Speed gain is some years in future, after transit investments have borne fruit."),"Speed gain is immediate, before transit investments have borne fruit.") -> Speed gain is some years in future, after transit investments have borne fruit. | I146: ='Cost-Benefit'!K164 -> 0.1234737755 | N146: =ROW() -> 146
N147: =ROW() -> 147
N148: =ROW() -> 148
B149: Bus Usage | E149: Buses | F149: (all days, i.e., 365 days/yr) | H149: Change: | I149: =Buses!H136 -> 0.01298387366 | N149: =ROW() -> 149
N150: =ROW() -> 150
B151: NYC Transit Fares | E151: Subways, Buses | F151: Subways | H151: Buses | N151: =ROW() -> 151
F152: Fare | G152: Change | H152: Fare | I152: Change | N152: =ROW() -> 152
B153: Current (2016) actual average fare | E153: Subways, Buses | F153: =Subways!R513 -> 2.029637502 | H153: =Buses!H74 -> 1.975462226 | N153: =ROW() -> 153
B154: New fare (with pricing), weekdays | F154: =Subways!R514 -> 2.024370606 | G154: =F154/F$153-1 -> -0.002594993855 | H154: =Buses!I196 -> 1.975462226 | I154: =H154/H$153-1 -> 0 | N154: =ROW() -> 154
B155: New fare (with pricing), 365 days | F155: =Subways!R518 -> 2.025318617 | G155: =F155/F$153-1 -> -0.002127909536 | H155: =Buses!H196 -> 1.975462226 | I155: =H155/H$153-1 -> 0 | N155: =ROW() -> 155
N156: =ROW() -> 156
B157: Medallion Taxicab Usage (# fare trips, 365 days) | E157: Revenues | H157: # Change: | I157: =ROUND((Revenues!K73-Revenues!K71)*1000000+UberLyft!V238,-5) -> -4800000 | N157: =ROW() -> 157
H158: Change: | I158: =(I157/1000000)/Revenues!K71 -> -0.04421621701 | N158: =ROW() -> 158
B159: UberLyft Usage (# fare trips, 365 days) | E159: Revenues | H159: # Change: | I159: =ROUND((Revenues!O73-Revenues!O71)*1000000-UberLyft!V238,-5) -> 6200000 | N159: =ROW() -> 159
H160: % Change: | I160: =(I159/1000000)/Revenues!O71 -> 0.02775875347 | N160: =ROW() -> 160
B161: 5. Incidence (Who Pays?) | E161: Incidence | F161: Results exclude existing tolls; they include all changes, e.g., CBD toll, new FHV surcharges, MTA bridge discounts. | N161: =ROW() -> 161
D162: Click link above to go to that tab | N162: =ROW() -> 162
B163: Within NYC | N163: =ROW() -> 163
B164: 5-borough residents' share of the new revenues | H164: =IF(ABS($K$69)<0.1,"NA",Incidence!$L$426) -> 0.6997530553 | I164: Programming note: Most cells in column to left employ "IF" statement to avoid dividing by zero if user has selected "baseline" (no toll) scenario. | N164: =ROW() -> 164
B165: Borough or County whose residents will bear the highest share of the new tolls | H165: =Incidence!G430 -> Manhattan | N165: =ROW() -> 165
B166: Share of new toll payments to be borne by residents of that (#1 incidence) borough | H166: =IF(ABS($K$69)<0.1,"NA",MAX(Incidence!$G$426:$K$426)) -> 0.3245953126 | N166: =ROW() -> 166
B167: Borough or County whose residents will bear the second highest share of the new tolls | H167: =Incidence!G431 -> Brooklyn | N167: =ROW() -> 167
B168: Share of new toll payments to be borne by residents of that (#2 incidence) borough | H168: =IF(ABS($K$69)<0.1,"NA",LARGE(Incidence!$G$426:$K$426,2)) -> 0.1410392061 | N168: =ROW() -> 168
B169: =CONCATENATE("Percentage points by which toll payment share for ",H165," will exceed that for ",H167,"") -> Percentage points by which toll payment share for Manhattan will exceed that for Brooklyn | H169: =IF(ABS($K$69)<0.1,"NA",H166-H168) -> 0.1835561064 | N169: =ROW() -> 169
B170: Manhattan residents' new toll payments as a percentage of all of New York City's | H170: =IF(ABS($K$69)<0.1,"NA",Incidence!I414/H164) -> 0.464449562 | N170: =ROW() -> 170
B171: Outside NYC | N171: =ROW() -> 171
B172: Share of new toll payments borne by residents of 7 counties in MTA region outside NYC | H172: =IF(ABS($K$69)<0.1,"NA",Incidence!T414-Incidence!L414) -> 0.1640295329 | N172: =ROW() -> 172
B173: Share of new toll payments borne by residents of New Jersey | H173: =IF(ABS($K$69)<0.1,"NA",Incidence!$U$426) -> 0.08205724946 | N173: =ROW() -> 173
B174: Share of new toll payments not borne by residents of MTA region or NJ (CT, PA, further states, tourists) | H174: =IF(ABS($K$69)<0.1,"NA",1-H164-H172-H173) -> 0.05416016237 | N174: =ROW() -> 174
N175: =ROW() -> 175
B176: Remainder of worksheet is reserved area for graphing. Please do not disturb.
B178: =CONCATENATE("Attached array feeds into Revenue bar chart in Rows ",$N$83, "-",$N$99, ". Quantities are pulled from Rows ",$N$38, "-",$N$66, ", Column I.") -> Attached array feeds into Revenue bar chart in Rows 83-99. Quantities are pulled from Rows 38-66, Column I.
F179: New or Changed Road Tolls | G179: MTA Windfalls | H179: For-Hire Vehicle Surcharges | I179: End Parking Tax Break | J179: Total Net Revenue
B180: Zero Out Manhattanites' Parking Rebate | I180: =K66 -> 0
B181: More Taxi Trips Paying "Ravitch" Surcharge | H181: =K47 -> 0
B182: UberLyft (and other TNC's) Surcharge | H182: =K49 -> 390
B183: New For-Hire Vehicle Surcharge | H183: =K46 -> 385
B184: More Transit Riders | G184: =K51+K52 -> 310
B185: Greater Use of Outer-Borough Bridges | G185: =K43 -> 0
B186: Outer-Borough Toll Relief | F186: =K42 -> 0
B187: Toll & Fare Administration | F187: =K39 -> -115
B188: CBD Toll | F188: =K38 -> 940
B189: Net (Sum of All Prior Items) | J189: =J190 -> 1910
B190: F. Commuter Railroads | E190: Column Sums (check): | F190: =SUM(F180:F188) -> 825 | G190: =SUM(G180:G188) -> 310 | H190: =SUM(H180:H188) -> 775 | I190: =SUM(I180:I188) -> 0 | J190: =ROUND(SUM(F190:I190),-1) -> 1910
B192: =CONCATENATE("Attached array feeds into Expenditures bar chart in Rows ",$N$83, "-",$N$99, ". Quantities are pulled from Rows ",$N$73, "-",$N$76, ", Column J.") -> Attached array feeds into Expenditures bar chart in Rows 83-99. Quantities are pulled from Rows 73-76, Column J.
E193: Transit Capital: System Improvements & Expansions | F193: Transit Operations: Enhanced Service | G193: Roads & Bridges | H193: Fare Support | I193: Reserve | J193: Total Expenditures
B194: Reserve | I194: =L79 -> 829.99999
B195: Taxi Driver Health Fund | I195: =L48 -> 0
B196: Express Bus Discounts | H196: =L63 -> 20
B197: Intra-City Commuter Rail Discounts | H197: =L62 -> 0
B198: Outer-Borough Bus Fare Discounts | H198: =L56 -> 0
B199: Subway + Other Bus Fare Discounts | H199: =L58+L57 -> 0
B200: Maintain/Improve Roads & Bridges | G200: =L75 -> 1e-05
B201: State of Good Repair + Increase Service | F201: =L74 -> 60
B202: State of Good Repair + Increase Access to Transit | E202: =L73 -> 1000
... 15 more rows

Sheet Policy Levers
B1: Policy Levers | K1: ='Title Page'!G2 -> 2019-09-15 | O1: =ROW() -> 1
K2: =CONCATENATE("Scenario now being run: ",Results!$K$27, ".") -> Scenario now being run: Fix NYC higher-range plan. | O2: =ROW() -> 2
O3: =ROW() -> 3
B4: This tab, formerly called 'User Inputs', contains the key policy inputs that define our six "packaged" toll scenarios. Users may alter them, if they wish. | O4: =ROW() -> 4
B5: =CONCATENATE("There are ",B258, " categories of inputs, encompassing toll levels, transit fare levels, for-hire vehicle surcharges, etc., with multiple 'tweaks' for each.") -> There are 59 categories of inputs, encompassing toll levels, transit fare levels, for-hire vehicle surcharges, etc., with multiple 'tweaks' for each. | O5: =ROW() -> 5
O6: =ROW() -> 6
B7: =CONCATENATE("Values in Columns F through J correspond to various proposed NYC toll plans. The 'Switch' that enables you to select from among these plans is located in Cell K",Results!N27, " of 'Results' worksheet tab.") -> Values in Columns F through J correspond to various proposed NYC toll plans. The 'Switch' that enables you to select from among these plans is located in Cell K27 of 'Results' worksheet tab. | J7: RESULTS SNAPSHOT (for full results, click link:) | N7: Link to Results Page | O7: =ROW() -> 7
O8: =ROW() -> 8
J9: Selected Plan: | N9: =Results!K27 -> Fix NYC higher-range plan | O9: =ROW() -> 9
B10: You can use this worksheet not only to test different toll and fare scenarios, but to alter them. | O10: =ROW() -> 10
B11: Simply change the pertinent setting(s) in those columns. If you wish to save the BTA with your settings, use a different filename. That way, you can reload the model w/o your changes. (Of course, you can always re-download the BTA, via link: http://www.nnyn.org/kheelplan/BTA_1.1.xls.) | J11: Average CBD speed gain, 8 a.m. - 6 p.m.: | N11: =Results!$B$14 -> 0.2070877991 | O11: =ROW() -> 11
O12: =ROW() -> 12
J13: Annual net revenue (after netting tolling administration, toll discounts (if any), etc.): | N13: =Results!E14 -> 1910000000 | O13: =ROW() -> 13
B14: Values in blue font in "Baseline" Column E are set to duplicate 2019 traffic and transit status quo. If that scenario has been selected, all results (changes in revenue, traffic, transit use, etc.) should equal zero, indicating that the model results replicate current conditions (i.e., the model is correctly "initialized.") | N14: million / yr | O14: =ROW() -> 14
O15: =ROW() -> 15
J16: Manhattan residents' share of net new tolls: | N16: =Incidence!I426 -> 0.3245953126 | O16: =ROW() -> 16
O17: =ROW() -> 17
D18: Plan | O18: =ROW() -> 18
D19: =CONCATENATE("Calculations operate off plan chosen in 'Results' worksheet, Cell I",Results!N27, ".") -> Calculations operate off plan chosen in 'Results' worksheet, Cell I27. | O19: =ROW() -> 19
D20: Excel copies values from selected column to Col. K, whence they enter the "bloodstream" of the model. | O20: =ROW() -> 20
B21: Input Parameters | D21: Some details about parameter values | E21: Baseline | F21: Fix NYC lower-range plan | G21: Fix NYC higher-range plan | H21: Fix NYC turbo-charged | I21: Move NY Plan (Flat Toll) | J21: Move NY Plan w Variable Tolls | K21: Figures in this column automatically assume values of plan selected in 'Results' tab. | L21: Work-sheet featuring the parameter | M21: Location within that worksheet | N21: What This 'Parameter' Is or Does | O21: =ROW() -> 21
O22: =ROW() -> 22
O23: =ROW() -> 23
O24: =ROW() -> 24
E25: =CONCATENATE("Toll levels below apply to all inbound CBD crossings. For them to also apply outbound, Row ",O27, " must be set to 2 (so toll is charged both ways).") -> Toll levels below apply to all inbound CBD crossings. For them to also apply outbound, Row 27 must be set to 2 (so toll is charged both ways). | O25: =ROW() -> 25
O26: =ROW() -> 26
B27: 1 | C27: Toll One Direction or Two? | D27: Values: | E27: 1 | F27: 1 | G27: 1 | H27: 2 | I27: 2 | J27: 2 | K27: =INDEX($E27:$J27,1,MATCH(Results!$K$27,$E$21:$J$21,0)) -> 1 | L27: Cordon | N27: This parameter ensures that toll admin costs est'd in Cordon worksheet reflect actual number of trips subjected to tolling. | O27: =ROW() -> 27
D28: 1 or 2 | E28: If "2" is selected, tolls shown below are charged twice (once each way) . | O28: =ROW() -> 28
B29: =B27+1 -> 2 | C29: Weekday Cordon Tolls | D29: Weekday Toll Intervals | E29: Toll intervals are pre-set and can't be changed. But you may vary *amounts.* | L29: Weekday Hour | M29: Box, "Weekday Toll Levels," near top of Cols. G & H | N29: BTA can handle 7 weekday cordon toll levels (which we've collapsed here into 5). While tolls can be any amount, we've tried to steer clear of complex toll structures. | O29: =ROW() -> 29
C30: =CONCATENATE("If Row ",O$27, " = 2, toll shown = ½ of what driver pays for round trip.") -> If Row 27 = 2, toll shown = ½ of what driver pays for round trip. | D30: 11 pm - 5 am (6 hrs) | E30: 0 | F30: 0 | G30: 0 | H30: 2.75 | I30: =MTA_1Way_EZPass_2019 -> 6.12 | J30: 2.75 | K30: =MAX(0.00001,INDEX($E30:$J30,1,MATCH(Results!$K$27,$E$21:$J$21,0))) -> 1e-05 | O30: =ROW() -> 30
D31: 5-6 am + 8-11 pm (4 hrs) | E31: 0 | F31: 0 | G31: 0 | H31: 2.75 | I31: =MTA_1Way_EZPass_2019 -> 6.12 | J31: 2.75 | K31: =MAX(0.00001,INDEX($E31:$J31,1,MATCH(Results!$K$27,$E$21:$J$21,0))) -> 1e-05 | O31: =ROW() -> 31
C32: =CONCATENATE("Values shown here may end up being reduced by 'downstream' provisions in Items ",$B$64," & ",$B$68, ", or increased by Items ",$B$95," or ",$B$98,".") -> Values shown here may end up being reduced by 'downstream' provisions in Items 9 & 10, or increased by Items 17 or 18. | D32: 10 am - 2 pm (4 hrs) | E32: 0 | F32: =2*MTA_1Way_EZPass_2019 -> 12.24 | G32: 12.24 | H32: =MTA_1Way_EZPass_2019 -> 6.12 | I32: =MTA_1Way_EZPass_2019 -> 6.12 | J32: 8 | K32: =MAX(0.00001,INDEX($E32:$J32,1,MATCH(Results!$K$27,$E$21:$J$21,0))) -> 12.24 | O32: =ROW() -> 32
D33: 9-10 am + 2-8 pm (7 hrs) | E33: 0 | F33: 12.24 | G33: 12.24 | H33: =MTA_1Way_EZPass_2019 -> 6.12 | I33: =MTA_1Way_EZPass_2019 -> 6.12 | J33: 8 | K33: =MAX(0.00001,INDEX($E33:$J33,1,MATCH(Results!$K$27,$E$21:$J$21,0))) -> 12.24 | N33: Weekday Hours worksheet shows hours of day that make up each toll interval. | O33: =ROW() -> 33
D34: 6-9 am (3 hrs) | E34: 0 | F34: 12.24 | G34: 12.24 | H34: =MTA_1Way_EZPass_2019 -> 6.12 | I34: =MTA_1Way_EZPass_2019 -> 6.12 | J34: 8 | K34: =MAX(0.00001,INDEX($E34:$J34,1,MATCH(Results!$K$27,$E$21:$J$21,0))) -> 12.24 | O34: =ROW() -> 34
E35: =CONCATENATE("Note: Formulas for Cells K",O30, "-K",O41, " use 'max' algorithm to ensure toll is non-zero (i.e., at least $0.001) to prevent computational instability in 'Incidence' tab.") -> Note: Formulas for Cells K30-K41 use 'max' algorithm to ensure toll is non-zero (i.e., at least $0.001) to prevent computational instability in 'Incidence' tab. | O35: =ROW() -> 35
B36: =B29+1 -> 3 | C36: Weekend Cordon Tolls | D36: Weekend Toll Intervals | L36: Weekend Hour | M36: Box, "Weekend Toll Levels," near top of Cols. AD & AE | N36: BTA can handle 6 weekend cordon toll levels (which we've collapsed here into 4). While tolls can be any amount, we've tried to steer clear of complex toll structures. | O36: =ROW() -> 36
C37: =CONCATENATE("If Row ",O$27, " = 2, toll shown = ½ of what driver pays for round trip.") -> If Row 27 = 2, toll shown = ½ of what driver pays for round trip. | D37: Midnight - 10 am (10 hrs) | E37: 0 | F37: 0 | G37: 0 | H37: 2.75 | I37: =MTA_1Way_EZPass_2019 -> 6.12 | J37: 2.75 | K37: =MAX(0.00001,INDEX($E37:$J37,1,MATCH(Results!$K$27,$E$21:$J$21,0))) -> 1e-05 | O37: =ROW() -> 37
D38: 10-12 am + 10-12 pm (4 h) | E38: 0 | F38: 0 | G38: 0 | H38: 2.75 | I38: =MTA_1Way_EZPass_2019 -> 6.12 | J38: 2.75 | K38: =MAX(0.00001,INDEX($E38:$J38,1,MATCH(Results!$K$27,$E$21:$J$21,0))) -> 1e-05 | O38: =ROW() -> 38
C39: =CONCATENATE("Values shown here may end up being reduced by 'downstream' provisions in Items ",$B$64," & ",$B$68, ", or increased by Items ",$B$95," or ",$B$98,".") -> Values shown here may end up being reduced by 'downstream' provisions in Items 9 & 10, or increased by Items 17 or 18. | D39: Noon-5 + 8-10 pm (7 h) | E39: 0 | F39: 0 | G39: =2*MTA_1Way_EZPass_2019 -> 12.24 | H39: =MTA_1Way_EZPass_2019 -> 6.12 | I39: =MTA_1Way_EZPass_2019 -> 6.12 | J39: 6 | K39: =MAX(0.00001,INDEX($E39:$J39,1,MATCH(Results!$K$27,$E$21:$J$21,0))) -> 12.24 | O39: =ROW() -> 39
D40: 5-8 pm (3 hrs) | E40: 0 | F40: 0 | G40: =2*MTA_1Way_EZPass_2019 -> 12.24 | H40: =MTA_1Way_EZPass_2019 -> 6.12 | I40: =MTA_1Way_EZPass_2019 -> 6.12 | J40: 6 | K40: =MAX(0.00001,INDEX($E40:$J40,1,MATCH(Results!$K$27,$E$21:$J$21,0))) -> 12.24 | N40: Weekend Hours worksheet shows hours of day that make up each toll interval. | O40: =ROW() -> 40
E41: NA | F41: NA | G41: NA | H41: NA | I41: NA | J41: NA | K41: =MAX(0.00001,INDEX($E41:$J41,1,MATCH(Results!$K$27,$E$21:$J$21,0))) -> 1e-05 | O41: =ROW() -> 41
O42: =ROW() -> 42
B43: =B36+1 -> 4 | C43: Debit Net Revenues for Toll Administrative Costs? | D43: Values: | E43: NO | F43: YES | G43: YES | H43: YES | I43: YES | J43: YES | K43: =INDEX($E43:$J43,1,MATCH(Results!$K$27,$E$21:$J$21,0)) -> YES | N43: This lever enables the Baseline scenario to record toll admin costs. | O43: =ROW() -> 43
D44: YES or NO | O44: =ROW() -> 44
O45: =ROW() -> 45
B46: =B43+1 -> 5 | C46: Toll entire CBD cordon, or just the free bridges? | D46: Values: | E46: CORDON | F46: CORDON | G46: CORDON | H46: CORDON | I46: CORDON | J46: CORDON | K46: =INDEX($E46:$J46,1,MATCH(Results!$K$27,$E$21:$J$21,0)) -> CORDON | L46: Motor Vs | N46: BTA is designed to model cordon tolls "(CORDON") but can also approximate effects of only tolling East and Harlem River bridges ("BRIDGES"), as Ravitch Commission proposed in 2008-09, or East River bridges only ("EAST"). | O46: =ROW() -> 46
D47: CORDON | E47: Trips crossing into Manhattan CBD via E Riv bridges and 60th St are tolled. | O47: =ROW() -> 47
D48: EAST | E48: Trips crossing East River bridges (QBB, WBB, Manhattan, Brooklyn) are tolled. | O48: =ROW() -> 48
D49: BRIDGES | E49: Trips crossing East River and Harlem River bridges are tolled. | O49: =ROW() -> 49
O50: =ROW() -> 50
B51: =B46+1 -> 6 | C51: Toll Level for Harlem Riv bridges, % E Riv bridges | D51: Values: | E51: 0 | F51: 0.5 | G51: 0.5 | H51: 0.5 | I51: 0.5 | J51: 0.5 | K51: =INDEX($E51:$J51,1,MATCH(Results!$K$27,$E$21:$J$21,0)) -> 0.5 | L51: Bridges | N51: Applies only to "BRIDGES" scenario in which CBD cordon is not tolled, and East and Harlem River bridges are tolled instead. | O51: =ROW() -> 51
D52: Percent | E52: =CONCATENATE("%'s apply only if BRIDGES selected in Row ",O46,". Otherwise, % defaults to zero.") -> %'s apply only if BRIDGES selected in Row 46. Otherwise, % defaults to zero. | O52: =ROW() -> 52
O53: =ROW() -> 53
B54: =B51+1 -> 7 | C54: Add cordon toll for Lincoln & Holland Tunnel trips? If so, Flat (in $$) or % or Full? | D54: Values: | E54: FLAT | F54: NONE | G54: NONE | H54: % | I54: % | J54: % | K54: =INDEX($E54:$J54,1,MATCH(Results!$K$27,$E$21:$J$21,0)) -> NONE | O54: =ROW() -> 54
D55: NONE, FLAT, % or FULL | E55: =CONCATENATE("$$ and %'s below apply only if Row ",O54," is 'FLAT' or '%', respectively. Otherwise, zero or full toll applies, depending on whether Row ",O54, " is 'NONE' or 'FULL'.") -> $$ and %'s below apply only if Row 54 is 'FLAT' or '%', respectively. Otherwise, zero or full toll applies, depending on whether Row 54 is 'NONE' or 'FULL'. | O55: =ROW() -> 55
N56: Selected plan (the one the model is running now): | O56: =ROW() -> 56
C57: If Flat toll, how much (in $$)? | E57: 0 | F57: 4 | G57: 0 | H57: 2.75 | I57: 2 | J57: 2 | K57: =MAX(0.00001,INDEX($E57:$J57,1,MATCH(Results!$K$27,$E$21:$J$21,0))) -> 1e-05 | N57: =Select_Plan_Box -> Fix NYC higher-range plan | O57: =ROW() -> 57
C58: If % of cordon toll, what %? | E58: 0 | F58: 0.2 | G58: 0.4 | H58: 0.5 | I58: 0.33 | J58: 0.33 | K58: =INDEX($E58:$J58,1,MATCH(Results!$K$27,$E$21:$J$21,0)) -> 0.4 | O58: =ROW() -> 58
O59: =ROW() -> 59
B60: =B54+1 -> 8 | C60: Add cordon toll for Q-Midtown & Bklyn-Batt Tunnel Trips on top of MTA toll? | D60: Values: | E60: NO | F60: NO | G60: NO | H60: NO | I60: NO | J60: NO | K60: =INDEX($E60:$J60,1,MATCH(Results!$K$27,$E$21:$J$21,0)) -> NO | O60: =ROW() -> 60
D61: YES | O61: =ROW() -> 61
D62: NO | O62: =ROW() -> 62
O63: =ROW() -> 63
B64: =B60+1 -> 9 | C64: Toll on trips entering Manhattan via QBB Upper Roadway? If so, what $$? | D64: Values: | E64: ZERO | F64: ZERO | G64: ZERO | H64: ZERO | I64: PARTIAL | J64: PARTIAL | K64: =INDEX($E64:$J64,1,MATCH(Results!$K$27,$E$21:$J$21,0)) -> ZERO | O64: =ROW() -> 64
D65: ZERO, PARTIAL or FULL | O65: =ROW() -> 65
O66: =ROW() -> 66
O67: =ROW() -> 67
B68: =B64+1 -> 10 | C68: Exempt Bklyn Br trips that don't enter CBD | D68: Values: | E68: NO | F68: YES | G68: YES | H68: YES | I68: NO | J68: NO | K68: =INDEX($E68:$J68,1,MATCH(Results!$K$27,$E$21:$J$21,0)) -> YES | N68: =CONCATENATE("Cell K",O68, " feeds into Rows ",'Motor Vs'!O322, "-",'Motor Vs'!O328, " via an IF statement that exempts a certain % of B Bridge trips from tolls.") -> Cell K68 feeds into Rows 322-328 via an IF statement that exempts a certain % of B Bridge trips from tolls. | O68: =ROW() -> 68
D69: YES, NO | O69: =ROW() -> 69
O70: =ROW() -> 70
B71: =B68+1 -> 11 | C71: Charge through-trips to re-enter the cordon? | D71: Values: | E71: NO | F71: NO | G71: NO | H71: YES | I71: YES | J71: YES | K71: =INDEX($E71:$J71,1,MATCH(Results!$K$27,$E$21:$J$21,0)) -> NO | O71: =ROW() -> 71
D72: YES or NO | N72: Selected plan (the one the model is running now): | O72: =ROW() -> 72
N73: =Select_Plan_Box -> Fix NYC higher-range plan | O73: =ROW() -> 73
B74: =B71+1 -> 12 | C74: Discount day's 2nd trip into the CBD? | E74: NO | F74: YES | G74: YES | H74: YES | I74: YES | J74: YES | K74: =INDEX($E74:$J74,1,MATCH(Results!$K$27,$E$21:$J$21,0)) -> YES | L74: Motor Vs | M74: Row 302 | O74: =ROW() -> 74
O75: =ROW() -> 75
C76: If so, by how much? | O76: =ROW() -> 76
C77: For autos | E77: 0 | F77: 1 | G77: 1 | H77: 1 | I77: 0 | J77: 0 | K77: =INDEX($E77:$J77,1,MATCH(Results!$K$27,$E$21:$J$21,0)) -> 1 | O77: =ROW() -> 77
C78: For taxis & other FHV's | E78: 0 | F78: 1 | G78: 1 | H78: 1 | I78: 0 | J78: 0 | K78: =INDEX($E78:$J78,1,MATCH(Results!$K$27,$E$21:$J$21,0)) -> 1 | N78: =CONCATENATE("Taxi/FHV discount applies only if their trips into cordon have been 'set' to be tolled in the first place, per 'switches' in Rows ",O124, " and ",O156,".") -> Taxi/FHV discount applies only if their trips into cordon have been 'set' to be tolled in the first place, per 'switches' in Rows 124 and 156. | O78: =ROW() -> 78
C79: For trucks | E79: 0 | F79: 1 | G79: 1 | H79: 1 | I79: 1 | J79: 1 | K79: =INDEX($E79:$J79,1,MATCH(Results!$K$27,$E$21:$J$21,0)) -> 1 | O79: =ROW() -> 79
O80: =ROW() -> 80
B81: =B74+1 -> 13 | C81: Waive cordon toll for first trip of month by E-ZPass holders w/i MTA counties? | D81: Values: | E81: NO | F81: NO | G81: NO | H81: NO | I81: NO | J81: NO | K81: =INDEX($E81:$J81,1,MATCH(Results!$K$27,$E$21:$J$21,0)) -> NO | L81: Motor Vs | M81: =CONCATENATE("Row ",'Motor Vs'!O331,"") -> Row 331 | N81: This feature zeroes out, from each E-ZPass account on autos registered within the MTA 12-county region, the toll for the auto's first trip into or through the cordon, in each month. | O81: =ROW() -> 81
D82: YES or NO | O82: =ROW() -> 82
O83: =ROW() -> 83
O84: =ROW() -> 84
B85: =B81+1 -> 14 | C85: Non-Revenue Vehicles, % of Traffic Entering CBD | E85: 0 | F85: 0.04 | G85: 0.04 | H85: 0.04 | I85: 0.04 | J85: 0.04 | K85: =INDEX($E85:$J85,1,MATCH(Results!$K$27,$E$21:$J$21,0)) -> 0.04 | L85: Motor Vs | M85: =CONCATENATE("Row ",'Motor Vs'!O330,", Column K") -> Row 330, Column K | N85: Exemptions for police, fire, disabled (maybe) + fare-beaters. Set at 2x QMT, BBT and Triboro Br. | O85: =ROW() -> 85
O86: =ROW() -> 86
O87: =ROW() -> 87
B88: =B85+1 -> 15 | C88: =CONCATENATE("Carve-Outs (% eligible trips exempted from toll, beyond non-$ veh's inputted in #",B85, ").") -> Carve-Outs (% eligible trips exempted from toll, beyond non-$ veh's inputted in #14). | E88: 0 | F88: 0 | G88: 0 | H88: 0 | I88: 0 | J88: 0 | K88: =INDEX($E88:$J88,1,MATCH(Results!$K$27,$E$21:$J$21,0)) -> 0 | L88: Motor Vs | M88: =CONCATENATE("Row ",'Motor Vs'!O333,", Column K") -> Row 333, Column K | O88: =ROW() -> 88
L89: Motor Vs Weekends | O89: =ROW() -> 89
O90: =ROW() -> 90
O91: =ROW() -> 91
B92: =B88+1 -> 16 | C92: Compensate PANYNJ for reduced GWB toll rev? | D92: Values: | E92: NO | F92: NO | G92: NO | H92: NO | I92: NO | J92: NO | K92: =INDEX($E92:$J92,1,MATCH(Results!$K$27,$E$21:$J$21,0)) -> NO | L92: Revenues | M92: =CONCATENATE("Cell P",'Motor Vs'!O161,"") -> Cell P161 | N92: Provides option to "buy out" Port Authority by compensating it for revenue lost as cordon toll reduces use of GW Bridge. | O92: =ROW() -> 92
D93: YES or NO | O93: =ROW() -> 93
O94: =ROW() -> 94
B95: =B92+1 -> 17 | C95: 1-way Cash Toll Surcharge (as % of E-ZPass Toll) | E95: 0 | F95: =(MTA_1Way_Cash_2019-MTA_1Way_EZPass_2019)/MTA_1Way_EZPass_2019 -> 0.5522875817 | G95: =(MTA_1Way_Cash_2019-MTA_1Way_EZPass_2019)/MTA_1Way_EZPass_2019 -> 0.5522875817 | H95: =(MTA_1Way_Cash_2019-MTA_1Way_EZPass_2019)/MTA_1Way_EZPass_2019 -> 0.5522875817 | I95: =(MTA_1Way_Cash_2019-MTA_1Way_EZPass_2019)/MTA_1Way_EZPass_2019 -> 0.5522875817 | J95: =(MTA_1Way_Cash_2019-MTA_1Way_EZPass_2019)/MTA_1Way_EZPass_2019 -> 0.5522875817 | K95: =INDEX($E95:$J95,1,MATCH(Results!$K$27,$E$21:$J$21,0)) -> 0.5522875817 | L95: Motor Vs | M95: =CONCATENATE("Row ",'Motor Vs'!O307,"") -> Row 307 | N95: Per round-trip. Captures admin costs when E-ZPass not used. | O95: =ROW() -> 95
O96: =ROW() -> 96
O97: =ROW() -> 97
B98: =B95+1 -> 18 | C98: Truck cordon toll (average ratio to auto toll) | E98: =Trucks!F124 -> 2.151422899 | F98: 2.2 | G98: 2.2 | H98: =Trucks!$E139 -> 1.85 | I98: =Trucks!$E139 -> 1.85 | J98: =Trucks!$E139 -> 1.85 | K98: =INDEX($E98:$J98,1,MATCH(Results!$K$27,$E$21:$J$21,0)) -> 2.2 | L98: Motor Vs | M98: =CONCATENATE("Row ",'Motor Vs'!O286,", Column AZ") -> Row 286, Column AZ | N98: =CONCATENATE("BTA 'graduates' truck tolls based on # of axles. Value is developed in 'Trucks' worksheet, at Row ",Trucks!U129, ". Figure is rounded.") -> BTA 'graduates' truck tolls based on # of axles. Value is developed in 'Trucks' worksheet, at Row 129. Figure is rounded. | O98: =ROW() -> 98
O99: =ROW() -> 99
O100: =ROW() -> 100
B101: =B98+1 -> 19 | C101: Share of 60th St net toll revenues taken by NYC | E101: 0 | F101: 0 | G101: 0 | H101: 0 | I101: 0 | J101: 0 | K101: =INDEX($E101:$J101,1,MATCH(Results!$K$27,$E$21:$J$21,0)) -> 0 | N101: Is zero except for "MTA Inputs" scenario. | O101: =ROW() -> 101
O102: =ROW() -> 102
O103: =ROW() -> 103
B104: =B101+1 -> 20 | C104: Reduce MTA bridge tolls? | O104: =ROW() -> 104
C105: Verrazano Bridge | D105: Change in toll in each direction (Discount shown for Verrazano is doubled throughout the BTA, since its toll is charged in only one direction. For other MTA crossings, discounts apply in both directions.) | E105: 0 | F105: =F$104*MTA_1Way_EZPass_2019 -> 0 | G105: 0 | H105: -1 | I105: -2.5 | J105: -2.5 | K105: =INDEX($E105:$J105,1,MATCH(Results!$K$27,$E$21:$J$21,0)) -> 0 | L105: MTA Crossings | M105: Section C | O105: =ROW() -> 105
C106: Triborough Br (Manhattan) | E106: 0 | F106: 0 | G106: 0 | H106: -1 | I106: -2.5 | J106: -2.5 | K106: =INDEX($E106:$J106,1,MATCH(Results!$K$27,$E$21:$J$21,0)) -> 0 | O106: =ROW() -> 106
C107: Triborough Bridge (Bronx) | E107: 0 | F107: 0 | G107: 0 | H107: -1 | I107: -2.5 | J107: -2.5 | K107: =INDEX($E107:$J107,1,MATCH(Results!$K$27,$E$21:$J$21,0)) -> 0 | O107: =ROW() -> 107
C108: Bronx Whitestone Bridge | E108: 0 | F108: 0 | G108: 0 | H108: -1 | I108: -2.5 | J108: -2.5 | K108: =INDEX($E108:$J108,1,MATCH(Results!$K$27,$E$21:$J$21,0)) -> 0 | O108: =ROW() -> 108
C109: Throgs Neck Bridge | E109: 0 | F109: 0 | G109: 0 | H109: -1 | I109: -2.5 | J109: -2.5 | K109: =INDEX($E109:$J109,1,MATCH(Results!$K$27,$E$21:$J$21,0)) -> 0 | N109: Selected plan (the one the model is running now): | O109: =ROW() -> 109
C110: Brooklyn Battery Tunnel | E110: 0 | F110: 0 | G110: 0 | H110: 0 | I110: 0 | J110: 0 | K110: =INDEX($E110:$J110,1,MATCH(Results!$K$27,$E$21:$J$21,0)) -> 0 | N110: =Select_Plan_Box -> Fix NYC higher-range plan | O110: =ROW() -> 110
C111: Queens Midtown Tunnel | E111: 0 | F111: 0 | G111: 0 | H111: 0 | I111: 0 | J111: 0 | K111: =INDEX($E111:$J111,1,MATCH(Results!$K$27,$E$21:$J$21,0)) -> 0 | O111: =ROW() -> 111
C112: Henry Hudson Bridge | E112: 0 | F112: 0 | G112: 0 | H112: -0.5 | I112: -1 | J112: -1 | K112: =INDEX($E112:$J112,1,MATCH(Results!$K$27,$E$21:$J$21,0)) -> 0 | O112: =ROW() -> 112
C113: Marine Parkway Bridge | E113: 0 | F113: =F$104*Rockaway_1Way_EZPass_2019 -> 0 | G113: =G$104*Rockaway_1Way_EZPass_2019 -> 0 | H113: -0.5 | I113: -1 | J113: -1 | K113: =INDEX($E113:$J113,1,MATCH(Results!$K$27,$E$21:$J$21,0)) -> 0 | O113: =ROW() -> 113
C114: Cross Bay Bridge | E114: 0 | F114: =F$104*Rockaway_1Way_EZPass_2019 -> 0 | G114: =G$104*Rockaway_1Way_EZPass_2019 -> 0 | H114: -0.5 | I114: -1 | J114: -1 | K114: =INDEX($E114:$J114,1,MATCH(Results!$K$27,$E$21:$J$21,0)) -> 0 | O114: =ROW() -> 114
O115: =ROW() -> 115
B116: =B104+1 -> 21 | C116: Exempt upstream tolls on MTA bridges? | D116: Values: | E116: NO | F116: NO | G116: NO | H116: NO | I116: NO | J116: NO | K116: =INDEX($E116:$J116,1,MATCH(Results!$K$27,$E$21:$J$21,0)) -> NO | N116: Policy option to deduct tolls on MTA bridges from CBD tolls paid on same day, provided former is less than latter and E-ZPass is used. | O116: =ROW() -> 116
D117: 'YES' or 'NO' | O117: =ROW() -> 117
O118: =ROW() -> 118
B119: =B116+1 -> 22 | C119: End sales tax break for Manh residents' monthly parking? | D119: Values: | E119: NO | F119: NO | G119: NO | H119: NO | I119: YES | J119: YES | K119: =INDEX($E119:$J119,1,MATCH(Results!$K$27,$E$21:$J$21,0)) -> NO | L119: Parking | M119: Section 6 | N119: =CONCATENATE("Manhattan res. who park monthly can get 10.375% off 18.375% sales tax rate. Ending parking break raises revenue est'd in 'Parking' tab, Cell I",Parking!O484, ".") -> Manhattan res. who park monthly can get 10.375% off 18.375% sales tax rate. Ending parking break raises revenue est'd in 'Parking' tab, Cell I484. | O119: =ROW() -> 119
D120: 'YES' or 'NO' | O120: =ROW() -> 120
N121: Selected plan (the one the model is running now): | O121: =ROW() -> 121
B122: =CONCATENATE("Next ",B151-B124+1," items, covering next ",O151-O124+1," rows, apply to yellow cabs (medallion taxis). Inputs for Ubers, Lyfts, etc. start in Row ",O154, ".") -> Next 7 items, covering next 28 rows, apply to yellow cabs (medallion taxis). Inputs for Ubers, Lyfts, etc. start in Row 154. | N122: =Select_Plan_Box -> Fix NYC higher-range plan | O122: =ROW() -> 122
O123: =ROW() -> 123
B124: =B119+1 -> 23 | C124: Do yellows pay cordon toll? | D124: Values: | E124: NO | F124: NO | G124: NO | H124: NO | I124: NO | J124: NO | K124: =INDEX($E124:$J124,1,MATCH(Results!$K$27,$E$21:$J$21,0)) -> NO | N124: This switch determines whether yellow cabs pay for crossing the cordon. | O124: =ROW() -> 124
N125: =CONCATENATE("Trips in yellows can be surcharged per Row ",O141,"-",O143," $ adders to drop, mile, and/or per-minute charges ('DIRECT'); or as Row ",O135,"-",O137," % increments to drop, mileage & wait-time charges on taxi meter ('METER').") -> Trips in yellows can be surcharged per Row 141-143 $ adders to drop, mile, and/or per-minute charges ('DIRECT'); or as Row 135-137 % increments to drop, mileage & wait-time charges on taxi meter ('METER'). | O125: =ROW() -> 125
B126: =B124+1 -> 24 | C126: How are yellows surcharged? With % increments to meter, or with direct charges? | D126: Values: | E126: NONE | F126: METER | G126: METER | H126: DIRECT | I126: DIRECT | J126: DIRECT | K126: =INDEX($E126:$J126,1,MATCH(Results!$K$27,$E$21:$J$21,0)) -> METER | O126: =ROW() -> 126
O127: =ROW() -> 127
D128: DIRECT,' 'METER,' 'NONE' | O128: =ROW() -> 128
O129: =ROW() -> 129
B130: =B126+1 -> 25 | C130: Zone boundary in which yellow cab surcharges apply | D130: Values: | E130: 96 | F130: 60 | G130: 96 | H130: 96 | I130: 96 | J130: 96 | K130: =INDEX($E130:$J130,1,MATCH(Results!$K$27,$E$21:$J$21,0)) -> 96 | L130: Taxis | N130: 60 or 96 or 110 means surcharge applies S of street shown (if 110 then up to 110 St on W side but only to 96 St on E). 'NONE' means applies everywhere. | O130: =ROW() -> 130
D131: 60' or '96' or '110' or NONE | O131: =ROW() -> 131
E132: =CONCATENATE("Charges in three rows below are peak rates for yellows. They apply if and only if value in Cell K",O$126, " is METER, and only while a 'fare' is in the cab.") -> Charges in three rows below are peak rates for yellows. They apply if and only if value in Cell K126 is METER, and only while a 'fare' is in the cab. | O132: =ROW() -> 132
B133: =B130+1 -> 26 | C133: Yellow surchrgs, using taxi METER syntax (@ wkdy peak) | D133: NB: Due to arcane TLC fare structure, taxi per-mile & wait time charges affect fares differently than Uber charges. | N133: =CONCATENATE("Cell F",O135," applies the ",ROUND(100*Taxis!H$261,0), "% of taxi trips that touch the taxi zone, as calc'd in 'Taxis' tab, Cell H",Taxis!O$261, ", to the $2.00 drop charge for FixNYC FHV scenario C1. Cell G",O135, " does likewise except that it applies slightly more involved calc's from same row in 'Taxis' tab to the $5.00 drop in Fix NYC FHV scenario F6. The user is urged to view the formula bar to see the precise calculations.") -> Cell F135 applies the 82% of taxi trips that touch the taxi zone, as calc'd in 'Taxis' tab, Cell H261, to the $2.00 drop charge for FixNYC FHV scenario C1. Cell G135 does likewise except that it applies slightly more involved calc's from same row in 'Taxis' tab to the $5.00 drop in Fix NYC FHV scenario F6. The user is urged to view the formula bar to see the precise calculations. | O133: =ROW() -> 133
E134: =CONCATENATE("See N",O133, " text.") -> See N133 text. | F134: =CONCATENATE("See notes in F",O145, "-H",O147," and N",O147, " (text box).") -> See notes in F145-H147 and N147 (text box). | O134: =ROW() -> 134
C135: A. Drop ($ Increase) | E135: 0 | F135: =2*Taxis!H261 -> 1.6454 | G135: =5*Taxis!L261+3*(Taxis!K261-Taxis!L261) -> 4.4055 | H135: 0 | I135: 0 | J135: 0 | K135: =MAX(0.00001,INDEX($E135:$J135,1,MATCH(Results!$K$27,$E$21:$J$21,0))) -> 4.4055 | O135: =ROW() -> 135
C136: B. Per-Mile Rate ($ Incrs) | E136: 0 | F136: 0 | G136: 0 | H136: 0 | I136: 0 | J136: 0 | K136: =MAX(0.00001,INDEX($E136:$J136,1,MATCH(Results!$K$27,$E$21:$J$21,0))) -> 1e-05 | O136: =ROW() -> 136
C137: C. Wait Time Rate ($ Incrs) | E137: 0 | F137: 0 | G137: 0 | H137: 0 | I137: 0.6 | J137: 0.6 | K137: =MAX(0.00001,INDEX($E137:$J137,1,MATCH(Results!$K$27,$E$21:$J$21,0))) -> 1e-05 | O137: =ROW() -> 137
O138: =ROW() -> 138
B139: =B133+1 -> 27 | C139: Yellow surchrgs, w/ DIRECT rates on all seconds or miles | E139: =CONCATENATE("Charges in three rows below are peak rates for yellows. They apply if and only if value in Cell K",O$126, " is DIRECT, and only while a 'fare' is in the cab.") -> Charges in three rows below are peak rates for yellows. They apply if and only if value in Cell K126 is DIRECT, and only while a 'fare' is in the cab. | N139: =CONCATENATE("Cell F",O141," applies the ",ROUND(100*Taxis!H$261,0), "% of taxi trips that touch the taxi zone, as calc'd in 'Taxis' tab, Cell H",Taxis!O$261, ", to the $2.00 drop charge for FixNYC FHV scenario C1. Cell G",O141, " does likewise except that it applies slightly more involved calc's from same row in 'Taxis' tab to the $5.00 drop in Fix NYC FHV scenario F6. The user is urged to view the formula bar to see the precise calculations.") -> Cell F141 applies the 82% of taxi trips that touch the taxi zone, as calc'd in 'Taxis' tab, Cell H261, to the $2.00 drop charge for FixNYC FHV scenario C1. Cell G141 does likewise except that it applies slightly more involved calc's from same row in 'Taxis' tab to the $5.00 drop in Fix NYC FHV scenario F6. The user is urged to view the formula bar to see the precise calculations. | O139: =ROW() -> 139
O140: =ROW() -> 140
C141: A. Drop ($ Increase) | E141: 0 | F141: =2*Taxis!H261 -> 1.6454 | G141: =5*Taxis!L261+3*(Taxis!K261-Taxis!L261) -> 4.4055 | H141: 0 | I141: 0 | J141: 0 | K141: =MAX(0.00001,INDEX($E141:$J141,1,MATCH(Results!$K$27,$E$21:$J$21,0))) -> 4.4055 | O141: =ROW() -> 141
C142: B. Per-Mile Rate ($ Incrs) | E142: 0 | F142: 0 | G142: 0 | H142: 0 | I142: 0 | J142: 0 | K142: =MAX(0.00001,INDEX($E142:$J142,1,MATCH(Results!$K$27,$E$21:$J$21,0))) -> 1e-05 | O142: =ROW() -> 142
C143: C. Per-Minute Rate ($ Incrs) | E143: 0 | F143: 0 | G143: 0 | H143: 0.4 | I143: 0.4 | J143: 0.4 | K143: =MAX(0.00001,INDEX($E143:$J143,1,MATCH(Results!$K$27,$E$21:$J$21,0))) -> 1e-05 | O143: =ROW() -> 143
O144: =ROW() -> 144
B145: =B139+1 -> 28 | C145: Yellow taxi off-peak surchrg, % of peak surcharges above | D145: 'YES' or 'NO' | E145: =CONCATENATE("Cell N",O145, " box sums up how we calc'd Cells F",O148, "-H",O149,".") -> Cell N145 box sums up how we calc'd Cells F148-H149. | F145: Inputs below draw on data in Taxis tab to approx policies in Fix NYC report, Fig 9, cells C1, F6 & F4, resp'ly. | I145: Inputs below reflect Move NY policy to make off-pk FHV charges 1/2 of peak. | N145: =CONCATENATE("Cells F",O148," & G",O148, " draw on 5 non-nighttime periods (out of 7 total) in Row ",Taxis!O289, " of 'Taxis' tab. Cell H",O148, " prorates evening (8-11) volumes by sum of evening + overnight in same row. Cells F",O149, ", G",O149, " and H",O149, " do likewise, except they operate on weekend data (in Columns S, T & U) in 'Taxis' tab, Row ",Taxis!O289, ". Note that figs in F",O149, ", G",O149, " and H",O149, " appear to be 'round numbers' but aren't.") -> Cells F148 & G148 draw on 5 non-nighttime periods (out of 7 total) in Row 289 of 'Taxis' tab. Cell H148 prorates evening (8-11) volumes by sum of evening + overnight in same row. Cells F149, G149 and H149 do likewise, except they operate on weekend data (in Columns S, T & U) in 'Taxis' tab, Row 289. Note that figs in F149, G149 and H149 appear to be 'round numbers' but aren't. | O145: =ROW() -> 145
O146: =ROW() -> 146
D147: =CONCATENATE("%'s prorate the yellow taxi peak surcharges in Rows ",O135, "-",O143, ".") -> %'s prorate the yellow taxi peak surcharges in Rows 135-143. | O147: =ROW() -> 147
C148: A. Weekday % | E148: 0 | F148: =SUM(Taxis!H289:'Taxis'!L289) -> 0.8700770172 | G148: =SUM(Taxis!H289:'Taxis'!L289) -> 0.8700770172 | H148: 0.5 | I148: 0.5 | J148: 0.5 | K148: =INDEX($E148:$J148,1,MATCH(Results!$K$27,$E$21:$J$21,0)) -> 0.8700770172 | O148: =ROW() -> 148
C149: B. Weekend % | E149: 0 | F149: =SUM(Taxis!S289:'Taxis'!U289) -> 0.502829703 | G149: =SUM(Taxis!S289:'Taxis'!U289) -> 0.502829703 | H149: 0.5 | I149: 0.5 | J149: 0.5 | K149: =INDEX($E149:$J149,1,MATCH(Results!$K$27,$E$21:$J$21,0)) -> 0.502829703 | O149: =ROW() -> 149
N150: Allocating a share of surcharge revenues to taxi drivers is good policy both ethically and politically. | O150: =ROW() -> 150
B151: =B145+1 -> 29 | C151: % Taxi Surcharge Revenue Reserved for Drivers | E151: 0 | F151: 0 | G151: 0 | H151: 0 | I151: 0 | J151: 0 | K151: =INDEX($E151:$J151,1,MATCH(Results!$K$27,$E$21:$J$21,0)) -> 0 | L151: Taxis | O151: =ROW() -> 151
O152: =ROW() -> 152
N153: Selected plan (the one the model is running now): | O153: =ROW() -> 153
B154: =CONCATENATE("Next ",B175-B156+1, " items, covering next ",O179-O155+1, " rows, apply to app-based services (Ubers, Lyfts, etc.). Inputs for yellow cabs are above.") -> Next 6 items, covering next 25 rows, apply to app-based services (Ubers, Lyfts, etc.). Inputs for yellow cabs are above. | N154: =Select_Plan_Box -> Fix NYC higher-range plan | O154: =ROW() -> 154
O155: =ROW() -> 155
B156: =B151+1 -> 30 | C156: Do UberLyfts pay cordon toll? | D156: Values: ''YES' or 'NO' | E156: NO | F156: NO | G156: NO | H156: NO | I156: NO | J156: NO | K156: =INDEX($E156:$J156,1,MATCH(Results!$K$27,$E$21:$J$21,0)) -> NO | N156: Switch determines whether app-based FHV's pay for crossing the cordon. | O156: =ROW() -> 156
O157: =ROW() -> 157
B158: =B156+1 -> 31 | C158: =CONCATENATE("Surcharge UberLyfts with $/¢ charges in Rows ",O167,"-",O169,"?") -> Surcharge UberLyfts with $/¢ charges in Rows 167-169? | D158: Values: ''YES' or 'NO' | E158: NO | F158: YES | G158: YES | H158: YES | I158: YES | J158: YES | K158: =INDEX($E158:$J158,1,MATCH(Results!$K$27,$E$21:$J$21,0)) -> YES | O158: =ROW() -> 158
O159: =ROW() -> 159
O160: =ROW() -> 160
B161: =B158+1 -> 32 | C161: Zone boundary in which the Uber-Lyft surcharges apply | D161: Values: 60 or 96 or 110 | E161: 96 | F161: 60 | G161: 96 | H161: 96 | I161: 96 | J161: 96 | K161: =INDEX($E161:$J161,1,MATCH(Results!$K$27,$E$21:$J$21,0)) -> 96 | L161: UberLyft | N161: 60 or 96 or 110 means surcharge applies S of street shown (if 110 then up to 110 St on W side but only to 96 St on E). 'NONE' means applies everywhere. | O161: =ROW() -> 161
O162: =ROW() -> 162
E163: =CONCATENATE("Charges in next three data rows apply only if value in Cell K",O158, " is YES, and a fare-passenger is in vehicle (save for possible cruising-time & mileage charges handled in Row ",O171, "). They are maxima and subject to off-peak attenuation.") -> Charges in next three data rows apply only if value in Cell K158 is YES, and a fare-passenger is in vehicle (save for possible cruising-time & mileage charges handled in Row 171). They are maxima and subject to off-peak attenuation. | O163: =ROW() -> 163
O164: =ROW() -> 164
B165: =B161+1 -> 33 | C165: Maximum UberLyft surcharges (wkday peak) | O165: =ROW() -> 165
D166: Uber per-mile & wait time charges accumulate differently from yellow taxi charges. | E166: =CONCATENATE("See text box at right to explicate figures in Cells F",O167, ", G",O167, " and H",O167,".") -> See text box at right to explicate figures in Cells F167, G167 and H167. | O166: =ROW() -> 166
C167: A. Drop ($ Increase) | E167: 0 | F167: 2 | G167: 5 | H167: 0 | I167: 0 | J167: 0 | K167: =MAX(0.00001,INDEX($E167:$J167,1,MATCH(Results!$K$27,$E$21:$J$21,0))) -> 5 | O167: =ROW() -> 167
C168: B. Per-Mile Rate ($ Incrs) | E168: 0 | F168: 0 | G168: 0 | H168: 0 | I168: 0 | J168: 0 | K168: =MAX(0.00001,INDEX($E168:$J168,1,MATCH(Results!$K$27,$E$21:$J$21,0))) -> 1e-05 | O168: =ROW() -> 168
C169: C. Per-Minute Rate ($ Incrs) | E169: 0 | F169: 0 | G169: 0 | H169: 0.4 | I169: 0.4 | J169: 0.4 | K169: =MAX(0.00001,INDEX($E169:$J169,1,MATCH(Results!$K$27,$E$21:$J$21,0))) -> 1e-05 | O169: =ROW() -> 169
O170: =ROW() -> 170
B171: =B165+1 -> 34 | C171: Also charge UberLyfts "trawling" time &/or "cruising" miles? | D171: =CONCATENATE("%'s are on top of charges dictated by Rows ",O167, "-",O169, " & ",O177, "-",O177, ".") -> %'s are on top of charges dictated by Rows 167-169 & 177-177. | E171: 0 | F171: 0 | G171: 0 | H171: 0.6 | I171: 0.5 | J171: 0.5 | K171: =INDEX($E171:$J171,1,MATCH(Results!$K$27,$E$21:$J$21,0)) -> 0 | O171: =ROW() -> 171
E172: =CONCATENATE("Trawling fare impact is calc'd by multiplying it by per-mile & -minute rates in Rows ",O168, " and ",O169, ". Applies only within UberLyft surcharge zone selected in Row ",O156, ".") -> Trawling fare impact is calc'd by multiplying it by per-mile & -minute rates in Rows 168 and 169. Applies only within UberLyft surcharge zone selected in Row 156. | O172: =ROW() -> 172
O173: =ROW() -> 173
E174: =CONCATENATE("Text to right explains 2x3 array from F",O177," to H",O178, ".") -> Text to right explains 2x3 array from F177 to H178. | F174: Inputs below draw on data in UberLyft tab to approx policies in Fix NYC report, Fig 9, cells C1, F6 & F4, resp'ly. | I174: These inputs reflect Move NY policy to make off-pk FHV charges 1/2 of peak. | N174: =CONCATENATE("Cell F",O177, " draws on 5 non-nighttime periods (out of 7 total) in Row ",UberLyft!O418, " of 'UberLyft' tab. Cell H",O177, " does same but also prorates max toll in Cell G",O167, " by Fix NYC's lower surcharge ($2.50 8-11 pm). Cell G",O177, " prorates evening (8-11) volumes by sum of evening + ovenight in same row. Cells F",O178, ", G",O178, " and H",O178, " do likewise but operate on weekend data in Columns S, T & U, also in 'UberLyft' tab, Row ",UberLyft!O418, ".") -> Cell F177 draws on 5 non-nighttime periods (out of 7 total) in Row 418 of 'UberLyft' tab. Cell H177 does same but also prorates max toll in Cell G167 by Fix NYC's lower surcharge ($2.50 8-11 pm). Cell G177 prorates evening (8-11) volumes by sum of evening + ovenight in same row. Cells F178, G178 and H178 do likewise but operate on weekend data in Columns S, T & U, also in 'UberLyft' tab, Row 418. | O174: =ROW() -> 174
B175: =B171+1 -> 35 | C175: UberLyft off-peak surchrg, % of peak | O175: =ROW() -> 175
D176: =CONCATENATE("%'s relate to all FHV peak surcharges in Rows ",O167, "-",O658, ".") -> %'s relate to all FHV peak surcharges in Rows 167-. | O176: =ROW() -> 176
C177: A. Weekday % | E177: 0 | F177: =UberLyft!L418/(UberLyft!L418+UberLyft!F418+UberLyft!G418) -> 0.5743820072 | G177: =SUM(UberLyft!H418:L418) -> 0.8460561951 | H177: 0.5 | I177: 0.5 | J177: 0.5 | K177: =INDEX($E177:$J177,1,MATCH(Results!$K$27,$E$21:$J$21,0)) -> 0.8460561951 | O177: =ROW() -> 177
C178: B. Weekend % | E178: 0 | F178: =SUM(UberLyft!R418:'UberLyft'!U418) -> 0.5989886635 | G178: =SUM(UberLyft!S418:U418) -> 0.5234301599 | H178: 0.5 | I178: 0.5 | J178: 0.5 | K178: =INDEX($E178:$J178,1,MATCH(Results!$K$27,$E$21:$J$21,0)) -> 0.5234301599 | O178: =ROW() -> 178
O179: =ROW() -> 179
B180: =B175+1 -> 36 | C180: Surcharges for "pool" FHV's | N180: Selected plan (the one the model is running now): | O180: =ROW() -> 180
C181: A. Drop ($ Increase) | E181: 0 | F181: =F167 -> 2 | G181: =G167 -> 5 | H181: =H167 -> 0 | I181: =I167 -> 0 | J181: =J167 -> 0 | K181: =MAX(0.00001,INDEX($E181:$J181,1,MATCH(Results!$K$27,$E$21:$J$21,0))) -> 5 | N181: =Select_Plan_Box -> Fix NYC higher-range plan | O181: =ROW() -> 181
C182: B. Per-Mile Rate ($ Incrs) | E182: 0 | F182: 0 | G182: 0 | H182: 0 | I182: 0 | J182: 0 | K182: =MAX(0.00001,INDEX($E182:$J182,1,MATCH(Results!$K$27,$E$21:$J$21,0))) -> 1e-05 | O182: =ROW() -> 182
C183: C. Per-Minute Rate ($ Incrs) | E183: 0 | F183: 0 | G183: 0 | H183: 0 | I183: 0.1 | J183: 0.1 | K183: =MAX(0.00001,INDEX($E183:$J183,1,MATCH(Results!$K$27,$E$21:$J$21,0))) -> 1e-05 | O183: =ROW() -> 183
O184: =ROW() -> 184
B185: =B180+1 -> 37 | C185: Street Space Repurposed from autos | E185: 0 | F185: 0 | G185: 0 | H185: 0 | I185: 0 | J185: 0 | K185: =INDEX($E185:$J185,1,MATCH(Results!$K$27,$E$21:$J$21,0)) -> 0 | L185: Motor Vs | M185: =CONCATENATE("Row ",'Motor Vs'!O479,) -> Row 479 | N185: Anticipated drop in traffic w/ cordon toll could allow NYC to "repurpose" some of the CBD's est'd 900 lane-miles of streets. Note that 1 lane-mile = 1.4 acres. (See Cordon worksheet.) | O185: =ROW() -> 185
E186: (lane-miles) | F186: (lane-miles) | G186: (lane-miles) | H186: (lane-miles) | I186: (lane-miles) | J186: (lane-miles) | K186: (lane-miles) | O186: =ROW() -> 186
O187: =ROW() -> 187
B188: =B185+1 -> 38 | C188: Share of Transit Windfall $ booked as Net Revenue | E188: 1 | F188: 1 | G188: 1 | H188: 1 | I188: 1 | J188: 1 | K188: =INDEX($E188:$J188,1,MATCH(Results!$K$27,$E$21:$J$21,0)) -> 1 | N188: A number less than 100% would reflect perceived need to reflect additional operating costs from increased ridership whose farebox revenues would otherwise be credited to revenue pot. | O188: =ROW() -> 188
O189: =ROW() -> 189
O190: =ROW() -> 190
B191: =B188+1 -> 39 | C191: Are any congestion revenues invested in transit upgrades? | E191: NO | F191: YES | G191: YES | H191: YES | I191: YES | J191: YES | K191: =INDEX($E191:$J191,1,MATCH(Results!$K$27,$E$21:$J$21,0)) -> YES | O191: =ROW() -> 191
E192: =IF(K195>0.1,CONCATENATE("To run model w/o taking credit for transit improvements resulting from investing annual amounts shown in Cell K",O195,", set YES/NO switch in Row ",O191," (in scenario the model is running) to NO."),CONCATENATE("To take credit for transit improvements resulting from investing annual amounts shown in Cell K",O195,", set YES/NO switch in Row ",O191," (in scenario the model is running) to YES.")) -> To run model w/o taking credit for transit improvements resulting from investing annual amounts shown in Cell K195, set YES/NO switch in Row 191 (in scenario the model is running) to NO. | O192: =ROW() -> 192
O193: =ROW() -> 193
O194: =ROW() -> 194
B195: =B191+1 -> 40 | C195: Annual Investment in Transit Upgrades & Expansions | E195: 0 | F195: 550 | G195: 1300 | H195: 1200 | I195: 975 | J195: 975 | K195: =MAX(0.00001,INDEX($E195:$J195,1,MATCH(Results!$K$27,$E$21:$J$21,0))) -> 1300 | L195: Transit | M195: =CONCATENATE("Row ",Transit!O231,) -> Row 231 | N195: Toll revenues invested in transit capital spending to keep transit in state of good repair + expedite/enable new service. | O195: =ROW() -> 195
E196: million/year | F196: million/year | G196: million/year | H196: million/year | I196: million/year | J196: million/year | K196: million/year | O196: =ROW() -> 196
O197: =ROW() -> 197
B198: =B195+1 -> 41 | C198: Amount of that investment going to CBTC | E198: 0 | F198: 500 | G198: 1000 | H198: 1000 | I198: 800 | J198: 800 | K198: =MAX(0.00001,INDEX($E198:$J198,1,MATCH(Results!$K$27,$E$21:$J$21,0))) -> 1000 | O198: =ROW() -> 198
E199: million/year | F199: million/year | G199: million/year | H199: million/year | I199: million/year | J199: million/year | K199: million/year | O199: =ROW() -> 199
O200: =ROW() -> 200
... 78 more rows

Sheet Cost-Benefit
B1: Cost-Benefit | N1: ='Title Page'!G2 -> 2019-09-15 | O1: =ROW() -> 1
N2: =CONCATENATE("Scenario now being run: ",Results!$K$27, ".") -> Scenario now being run: Fix NYC higher-range plan. | O2: =ROW() -> 2
B3: This worksheet compiles societal costs and benefits of pricing scenario selected by user in Results worksheet. | O3: =ROW() -> 3 | Q3: per day: | R3: =H7/(Constants!J7*1000000) -> 10.52054795 | S3: mllion
K4: =CONCATENATE("Figure in Cell H",O7, " is copied from cell K",O88,", where it is turn calculated as the sum of these cells: K",O55," (deadweight administrative costs), K",O76," (net enviro/societal benefits), K",O84," (user fees, aggregated), and K",O86," (surplus/deficit).") -> Figure in Cell H7 is copied from cell K88, where it is turn calculated as the sum of these cells: K55 (deadweight administrative costs), K76 (net enviro/societal benefits), K84 (user fees, aggregated), and K86 (surplus/deficit). | O4: =ROW() -> 4 | Q4: per hr: | R4: =R3*1000000/24 -> 438356.1644
B5: For complete results of selected plan, and to test other plans, click: | I5: Results | O5: =ROW() -> 5 | Q5: per minute: | R5: =R4/60 -> 7305.936073
B6: Selected Plan: | I6: =Results!K27 -> Fix NYC higher-range plan | O6: =ROW() -> 6 | Q6: per second: | R6: =R5/60 -> 121.7656012
B7: Annual Net Benefit of Selected Plan: | H7: =ROUND(K88,-1)*1000000 -> 3840000000 | O7: =ROW() -> 7 | Q7: =CONCATENATE("Figures above draw on value in Cell H", O7, ".") -> Figures above draw on value in Cell H7.
O8: =ROW() -> 8
O9: =ROW() -> 9
O10: =ROW() -> 10 | R10: Entries in graph are derived in remain-der of work-sheet. Page-Down to find pertinent sections.
O11: =ROW() -> 11
O12: =ROW() -> 12
O13: =ROW() -> 13
O14: =ROW() -> 14
O15: =ROW() -> 15
O16: =ROW() -> 16
O17: =ROW() -> 17
O18: =ROW() -> 18
O19: =ROW() -> 19
O20: =ROW() -> 20
O21: =ROW() -> 21
O22: =ROW() -> 22
O23: =ROW() -> 23
O24: =ROW() -> 24
O25: =ROW() -> 25
O26: =ROW() -> 26
O27: =ROW() -> 27
O28: =ROW() -> 28
O29: =ROW() -> 29
O30: =ROW() -> 30
O31: =ROW() -> 31
O32: =ROW() -> 32
O33: =ROW() -> 33
O34: =ROW() -> 34
O35: =ROW() -> 35
O36: =ROW() -> 36
O37: =ROW() -> 37
O38: =ROW() -> 38
O39: =ROW() -> 39
O40: =ROW() -> 40
C41: Travelers' Amenity in chart represents net lost (or gained) "utility" of trips that drivers forego due to congestion toll (or that transit users gain in trips "attracted" by lower fares). If bar falls below x-axis, drivers' lost amenity has outweighed transit users' gain. | I41: If "Transit Fares" appears in User Fees stack in chart, it denotes the increase in expenditures on transit travel attributable to the larger ridership attracted by service improvements financed by the congestion toll revenues. | O41: =ROW() -> 41
O42: =ROW() -> 42
O43: =ROW() -> 43
O44: =ROW() -> 44
O45: =ROW() -> 45
B46: =CONCATENATE("This graph is from the Cost-Benefit page (worksheet tab) of the Balanced Transportation Analyzer (BTA) spreadsheet, as of ",TEXT(N1,"m/d/yyyy"),". To access the BTA, click on this link: <http://www.nnyn.org/kheelplan/BTA_1.1.xls>.") -> This graph is from the Cost-Benefit page (worksheet tab) of the Balanced Transportation Analyzer (BTA) spreadsheet, as of 9/15/2019. To access the BTA, click on this link: <http://www.nnyn.org/kheelplan/BTA_1.1.xls>. | O46: =ROW() -> 46
O47: =ROW() -> 47
O48: =ROW() -> 48
O49: =ROW() -> 49
B50: Results | D50: Clicking on hyperlinks shown will take you to section of this or other tabs where each item has been costed. | I50: Annual $, NYC only, millions | O50: =ROW() -> 50
I51: Values in parentheses denote loss | O51: =ROW() -> 51
B52: Toll & Fare Administration | I52: Revenues | J52: Expenditures | K52: Net | O52: =ROW() -> 52
B53: A. Cordon Administration | J53: =Results!K39 -> -115 | K53: =I53+J53 -> -115 | M53: Scenario being run now (to which the $ figures apply:) | O53: =ROW() -> 53
B54: B. Agency operating savings if eliminate subway and/or bus farebox | I54: =Results!K53 -> 0 | K54: =I54+J54 -> 0 | O54: =ROW() -> 54
B55: S U B T O T A L, Toll & Fare Administration | I55: =SUM(I53:I54) -> 0 | J55: =SUM(J53:J54) -> -115 | K55: =I55+J55 -> -115 | M55: =Results!$K$27 -> Fix NYC higher-range plan | O55: =ROW() -> 55
O56: =ROW() -> 56
B57: Economic, Social and Environmental Costs and Benefits | I57: Gains | J57: Losses | K57: Net Gain | O57: =ROW() -> 57
B58: A. Transit Riders' saved time due to faster traffic and/or service improvements | I58: =I59+I60 -> 1649.736473 | J58: =J59+J60 -> 0 | K58: =I58+J58 -> 1649.736473 | O58: =ROW() -> 58
B59: 1. Bus Riders | I59: =K151 -> 97.84288085 | J59: 0 | K59: =I59+J59 -> 97.84288085 | O59: =ROW() -> 59
B60: 2. Subway Riders | I60: =K177 -> 1551.893592 | J60: 0 | K60: =I60+J60 -> 1551.893592 | O60: =ROW() -> 60
B61: 3. Bus riders' addit'l saved time, from fare-free boarding | I61: =I204 -> 0 | J61: 0 | K61: =I61+J61 -> 0 | O61: =ROW() -> 61
B62: B. Motor vehicle users' saved time that was previously lost in traffic | H62: Components | O62: =ROW() -> 62
B63: 1. Trips into, in or through CBD | G63: =H63/$I$63 -> 0.6572790447 | H63: =K242 -> 1559.503847 | I63: =SUM(H63:H65) -> 2372.666312 | J63: 0 | K63: =I63+J63 -> 2372.666312 | O63: =ROW() -> 63
B64: 2. Trips that make no use of the CBD | G64: =H64/$I$63 -> 0.3381988788 | H64: =K256 -> 802.4330865 | O64: =ROW() -> 64
B65: 3. (Medallion) taxi riders' time saved via quicker hails | G65: =H65/$I$63 -> 0.004522076526 | H65: =K283 -> 10.72937863 | O65: =ROW() -> 65
B66: 4. *Lost* driver time from greater volumes on trips using (discounted) MTA bridges | J66: =K268 -> -25.17418074 | K66: =I66+J66 -> -25.17418074 | O66: =ROW() -> 66
B67: C. Mobility Changes (more transit trips, fewer m.v. trips) | I67: =K354+K359+K364 -> 0 | J67: =-SUM(K323:K339) -> -83.12012552 | K67: -83.12012552 | O67: =ROW() -> 67
B68: D. Reduction in crash damage costs | I68: =-K438 -> 331.730099 | K68: 331.730099 | O68: =ROW() -> 68
B69: E. Reduction in climate damage from lesser CO2 emissions | I69: =K456 -> 40.23561099 | K69: 40.23561099 | O69: =ROW() -> 69
B70: F. Reduction in ecological and national-security costs from lesser petroleum use | I70: =L532 -> 26.1586817 | K70: 26.1586817 | O70: =ROW() -> 70
B71: G. Reduction in air pollution health/enviro damages | I71: =-K567/1000 -> 198.5 | K71: 198.5 | O71: =ROW() -> 71
B72: H. Reduction in noise costs | I72: =-I604 -> 90 | K72: 90 | O72: =ROW() -> 72
B73: I. Longevity benefits of increased cycling | I73: =I647 -> 263 | K73: 263 | O73: =ROW() -> 73
B74: J. Longevity benefits of increased walking | I74: =I658 -> 263 | K74: =I74+J74 -> 263 | O74: =ROW() -> 74
B75: K. Taxi surcharge revenues applied to drivers' health plan | I75: =Results!L48 -> 0 | K75: =I75+J75 -> 0 | O75: =ROW() -> 75
B76: S U B T O T A L, Economic, Social and Environmental Costs and Benefits | I76: =I58+I63+SUM(I66:I75) -> 5235.027177 | J76: =J58+J63+SUM(J66:J75) -> -108.2943063 | K76: =I76+J76 -> 5126.73287 | O76: =ROW() -> 76
O77: =ROW() -> 77
B78: User Fees (Tolls and Fares) | O78: =ROW() -> 78
B79: A. Driver Tolls & Fees | I79: =-Results!K42 -> 0 | J79: =-Results!K38+Results!K43-Results!K66 -> -940 | K79: =I79+J79 -> -940 | O79: =ROW() -> 79
B80: B. Taxi Fares | J80: =-Results!K46-Results!K47 -> -385 | K80: -385 | O80: =ROW() -> 80
B81: C. UberLyft Fares | J81: =-Results!K49 -> -390 | K81: -390 | O81: =ROW() -> 81
B82: D. Transit Fares (farebox costs paid for more trips, less applicable discounts if any) | I82: =Results!L62+Results!L63 -> 20 | J82: =-Results!K51-Results!K52 -> -310 | K82: -290 | O82: =ROW() -> 82
B83: E. Manhattan Residents Parking Tax Payments | J83: =-Results!K66 -> 0 | K83: 0 | O83: =ROW() -> 83
B84: S U B T O T A L, User Fees | I84: =SUM(I79:I83) -> 20 | J84: =SUM(J79:J83) -> -2025 | K84: -2005 | O84: =ROW() -> 84
O85: =ROW() -> 85
B86: Surplus / Deficit | K86: =Results!L79+Results!L68 -> 829.99999 | O86: =ROW() -> 86
O87: =ROW() -> 87
B88: T O T A L | I88: =I55+I76+I84+I86 -> 5255.027177 | J88: =J55+J76+J84+J86 -> -2248.294306 | K88: =I88+J88+K86 -> 3836.73286 | O88: =ROW() -> 88
O89: =ROW() -> 89
D90: Attached array feeds into bar chart above. Quantities are pulled from cells above. | O90: =ROW() -> 90
F91: Toll & Fare Admin. | G91: Travelers' Amenity | H91: Wellness (Active Travel) | I91: Environ- ment | J91: Saved Time (Transit) | K91: Saved Time (Drivers) | L91: User Fees | M91: Unspent Revenue | O91: =ROW() -> 91
D92: Fewer Crashes | I92: =K68 -> 331.730099 | O92: =ROW() -> 92
D93: Less CO2 (Climate) | I93: =K69 -> 40.23561099 | O93: =ROW() -> 93
D94: Less Petroleum | I94: =K70 -> 26.1586817 | O94: =ROW() -> 94
D95: Healthier Air Quality | I95: =K71 -> 198.5 | O95: =ROW() -> 95
D96: Less Noise | I96: =K72 -> 90 | O96: =ROW() -> 96
D97: CBD Vehicle Trip Speeds | K97: =H63 -> 1559.503847 | O97: =ROW() -> 97
D98: Non-CBD Vehicle Trip Speeds | K98: =H64 -> 802.4330865 | O98: =ROW() -> 98
D99: Taxi Hail Time | K99: =H65 -> 10.72937863 | O99: =ROW() -> 99
D100: MTA Bridge Vehicle Speeds | K100: =J66 -> -25.17418074 | O100: =ROW() -> 100
D101: Bus Boarding Times | J101: =K61 -> 0 | O101: =ROW() -> 101
D102: Bus Travel Times | J102: =K59 -> 97.84288085 | O102: =ROW() -> 102
D103: Subway Travel Times | J103: =K60 -> 1551.893592 | O103: =ROW() -> 103
D104: Health from More Biking | H104: =I73 -> 263 | O104: =ROW() -> 104
D105: Health from More Walking | H105: =I74 -> 263 | O105: =ROW() -> 105
D106: Cabbies' Health Plan | H106: =I75 -> 0 | O106: =ROW() -> 106
D107: Commuter Rail Discounts | L107: =Results!L62 -> 0 | O107: =ROW() -> 107
D108: Express Bus Discounts | L108: =Results!L63 -> 20 | O108: =ROW() -> 108
D109: Auto & Truck Tolls | L109: =K79 -> -940 | O109: =ROW() -> 109
D110: Taxi Surcharges | L110: =K80 -> -385 | O110: =ROW() -> 110
D111: UberLyft Surcharges | L111: =K81 -> -390 | O111: =ROW() -> 111
D112: Transit Fares (more rides) | L112: =J82 -> -310 | O112: =ROW() -> 112
D113: Manhattanites Parking Tax | L113: =K83 -> 0 | O113: =ROW() -> 113
D114: Revenue Held in Reserve | M114: =K86 -> 829.99999 | O114: =ROW() -> 114
D115: Toll & Fare Admin. | F115: =K55 -> -115 | O115: =ROW() -> 115
D116: Travelers' Amenity | G116: =K67 -> -83.12012552 | O116: =ROW() -> 116
E117: Column Sums (check): | F117: =SUM(F92:F116) -> -115 | G117: -83.12012552 | H117: 526 | I117: 686.6243917 | J117: 1649.736473 | K117: 2347.492131 | L117: -2005 | M117: 829.99999 | N117: =SUM(F117:M117) -> 3836.73286 | O117: =ROW() -> 117
O118: =ROW() -> 118
B119: Derivations | O119: =ROW() -> 119
O120: =ROW() -> 120
B121: Agency Costs and Benefits are derived primarily in Revenue worksheet. The remainder of this worksheet derives ten classes of economic, social and environmental costs and benefits. | O121: =ROW() -> 121
O122: =ROW() -> 122
B123: Input assumptions underlying results in graph are shown in Policy Levers worksheet. Explanatory notes are omitted in most cases where values are derived from other worksheets. | O123: =ROW() -> 123
O124: =ROW() -> 124
B125: A. Transit-Riders' Saved Time | I125: Parameters that apply for all 'saved time' calculations | O125: =ROW() -> 125
I126: Ratio, weekend value of time to weekdays: | M126: 0.6 | O126: =ROW() -> 126
B127: Includes: | I127: Ratio, non-CBD value of time to in-CBD value: | M127: =2/3 -> 0.6666666667 | O127: =ROW() -> 127
B128: • Bus riders' savings from general traffic speed-up | I128: Komanoff assumptions | O128: =ROW() -> 128
B129: • Bus and subway riders' time gained from improved service | O129: =ROW() -> 129
B130: • Bus riders' time gained from fare-free boarding (if applicable) | O130: =ROW() -> 130
I131: Weekdays | J131: Weekends | K131: Combined | M131: Scenario being run now (to which the $ figures apply:) | O131: =ROW() -> 131
B132: 1. Bus riders' savings from general traffic speed-up and improved service | O132: =ROW() -> 132
B133: Number of bus passenger rides per year, with pricing (thousands) | I133: =Buses!I145*1000 -> 489359.2286 | J133: =Buses!J145*1000 -> 121085.474 | K133: =I133+J133 -> 610444.7026 | M133: =Results!$K$27 -> Fix NYC higher-range plan | O133: =ROW() -> 133
B134: =CONCATENATE("Both figures are from Buses worksheet, Row ",Buses!O145, ".") -> Both figures are from Buses worksheet, Row 145. | O134: =ROW() -> 134
B135: Time saved per ride due to increased transit spending + faster traffic (minutes) | I135: ='Sub v. Bus'!G42-'Sub v. Bus'!K42 -> 0.8472590604 | J135: =I135 -> 0.8472590604 | O135: =ROW() -> 135
B136: =CONCATENATE("Difference btwn 'before' & 'after' figures for duration of average bus ride, calculated and shown in 'Sub v. Bus' worksheet, Row ",'Sub v. Bus'!I42, ". Includes wait time.") -> Difference btwn 'before' & 'after' figures for duration of average bus ride, calculated and shown in 'Sub v. Bus' worksheet, Row 42. Includes wait time. | O136: =ROW() -> 136
B137: Hours saved per year due to increased transit spending + faster traffic | I137: =I133*I135*1000/60 -> 6910234.003 | J137: =J133*J135*1000/60 -> 1709846.082 | K137: =I137+J137 -> 8620080.085 | O137: =ROW() -> 137
B138: =CONCATENATE("Product of Rows ",O133, " and ",O135, ", times 1,000 and divided by 60.") -> Product of Rows 133 and 135, times 1,000 and divided by 60. | O138: =ROW() -> 138
B139: Average value of a bus rider's hour saved in the CBD, weekdays and weekends | I139: ='Value of Time'!$I$150 -> 16.23761819 | J139: ='Value of Time'!$N$150 -> 12.40835014 | O139: =ROW() -> 139
B140: Average value of a bus rider's hour saved outside CBD, weekdays and weekends | I140: ='Value of Time'!$I$152 -> 10.8250788 | J140: ='Value of Time'!$N$152 -> 8.272233429 | O140: =ROW() -> 140
B141: =CONCATENATE("Copied from 2x2 matrix in 'Value of Time' worksheet, Rows ",'Value of Time'!O150, " and ",'Value of Time'!O152, " and Columns I and N.") -> Copied from 2x2 matrix in 'Value of Time' worksheet, Rows 150 and 152 and Columns I and N. | O141: =ROW() -> 141
B142: Percent of bus riders' time savings realized inside CBD | I142: 0.2 | O142: =ROW() -> 142
B143: =CONCATENATE("Komanoff est., reflecting (i) Manhattan's roughly ",100*ROUND('Bus Routes'!K23,2), " percent share of NYC Transit bus ridership, as shown in 'Bus Routes' worksheet, Row ",'Bus Routes'!O23, "; (ii) fact that CBD has some, not all, Manhattan bus rider-miles; (iii) disproportionately high travel speed gains within CBD.") -> Komanoff est., reflecting (i) Manhattan's roughly 25 percent share of NYC Transit bus ridership, as shown in 'Bus Routes' worksheet, Row 23; (ii) fact that CBD has some, not all, Manhattan bus rider-miles; (iii) disproportionately high travel speed gains within CBD. | M143: $ due to faster traffic, not improved service | O143: =ROW() -> 143
O144: =ROW() -> 144
B145: Annual value of bus riders' saved time, inside CBD, millions | I145: =I$137*$I$142*I139/1000000 -> 22.44114827 | J145: =J$137*$I$142*J139/1000000 -> 4.243273776 | M145: ='Bus Boarding'!$J$160/('Bus Boarding'!$J$160-Transit!$I$381)*I145 -> 18.81658623 | N145: ='Bus Boarding'!$J$160/('Bus Boarding'!$J$160-Transit!$I$381)*J145 -> 3.557925198 | O145: =ROW() -> 145
B146: Annual value of bus riders' saved time, outside CBD, millions | I146: =I$137*(1-$I$142)*I140/1000000 -> 59.84306206 | J146: =J$137*(1-$I$142)*J140/1000000 -> 11.31539674 | M146: ='Bus Boarding'!$J$160/('Bus Boarding'!$J$160-Transit!$I$381)*I146 -> 50.17756328 | N146: ='Bus Boarding'!$J$160/('Bus Boarding'!$J$160-Transit!$I$381)*J146 -> 9.487800527 | O146: =ROW() -> 146
B147: =CONCATENATE("Each figure in matrix above is product of three elements: (i) Hours saved in Row ",O137, "; (ii) percent of time savings within CBD, or its complement, from Row ",O142, "; (iii) average value of saved time in Rows ",O139, " and ",O140, ".") -> Each figure in matrix above is product of three elements: (i) Hours saved in Row 137; (ii) percent of time savings within CBD, or its complement, from Row 142; (iii) average value of saved time in Rows 139 and 140. | M147: (in millions) | O147: =ROW() -> 147
O148: =ROW() -> 148
B149: =CONCATENATE("Matrix at right prorates matrix to left by ratio of the sources of bus riders' time savings: less traffic, as reflected in 'Bus Boarding' worksheet, Row ",'Bus Boarding'!AG160, " and 'Transit' worksheet, Row ",Transit!O376,".") -> Matrix at right prorates matrix to left by ratio of the sources of bus riders' time savings: less traffic, as reflected in 'Bus Boarding' worksheet, Row 160 and 'Transit' worksheet, Row 376. | O149: =ROW() -> 149
O150: =ROW() -> 150
B151: Annual value of bus riders' saved time | F151: =CONCATENATE("Sums of Rows ",O145, " and ",O146, ".") -> Sums of Rows 145 and 146. | I151: =I145+I146 -> 82.28421034 | J151: =J145+J146 -> 15.55867051 | K151: =I151+J151 -> 97.84288085 | L151: million | O151: =ROW() -> 151
B152: Of which following percent is attributable to on-board bus payment that speeds trips | K152: ='Bus Boarding'!J162 -> 0 | O152: =ROW() -> 152
B153: =CONCATENATE("Copied from 'Bus Boarding' tab, Row ",'Bus Boarding'!AG162, ".") -> Copied from 'Bus Boarding' tab, Row 162. | O153: =ROW() -> 153
B154: Annual value of bus riders' saved time attributable to speed-up of traffic | K154: =(1-K152)*K151 -> 97.84288085 | L154: million | O154: =ROW() -> 154
B155: =CONCATENATE("Product of Row ",O151, " and complement of Row ",O152, ". Result will enable us to avoid double-counting w/ overall motor vehicle time savings.") -> Product of Row 151 and complement of Row 152. Result will enable us to avoid double-counting w/ overall motor vehicle time savings. | O155: =ROW() -> 155
O156: =ROW() -> 156
B157: 2. Subway Riders' Saved Time from improved service | I157: Weekdays | J157: Weekends | K157: Combined | M157: Scenario being run now (to which the $ figures apply:) | O157: =ROW() -> 157
B158: Number of subway passenger rides per year, with pricing (thousands) | I158: =Subways!N508 -> 1475881.652 | J158: =Subways!N510 -> 323952.2609 | K158: =I158+J158 -> 1799833.913 | O158: =ROW() -> 158
B159: =CONCATENATE("Both figures are from Subways worksheet, Rows ",Subways!O508, " and ",Subways!O510, ".") -> Both figures are from Subways worksheet, Rows 508 and 510. | M159: =Results!$K$27 -> Fix NYC higher-range plan | O159: =ROW() -> 159
B160: Time saved per ride due to increased transit spending (minutes) | I160: ='Sub v. Bus'!F42-'Sub v. Bus'!J42 -> 2.945440459 | J160: =I160 -> 2.945440459 | O160: =ROW() -> 160
B161: =CONCATENATE("Difference btwn 'before' & 'after' figures for duration of average subway ride, calculated and shown in 'Sub v. Bus' worksheet, Row ",'Sub v. Bus'!I42, ". Includes wait time.") -> Difference btwn 'before' & 'after' figures for duration of average subway ride, calculated and shown in 'Sub v. Bus' worksheet, Row 42. Includes wait time. | O161: =ROW() -> 161
B162: Baseline time per ride (minutes) | I162: ='Sub v. Bus'!F42 -> 26.8002262 | J162: =I162 -> 26.8002262 | L162: Array at left, though useful, isn't used in Cost-Benefit calculations. | O162: =ROW() -> 162
B163: =CONCATENATE("'Before' figure for duration of average subway ride, calculated and shown in 'Sub v. Bus' worksheet, Row ",'Sub v. Bus'!I42, ". Includes wait time.") -> 'Before' figure for duration of average subway ride, calculated and shown in 'Sub v. Bus' worksheet, Row 42. Includes wait time. | O163: =ROW() -> 163
B164: % average improvement in subway speed (includes wait time) | I164: =I162/(I162-I160)-1 -> 0.1234737755 | J164: =I164 -> 0.1234737755 | K164: =(I158*I164+J158*J164)/K158 -> 0.1234737755 | O164: =ROW() -> 164
B165: =CONCATENATE("Algebra on Rows ",O160, " and ",O162, ".") -> Algebra on Rows 160 and 162. | O165: =ROW() -> 165
B166: Hours saved per year due to increased transit spending | I166: =I158*I160*1000/60 -> 72452025.5 | J166: =J158*J160*1000/60 -> 15903034.93 | K166: =I166+J166 -> 88355060.44 | O166: =ROW() -> 166
B167: =CONCATENATE("Product of Rows ",O158, " and ",O160, ", times 1,000 and divided by 60.") -> Product of Rows 158 and 160, times 1,000 and divided by 60. | O167: =ROW() -> 167
B168: Average value of a subway rider's hour saved in the CBD, weekdays and weekends | I168: ='Value of Time'!$G$150 -> 23.92549262 | J168: ='Value of Time'!$L$150 -> 18.28321656 | O168: =ROW() -> 168
B169: Average value of subway rider's hour saved outside CBD, weekdays and weekends | I169: ='Value of Time'!$G$152 -> 15.95032842 | J169: ='Value of Time'!$L$152 -> 12.18881104 | O169: =ROW() -> 169
B170: =CONCATENATE("Copied from 2x2 matrix in 'Value of Time' worksheet, Rows ",'Value of Time'!O150, " and ",'Value of Time'!O152, " and Columns G and L.") -> Copied from 2x2 matrix in 'Value of Time' worksheet, Rows 150 and 152 and Columns G and L. | O170: =ROW() -> 170
B171: Percent of subway riders' time savings realized inside CBD | I171: 0.3 | O171: =ROW() -> 171
B172: Komanoff assumption. | O172: =ROW() -> 172
B173: Annual value of subway riders' saved time, inside CBD | I173: =I$166*$I$171*I168/1000000 -> 520.0351205 | J173: =J$166*$I$171*J168/1000000 -> 87.2275895 | O173: =ROW() -> 173
B174: Annual value of subway riders' saved time, outside CBD | I174: =I$166*(1-$I$171)*I169/1000000 -> 808.9435208 | J174: =J$166*(1-$I$171)*J169/1000000 -> 135.6873614 | O174: =ROW() -> 174
B175: =CONCATENATE("Each figure in matrix is product of three elements: (i) Hours saved in Row ",O166, "; (ii) percent of time savings within CBD, or its complement, from Row ",O171, "; (iii) average value of saved time in Rows ",O168, " and ",O169, ".") -> Each figure in matrix is product of three elements: (i) Hours saved in Row 166; (ii) percent of time savings within CBD, or its complement, from Row 171; (iii) average value of saved time in Rows 168 and 169. | O175: =ROW() -> 175
O176: =ROW() -> 176
B177: Annual value of subway riders' saved time | F177: =CONCATENATE("Sums of Rows ",O173, " and ",O174, ".") -> Sums of Rows 173 and 174. | I177: =I173+I174 -> 1328.978641 | J177: =J173+J174 -> 222.9149509 | K177: =I177+J177 -> 1551.893592 | L177: million | O177: =ROW() -> 177
O178: =ROW() -> 178
B179: 3. Bus riders' time gained from fare-free boarding (if applicable) | M179: Scenario being run now (to which the $ figures apply:) | O179: =ROW() -> 179
B180: These savings are calculated on current ridership to avoid double-counting with mobility benefit of new trips. | O180: =ROW() -> 180
M181: =Results!$K$27 -> Fix NYC higher-range plan | O181: =ROW() -> 181
B182: Annual bus ridership (from Buses worksheet) | I182: =Buses!L35/1000 -> 602.620356 | J182: million | O182: =ROW() -> 182
B183: Average bus trip distance for commute trips (from VMT worksheet) | I183: =Transit!I301*(1+'Sub v. Bus'!G30) -> 2.904 | J183: miles | O183: =ROW() -> 183
B184: =CONCATENATE("Calculated by reducing average distance for NYC Transit bus-commute trips from Schaller, shown in 'Transit' worksheet, Row ",Transit!O301, ", by adjustment factor for all transit trips shown in 'Sub v. Bus' worksheet, Row ",'Sub v. Bus'!I30, ".") -> Calculated by reducing average distance for NYC Transit bus-commute trips from Schaller, shown in 'Transit' worksheet, Row 301, by adjustment factor for all transit trips shown in 'Sub v. Bus' worksheet, Row 30. | O184: =ROW() -> 184
O185: =ROW() -> 185
B186: Average bus speed | I186: =Transit!I307 -> 6.704685934 | J186: mph | O186: =ROW() -> 186
B187: =CONCATENATE("From NYC Transit data, as calculated in 'Transit' worksheet, Row ",Transit!O307, ".") -> From NYC Transit data, as calculated in 'Transit' worksheet, Row 307. | O187: =ROW() -> 187
B188: Average duration of a bus trip, currently | I188: =I183*60/I186 -> 25.98779447 | J188: minutes | O188: =ROW() -> 188
B189: Estimated average reduction in bus travel time from eliminating fare collection | I189: ='Bus Boarding'!J161 -> 0 | O189: =ROW() -> 189
B190: =CONCATENATE("From 'Bus Boarding' worksheet, Row ",'Bus Boarding'!AG161, ". Includes 20% reduction for conservatism.") -> From 'Bus Boarding' worksheet, Row 161. Includes 20% reduction for conservatism. | O190: =ROW() -> 190
B191: Average duration of a bus trip, after re-priced transit | I191: =I188*(1-I189) -> 25.98779447 | J191: minutes | O191: =ROW() -> 191
B192: Average savings in bus trip duration from eliminating fare collection | I192: =I188-I191 -> 0 | J192: minutes | O192: =ROW() -> 192
B193: Assumed waiting time (current), minutes | I193: =0.4*2.5+0.4*4.5+0.2*7 -> 4.2 | J193: minutes | O193: =ROW() -> 193
B194: NYC Transit "Bus: Wait Assessement" reports wait times within "acceptable limits" 81.7% of time during 7 a.m. - 7 p.m. for 2006 and first half 2007 (http://www.mta.info/mta/ind-perform/month/nyct-b-wait.htm). Criteria are 3 minutes max 7-9 a.m. and 4-7 p.m. (peak) and 5 minutes 9 a.m.-4 p.m (shoulder). We assume 40% of passengers are peak and average 2.5 minutes; 40% shoulder averaging 4.5 minutes; 20% off-peak averaging 7 minutes. | O194: =ROW() -> 194
O195: =ROW() -> 195
O196: =ROW() -> 196
O197: =ROW() -> 197
B198: =CONCATENATE("Reduxn in waiting time from eliminating fare collexn (Row ",O193, " x Row ",O189, ")") -> Reduxn in waiting time from eliminating fare collexn (Row 193 x Row 189) | I198: =I193*I189 -> 0 | J198: minutes | O198: =ROW() -> 198
B199: =CONCATENATE("Est'd total savings per trip from eliminating fare collexn (Row ",O192, " + Row ",O198, ")") -> Est'd total savings per trip from eliminating fare collexn (Row 192 + Row 198) | I199: =I192+I198 -> 0 | J199: minutes | O199: =ROW() -> 199
B200: Hours saved by bus riders from eliminating fare collection | I200: =I182*I199/60 -> 0 | J200: million | O200: =ROW() -> 200
... 489 more rows

Sheet Revenues
B1: Revenues | M1: ='Title Page'!G2 -> 2019-09-15 | R1: =ROW() -> 1
M2: =CONCATENATE("Scenario now being run: ",Results!$K$27, ".") -> Scenario now being run: Fix NYC higher-range plan. | R2: =ROW() -> 2
R3: =ROW() -> 3
B4: =CONCATENATE("See new section starting in Row ",R91, ", 'NY State Assembly Democratic Caucus Proposed Surcharges on For-Hire Vehicles (FHV's)' keyed to 3/14/2018 Streetsblog post.") -> See new section starting in Row 91, 'NY State Assembly Democratic Caucus Proposed Surcharges on For-Hire Vehicles (FHV's)' keyed to 3/14/2018 Streetsblog post. | R4: =ROW() -> 4
R5: =ROW() -> 5
B6: This worksheet collects estimates of new revenue streams from the traffic pricing plan selected in Results tab, based on policies and parameters inputted in Policy Levers tab: cordon tolling, taxi & Uber surcharges, changes (if any) in transit fares and possible "windfalls" from greater transit use. Calculations of these impacts are performed in other worksheets. They are simply collected and combined here. | R6: =ROW() -> 6
R7: =ROW() -> 7
R8: =ROW() -> 8
R9: =ROW() -> 9
B10: Reductions in revenues from lowering existing tolls on NYC bridges owned and operated by the MTA (if that policy is chosen) are calculated in MTA Crossings. | R10: =ROW() -> 10
R11: =ROW() -> 11
B12: The worksheet has seven parts, not including summary following directly below. Click on links one screen below to access any of them. | R12: =ROW() -> 12
R13: =ROW() -> 13
B14: =CONCATENATE("Piechart below at right includes new revenue streams only. Revenue reductions from lowering existing tolls on MTA bridges are shown in MTA Crossings tab (Rows ",'MTA Crossings'!AL160, "-",'MTA Crossings'!AL280, ") and in graph near top of 'Results' tab. Reductions from discounting some commuter rail fares are reflected in 'Results' tab (Rows ",Results!N61, "-",Results!N62, ").") -> Piechart below at right includes new revenue streams only. Revenue reductions from lowering existing tolls on MTA bridges are shown in MTA Crossings tab (Rows 160-280) and in graph near top of 'Results' tab. Reductions from discounting some commuter rail fares are reflected in 'Results' tab (Rows 61-62). | R14: =ROW() -> 14
R15: =ROW() -> 15
R16: =ROW() -> 16
B17: New Revenues: Summary (figures do not include toll admin or possible MTA bridge discounts) | H17: Amount in $ Millions | I17: % of Category Total | J17: % of Grand Total | R17: =ROW() -> 17
R18: =ROW() -> 18
B19: Cordon Toll Revenue (includes applicable revenue from inbound QBB Upper Roadway) | G19: Chart Labels | R19: =ROW() -> 19
H20: =Results!K38 -> 940 | J20: =H20/$H$37 -> 0.4641975309 | R20: =ROW() -> 20
B21: $$ from crossing into Manhattan CBD on E River bridge | F21: Toll E River bridges | H21: =0.5*ROUND(2*I21*$H$20,-1) -> 440 | I21: =IF('Policy Levers'!K46="CORDON",Approaches!N232,1) -> 0.4704889542 | J21: =H21/$H$37 -> 0.2172839506 | R21: =ROW() -> 21
B22: $$ from crossing 60th Streeet in Manhattan | F22: Toll 60th St | H22: =0.5*ROUND(2*I22*$H$20,-1) -> 500 | I22: =IF('Policy Levers'!K46="CORDON",Approaches!I232,0) -> 0.5295110458 | J22: =H22/$H$37 -> 0.2469135802 | R22: =ROW() -> 22
B23: $$ from additional Hudson River tunnel tolls | F23: Surchrg Holland/Lincoln Tunnels | H23: =H20-SUM(H21:H22) -> 0 | I23: =1-SUM(I21:I22) -> 0 | J23: =H23/$H$37 -> 0 | R23: =ROW() -> 23
R24: =ROW() -> 24
B25: MTA windfalls | H25: =H26+H27 -> 310 | J25: =H25/$H$37 -> 0.1530864198 | R25: =ROW() -> 25
B26: from increased use of bridges whose tolls are reduced | F26: MTA bridges (rise in volume) | H26: =Results!K43 -> 0 | I26: =H26/H$25 -> 0 | J26: =H26/$H$37 -> 0 | R26: =ROW() -> 26
B27: farebox gain: trips priced off roads + attr'd by imprvd service | F27: MTA farebox (higher ridership) | H27: =Results!K54 -> 310 | I27: =H27/H$25 -> 1 | J27: =H27/$H$37 -> 0.1530864198 | R27: =ROW() -> 27
R28: =ROW() -> 28
B29: FHV (for-hire vehicle) Surcharges | H29: =SUM(H30:H32) -> 775 | J29: =H29/$H$37 -> 0.3827160494 | R29: =ROW() -> 29
B30: New Surcharge(s) on Medallion Taxis | F30: New taxi surcharge | H30: =Results!K46 -> 385 | I30: =H30/H$29 -> 0.4967741935 | J30: =H30/$H$37 -> 0.1901234568 | R30: =ROW() -> 30
B31: Surcharge(s) on Ubers + other TNC's | F31: UberLyft surcharge | H31: =Results!K49 -> 390 | I31: =H31/H$29 -> 0.5032258065 | J31: =H31/$H$37 -> 0.1925925926 | R31: =ROW() -> 31
B32: Change in "Ravitch" Taxi Surcharge | F32: ∆ in Ravitch taxi surcharge $$ | H32: =Results!K47 -> 0 | I32: =H32/H$29 -> 0 | J32: =H32/$H$37 -> 0 | R32: =ROW() -> 32
R33: =ROW() -> 33
B34: Miscellany | H34: =H35+H36 -> 0 | J34: =H34/$H$37 -> 0 | R34: =ROW() -> 34
B35: Tax $ from zeroing Manhattanites' parking break | F35: Eliminate Manhattan residents' parking tax exemption | H35: =Parking!I484/1000000*IF('Policy Levers'!K119="YES",1,0) -> 0 | I35: NA | J35: =H35/$H$37 -> 0 | R35: =ROW() -> 35
R36: =ROW() -> 36
B37: Grand Total | H37: =H20+H25+H29+H34 -> 2025 | I37: =H37/$H$37 -> 1 | J37: =H37/$H$37 -> 1 | R37: =ROW() -> 37
R38: =ROW() -> 38
I39: MTA Annual Revenues (this box is not related to any pricing plan; it simply collects current revenue figures) | R39: =ROW() -> 39
B40: Links to Speed Navigation Around This Worksheet | I40: Subways | L40: =Subways!N12 -> 3433.554 | M40: 2016 | N40: =CONCATENATE("'Subways' tab, Cell L",Subways!O27, ".") -> 'Subways' tab, Cell L27. | R40: =ROW(R40) -> 40
B41: A. Traffic-Pricing Revenues | I41: Buses | L41: =Buses!L41 -> 952.363 | M41: 2016 | N41: =CONCATENATE("'Buses' tab, Cell L",Buses!O41, ".") -> 'Buses' tab, Cell L41. | R41: =ROW() -> 41
B42: B. Surcharges on For-Hire Vehicles (FHV's) | I42: LIRR | L42: =F242/1000000 -> 730.069 | M42: 2016 | N42: =CONCATENATE("'Revenues' tab, Cell F",$R$242, ".") -> 'Revenues' tab, Cell F242. | R42: =ROW() -> 42
B43: C. Transit Revenues | I43: Metro-North | L43: =H242/1000000 -> 736.985 | M43: 2016 | N43: =CONCATENATE("'Revenues' tab, Cell H",$R$242, ".") -> 'Revenues' tab, Cell H242. | R43: =ROW() -> 43
B44: D. MTA Bridges & Tunnels | I44: TBTA | L44: ='MTA Crossings'!R157 -> 2015.205308 | M44: 2017, proj. | N44: =CONCATENATE("'MTA Crossings' tab, Cell R",'MTA Crossings'!AL157, ".") -> 'MTA Crossings' tab, Cell R157. | R44: =ROW() -> 44
B45: E. Port Authority Crossings | I45: MTA Bus Co. (express buses) | L45: =I194/1000 -> 215.63 | M45: 2014 | N45: =CONCATENATE("'Revenues' tab, Cell I",$R$194, ".") -> 'Revenues' tab, Cell I194. | R45: =ROW() -> 45
B46: F. MTA Bus Company | I46: T O T A L | L46: =SUM(L40:L45) -> 8083.806308 | R46: =ROW() -> 46
B47: G. Commuter Railroads (LIRR & Metro-North) | R47: =ROW() -> 47
R48: =ROW() -> 48
R49: =ROW() -> 49
B50: A. Cordon Toll Revenues | R50: =ROW() -> 50
R51: =ROW() -> 51
B52: Cordon Charge to Drive into Manhattan CBD | R52: =ROW() -> 52
R53: =ROW() -> 53
B54: Figures include any applicable cordon tolls charged to FHVs (yellow cabs, Uber, et al). FHV surcharges (if any) are in yellow and purple areas at right. They are based on 2015 traffic levels + 2017 baseline tolls, gas and parking costs, etc. | I54: Weekdays | J54: Weekends | K54: Total | R54: =ROW() -> 54
R55: =ROW() -> 55
I56: ='Motor Vs'!N1087 -> 723.8586967 | J56: ='Motor Vs Weekends'!N1087 -> 215.8333514 | K56: =I56+J56 -> 939.6920481 | R56: =ROW() -> 56
R57: =ROW() -> 57
B58: =CONCATENATE("Figures are derived in Motor Vs and Motor Vs Weekends worksheets, Rows ",'Motor Vs'!O1087, ".") -> Figures are derived in Motor Vs and Motor Vs Weekends worksheets, Rows 1087. | I58: Figures are in millions of dollars | R58: =ROW() -> 58
R59: =ROW() -> 59
R60: =ROW() -> 60
B61: B. Surcharges on For-Hire Vehicles (FHV's) | R61: =ROW() -> 61
R62: =ROW() -> 62
B63: New Surcharges on Medallion taxi fares and on UberLyft and other app-based FHV fares (based on 2017 taxi ridership & fare structure) | R63: =ROW() -> 63
R64: =ROW() -> 64
H65: =CONCATENATE("Plan being modeled that gives rise to figures in table is ",Results!K27, ".") -> Plan being modeled that gives rise to figures in table is Fix NYC higher-range plan. | R65: =ROW() -> 65
B66: Figures include any applicable cordon tolls charged to FHVs (yellow cabs, Uber, et al). These would be included in cordon tolls above. | H66: Yellow cabs | L66: UberLyft and other app-based FHV's | P66: FHV Totals | R66: =ROW() -> 66
H67: Weekday peak | I67: Weekday off-pk | J67: Weekends | K67: Total | L67: Weekday peak | M67: Weekday off-pk | N67: Weekends | O67: Total | P67: Total | R67: =ROW() -> 67
H68: Annual surcharge revenues directly below are in millions of dollars. | R68: =ROW() -> 68
B69: Annual surcharge $$, millions (apply only to trips in CBD or somewhat larger "taxi zone") | H69: =Taxis!J177*weekday_per_yr/1000000 -> 233.5 | I69: =Taxis!K177*weekday_per_yr/1000000 -> 85.275 | J69: =Taxis!M177*wkend_per_yr/1000000 -> 68.5975 | K69: =SUM(H69:J69) -> 387.3725 | L69: =UberLyft!J322*weekday_per_yr/1000000 -> 212.45 | M69: =UberLyft!K322*weekday_per_yr/1000000 -> 90.55 | N69: =UberLyft!M322*wkend_per_yr/1000000 -> 87.055 | O69: =SUM(L69:N69) -> 390.055 | P69: =K69+O69 -> 777.4275 | R69: =ROW() -> 69
B70: =CONCATENATE("Figures are calculated from 'Taxi' tab Row ",Taxis!O177, " and 'UberLyft' Row ",UberLyft!O296, ".") -> Figures are calculated from 'Taxi' tab Row 177 and 'UberLyft' Row 296. | H70: Next 3 rows are annual trips in millions: baseline, then "with pricing," then trips that are surcharged. | R70: =ROW() -> 70
B71: Annual trips, baseline, millions (all trips, not just trips in CBD or taxi zone) | H71: =Taxis!J69*weekday_per_yr/1000000 -> 52.36626014 | I71: =Taxis!K69*weekday_per_yr/1000000 -> 23.87027502 | J71: =Taxis!M69*wkend_per_yr/1000000 -> 32.3209201 | K71: =SUM(H71:J71) -> 108.5574553 | L71: =UberLyft!J216*weekday_per_yr/1000000 -> 92.75 | M71: =UberLyft!K216*weekday_per_yr/1000000 -> 52.42091394 | N71: =UberLyft!M216*wkend_per_yr/1000000 -> 78.18205493 | O71: =SUM(L71:N71) -> 223.3529689 | P71: =K71+O71 -> 331.9104241 | R71: =ROW() -> 71
B72: =CONCATENATE("Figures are copied from 'Taxi' tab Row ",Taxis!O69, " and 'UberLyft' Row ",UberLyft!O216, ".") -> Figures are copied from 'Taxi' tab Row 69 and 'UberLyft' Row 216. | R72: =ROW() -> 72
B73: Annual trips after pricing has been implemented (millions) | H73: =Taxis!J159*weekday_per_yr/1000000 -> 53 | I73: =Taxis!K159*weekday_per_yr/1000000 -> 22.25 | J73: =Taxis!M159*wkend_per_yr/1000000 -> 30.9695 | K73: =SUM(H73:J73) -> 106.2195 | L73: =UberLyft!J304*weekday_per_yr/1000000 -> 95.9 | M73: =UberLyft!K304*weekday_per_yr/1000000 -> 51.625 | N73: =UberLyft!M304*wkend_per_yr/1000000 -> 79.557 | O73: =SUM(L73:N73) -> 227.082 | P73: =K73+O73 -> 333.3015 | R73: =ROW() -> 73
B74: =CONCATENATE("Figures are from 'Taxi' tab Row ",Taxis!O159, " & 'UberLyft' Row ",UberLyft!O316, " and denote projected trips with pricing imposed.") -> Figures are from 'Taxi' tab Row 159 & 'UberLyft' Row 316 and denote projected trips with pricing imposed. | R74: =ROW() -> 74
B75: Annual trips w/ pricing that transect taxi zone (millions) | H75: =Taxis!$K$261*Revenues!H73 -> 50.1115 | I75: =Taxis!$K$261*Revenues!I73 -> 21.037375 | J75: =Taxis!$K$261*Revenues!J73 -> 29.28166225 | K75: =SUM(H75:J75) -> 100.4305373 | L75: =UberLyft!$K$400*L73 -> 51.44541141 | M75: =UberLyft!$K$400*M73 -> 27.69415395 | N75: =UberLyft!$K$400*N73 -> 42.67823353 | O75: =SUM(L75:N75) -> 121.8177989 | P75: =K75+O75 -> 222.2483361 | R75: =ROW() -> 75
B76: =CONCATENATE("Figures multiply % of yellow and UberLyft trips that touch current/old taxi zone (to W 110 St & E 96 St) from 'Taxi' tab Row ",Taxis!O261, " and 'UberLyft' Row ",UberLyft!O319, " by annual trips w/ baseline in Row ",R73, ".") -> Figures multiply % of yellow and UberLyft trips that touch current/old taxi zone (to W 110 St & E 96 St) from 'Taxi' tab Row 261 and 'UberLyft' Row 319 by annual trips w/ baseline in Row 73. | R76: =ROW() -> 76
H77: Concluding row shows per-trip surcharge, averaged over trips being surcharged (rather than all trips). | R77: =ROW() -> 77
B78: Average surcharge (averaged over surcharged trips rather than over all trips) | H78: =H69/H75 -> 4.659609072 | I78: 4.053500021 | J78: 2.342677797 | K78: 3.857118667 | L78: 4.129620002 | M78: 3.269643122 | N78: 2.039798576 | O78: 3.201954095 | P78: 3.498012689 | R78: =ROW() -> 78
R79: =ROW() -> 79
R80: =ROW() -> 80
B81: "Ravitch" surcharge | H81: Existing Surcharges on Medallion Fares | R81: =ROW() -> 81
H82: ("Ravitch" Surcharge, enacted 2009) | R82: =ROW() -> 82
B83: There's also the "Ravitch" surcharge ─ the 50 cent a ride fee that, since 2009, the MTA has collected on all yellow taxi trips. | H83: Trips/yr, millions | I83: Surcharge per trip | J83: $$/yr, millions | R83: =ROW() -> 83
R84: =ROW() -> 84
H85: =K71 -> 108.5574553 | I85: ='Taxi Farecalcs'!$G$24 -> 0.5 | J85: =H85*I85 -> 54.27872763 | R85: =ROW() -> 85
B86: Box at right shows change in annual revenue tied directly to projected change in number of yellow taxi trips. | H86: =K73 -> 106.2195 | I86: ='Taxi Farecalcs'!$G$24 -> 0.5 | J86: =H86*I86 -> 53.10975 | R86: =ROW() -> 86
H87: Change from Baseline (millions) | R87: =ROW() -> 87
H88: =H86-H85 -> -2.337955255 | I88: ='Taxi Farecalcs'!$G$24 -> 0.5 | J88: =J86-J85 -> -1.168977627 | R88: =ROW() -> 88
R89: =ROW() -> 89
R90: =ROW() -> 90
B91: B1. NY State Assembly Democratic Caucus Proposed Surcharges on For-Hire Vehicles (FHV's) | J91: This section was added on 14-March-2018 to support Komanoff's Streetsblog post on same day. | R91: =ROW() -> 91
R92: =ROW() -> 92
B93: Revenue components | R93: =ROW() -> 93
R94: =ROW() -> 94
F95: Total trips, weekdays | G95: Total trips, wknds/holidays | H95: Weekday trips per year | I95: Wknd/holiday trips per year | J95: % wkday "relate to" taxi zone | K95: % wkday don't relate taxi zone | L95: % wknd relate to taxi zone | M95: % wknd don't relate taxi zone | N95: # wkday relate to taxi zone | O95: # wkday don't relate taxi zone | P95: # wknd relate to taxi zone | Q95: # wknd don't relate taxi zone | R95: =ROW() -> 95
R96: =ROW() -> 96
B97: Ubers + Lyfts + other app-based vehicles + black cars + limo's | R97: =ROW() -> 97
F98: =UberLyft!J62 -> 489713 | G98: =UberLyft!K62 -> 518180 | H98: =F98*weekday_per_yr -> 122428250 | I98: =G98*wkend_per_yr -> 59590700 | J98: =UberLyft!K400 -> 0.5364485027 | K98: =1-J98 -> 0.4635514973 | L98: =J98*2/3 -> 0.3576323352 | M98: =1-L98 -> 0.6423676648 | N98: =ROUND($H$98*J98,-3) -> 65676000 | O98: =ROUND($H$98*K98,-3) -> 56752000 | P98: =ROUND($I$98*L98,-3) -> 21312000 | Q98: =ROUND($I$98*M98,-3) -> 38279000 | R98: =ROW() -> 98
B99: =CONCATENATE("Weekday & weekend daily volumes are from 'UberLyft' worksheet, Row ",UberLyft!O61,". Source is Todd Pendleton, HNTB. Conversion to annual data multiplies those figures by # days from 'Constants' worksheet.") -> Weekday & weekend daily volumes are from 'UberLyft' worksheet, Row 61. Source is Todd Pendleton, HNTB. Conversion to annual data multiplies those figures by # days from 'Constants' worksheet. | R99: =ROW() -> 99
R100: =ROW() -> 100
J101: # trips relate to taxi zone | K101: # trips don't relate taxi zone | L101: $ / trip that relate to zone | M101: $ / trip that don't relate to zone | N101: $ / year trips relate to zone | O101: $ / year trips don't relate | P101: $ / year all Uber/Lyft/etc. | R101: =ROW() -> 101
R102: =ROW() -> 102
R103: =ROW() -> 103
J104: =N98+P98 -> 86988000 | K104: =O98+Q98 -> 95031000 | L104: 2.75 | M104: 1 | N104: =ROUND(J104*L104,-3) -> 239217000 | O104: =ROUND(K104*M104,-3) -> 95031000 | P104: =ROUND(N104+O104,-6) -> 334000000 | R104: =ROW() -> 104
R105: =ROW() -> 105
K106: Total trips 365-d average | L106: Total trips per year | M106: % that "relate to" taxi zone | N106: # trips relate to taxi zone | O106: $ / trip that relate to zone | P106: $ / year trips relate to zone | R106: =ROW() -> 106
B107: Yellow cabs | R107: =ROW() -> 107
B108: =CONCATENATE("Daily average is from 'Taxis' worksheet, Row ",Taxis!O59,"Percentage that relate to taxi zone is from same tab, Row ",Taxis!O261,".") -> Daily average is from 'Taxis' worksheet, Row 59Percentage that relate to taxi zone is from same tab, Row 261. | R108: =ROW() -> 108
K109: =Taxis!N63 -> 298008.8333 | L109: =K109*365 -> 108773224.2 | M109: =Taxis!K261 -> 0.9455 | N109: =ROUND(M109*L109,-3) -> 102845000 | O109: 0.5 | P109: =ROUND(O109*N109,-6) -> 51000000 | R109: =ROW() -> 109
R110: =ROW() -> 110
B111: All FHV's | C111: ………………………………………………………………………………………………………………………………………………………………………………………………………………………………………………………. | P111: =P104+P109 -> 385000000 | R111: =ROW() -> 111
R112: =ROW() -> 112
E113: All figures in box are annual, in millions of dollars, and employ 2016 ridership and revenue. (MTA near-term transit projections have been quite accurate in recent years.) | R113: =ROW() -> 113
B114: C. NYC Transit Revenues | R114: =ROW() -> 114
R115: =ROW() -> 115
E116: NYC Transit Revenues | R116: =ROW() -> 116
R117: =ROW() -> 117
E118: Subways | H118: Bus | K118: Subways + Bus | R118: =ROW() -> 118
R119: =ROW() -> 119
E120: Weekdays | F120: Weekends | G120: Total | H120: Weekdays | I120: Weekends | J120: Total | K120: Weekdays | L120: Weekends | M120: Total | R120: =ROW() -> 120
R121: =ROW() -> 121
B122: Rev. w/ Current Pricing | E122: =Subways!N412/1000 -> 2726.828786 | F122: =Subways!N443/1000 -> 617.4412212 | G122: =E122+F122 -> 3344.270007 | H122: =Buses!I155 -> 763.5031079 | I122: =Buses!J155 -> 188.8598921 | J122: =H122+I122 -> 952.363 | K122: =E122+H122 -> 3490.331894 | L122: =F122+I122 -> 806.3011133 | M122: =G122+J122 -> 4296.633007 | R122: =ROW() -> 122
R123: =ROW() -> 123
B124: Revenue with New Pricing Plan | E124: =Subways!N424/1000 -> 2987.731434 | F124: =Subways!N497/1000 -> 657.5056985 | G124: =E124+F124 -> 3645.237132 | H124: =Buses!I178 -> 773.3685368 | I124: =Buses!J178 -> 191.359824 | J124: =H124+I124 -> 964.7283609 | K124: =E124+H124 -> 3761.09997 | L124: =F124+I124 -> 848.8655226 | M124: =G124+J124 -> 4609.965493 | R124: =ROW() -> 124
R125: =ROW() -> 125
B126: Revenue Increase (decrease) | E126: =E124-E122 -> 260.9026476 | F126: 40.06447734 | G126: 300.967125 | H126: 9.865428913 | I126: 2.499931961 | J126: 12.36536087 | K126: 270.7680766 | L126: 42.5644093 | M126: 313.3324859 | R126: =ROW() -> 126
R127: =ROW() -> 127
E128: =CONCATENATE("Subways revenue data are shown and/or derived in Rows ",Subways!O412, " through ",Subways!O497, " of 'Subways' worksheet.") -> Subways revenue data are shown and/or derived in Rows 412 through 497 of 'Subways' worksheet. | R128: =ROW() -> 128
E129: =CONCATENATE("Bus revenues are from Rows ",Buses!O155, " and ",Buses!O178, " of 'Buses' worksheet.") -> Bus revenues are from Rows 155 and 178 of 'Buses' worksheet. | R129: =ROW() -> 129
R130: =ROW() -> 130
B131: Predicted % change in usage resulting from new pricing plan | E131: =CONCATENATE("From 'Results' tab, Row ",Results!N143, ", which in turn is from 'Subways' tab, Row ",Subways!O512, ".") -> From 'Results' tab, Row 143, which in turn is from 'Subways' tab, Row 512. | G131: =Results!I140 -> 0.09231922064 | H131: =CONCATENATE("From 'Results' worksheet, Row ",Results!N149, ", which in turn is from 'Buses', Row ",Buses!O136, ".") -> From 'Results' worksheet, Row 149, which in turn is from 'Buses', Row 136. | J131: =Results!I149 -> 0.01298387366 | R131: =ROW() -> 131
R132: =ROW() -> 132
R133: =ROW() -> 133
R134: =ROW() -> 134
B135: Revenue attributable to usage change ($ millions) | E135: =CONCATENATE("Derived algebraically from Rows ",R135, " and ",R141, ".") -> Derived algebraically from Rows 135 and 141. | G135: =G124*(1-1/(1+G131)) -> 308.083429 | H135: =CONCATENATE("Derived algebraically from Rows ",R135, " and ",R141, ".") -> Derived algebraically from Rows 135 and 141. | J135: =J124*(1-1/(1+J131)) -> 12.36536087 | M135: =G135+J135 -> 320.4487899 | R135: =ROW() -> 135
G136: million | J136: million | M136: million | R136: =ROW() -> 136
R137: =ROW() -> 137
R138: =ROW() -> 138
B139: D. MTA Bridges & Tunnels | E139: This section has been off-loaded to a stand-alone tab, MTA Crossings. Clicking link immediately to right will take you there. | M139: MTA Crossings | R139: =ROW() -> 139
R140: =ROW() -> 140
B141: E. Port Authority Crossings | R141: =ROW() -> 141
R142: =ROW() -> 142
B143: This section, and the BTA overall, reflects PA Hudson River crossings toll rates instituted Dec. 2, 2012. A new set of toll hikes, effective Dec. 1, 2013, is shown at right but has not been incorporated into the model -- a matter of little consequence, insofar as the BTA is intended to model toll plans that leave the PA tolls unaffected. Note that the Complete "2012-2015" toll schedule is available at <http://www.panynj.gov/bridges-tunnels/tolls.html>. | R143: =ROW() -> 143
R144: =ROW() -> 144
R145: =ROW() -> 145
R146: =ROW() -> 146
B147: Following are excerpts. | R147: =ROW() -> 147
B148: PEAK HOURS: Weekdays: 6-10 a.m., 4-8 p.m., Sat. & Sun.: 11 a.m.-9 p.m. OFF-PEAK HOURS: All Other Times. | R148: =ROW() -> 148
B149: OVERNIGHT HOURS for Trucks: Sundays-Thursdays, 10 p.m. until 6 a.m. the following morning | R149: =ROW() -> 149
R150: =ROW() -> 150
E151: From https://www.panynj.gov/bridges-tunnels/tolls.html (inputted 12-Sept-2017; reconfirmed 31-Jan-2019) | R151: =ROW() -> 151 | T151: In effect during 2018 (accessed 19-Feb-2018) | U151: Dec 1, 2013 - Dec 7, 2014 | V151: Dec 2, 2012 - Nov 30, 2013 | W151: Sept 18, 2011 - Dec 1, 2012
G152: E-ZPass Off-Peak | H152: E-ZPass Peak | I152: E-ZP Trucks Overnight | J152: Cash Toll All Hours | R152: =ROW() -> 152 | S152: E-Zpass (peak)
B153: Vehicle Type | E153: Class | F153: # Axles | R153: =ROW() -> 153 | S153: Car | T153: 12.5 | U153: 11 | V153: 10.25 | W153: 9.5
B154: Cars | E154: 1 | F154: 2 | G154: 10.5 | H154: 12.5 | I154: NA | J154: 15 | R154: =ROW() -> 154 | S154: Motorcycle | T154: 11.5 | U154: 10 | V154: 9.25 | W154: 8.5
B155: Trucks | E155: 3 | F155: 3 | G155: 51 | H155: 54 | I155: 46.5 | J155: 63 | R155: =ROW() -> 155 | S155: Truck (2 axles) | T155: 36 | U155: 28 | V155: 24 | W155: 20
R156: =ROW() -> 156 | S156: Truck (3 axles) | T156: 54 | U156: 42 | V156: 36 | W156: 30
B157: Volumes and Revenue | E157: Allocable % | R157: =ROW() -> 157 | S157: Truck (4 axles) | T157: 72 | U157: 56 | V157: 48 | W157: 40
F158: 2018 Toll Volumes (Eastbound Traffic) | H158: Projected 2019 Gross Operating Revenue | R158: =ROW() -> 158 | S158: Truck (5 axles) | T158: 90 | U158: 70 | V158: 60 | W158: 50
F160: Annual | G160: Weekday
B161: George Washington Bridge | E161: 0.06 | H161: 805418000 | R161: =ROW() -> 161 | S161: Truck (6 axles) | T161: 108 | U161: 84 | V161: 72 | W161: 60
B162: Holland Tunnel | H162: 193031000 | R162: =ROW() -> 162 | S162: E-Zpass (off-peak)
B163: Lincoln Tunnel | H163: 266635000 | R163: =ROW() -> 163 | S163: Car | T163: 10.5 | U163: 9 | V163: 8.25 | W163: 7.5
B164: Bayonne Bridge | H164: 28085000 | R164: =ROW() -> 164 | S164: Motorcycle | T164: 9.5 | U164: 8 | V164: 7.25 | W164: 6.5
B165: Goethals Bridge | H165: 212065000 | R165: =ROW() -> 165 | S165: Truck (2 axles) | T165: 34 | U165: 26 | V165: 22 | W165: 18
B166: Outerbridge Crossing | H166: 182328000 | R166: =ROW() -> 166 | S166: Truck (3 axles) | T166: 51 | U166: 39 | V166: 33 | W166: 27
B167: P O R T T O T A L, | F167: =SUM(F161:F166) -> 0 | H167: =SUM(H161:H166) -> 1687562000 | R167: =ROW() -> 167 | S167: Truck (4 axles) | T167: 68 | U167: 52 | V167: 44 | W167: 36
B168: Source: Annual volumes were last taken from PA 2013 Annual Report, Comprehensive Annual Financial Report for the Year Ended December 31, 2013, but were removed as obsolete. Weekday volumes divided annuals by annual/weekday ratio in Constants worksheet. Annual revenues are from Appendix 2B, "Information on Port Authority Operations," from a PA Excel spreadsheet, https://corpinfo.panynj.gov/files/uploads/documents/financial-information/budget-capital-plan/2019BB_ALLSCHEDULES_xPqongT.xlsx, downloaded 31-Jan-2019. GWB revenue figure is for "G.W. Bridge & Bus Station." | R168: =ROW() -> 168 | S168: Truck (5 axles) | T168: 85 | U168: 65 | V168: 55 | W168: 45
R169: =ROW() -> 169 | S169: Truck (6 axles) | T169: 102 | U169: 78 | V169: 66 | W169: 54
R170: =ROW() -> 170 | S170: Cash
R171: =ROW() -> 171 | S171: Car | T171: 15 | U171: 13 | V171: 13 | W171: 12
R172: =ROW() -> 172 | S172: Motorcycle | T172: 15 | U172: 13 | V172: 12 | W172: 11
M173: This figure is used to estimate PANYNJ baseline toll revenues from trips into the CBD. | O173: This figure is used to est. PA's revenue loss from fewer trips to CBD with cordon toll. | R173: =ROW() -> 173 | S173: Truck (2 axles) | T173: 42 | U173: 34 | V173: 30 | W173: 26
B174: PANYNJ Estimated Lost Revenues from Implementing Congestion Pricing (uses 2019 projected revenue) | R174: =ROW() -> 174 | S174: Truck (3 axles) | T174: 63 | U174: 51 | V174: 45 | W174: 39
R175: =ROW() -> 175 | S175: Truck (4 axles) | T175: 84 | U175: 68 | V175: 60 | W175: 52
B176: To the extent that the cordon toll raises existing trans-Hudson tolls, the Port Authority stands to lose revenues from its current Holland and Lincoln Tunnel tolls, as drivers cut back on CBD trips due to the higher toll. The same will apply to the share of GWB crossings that would have eventually entered the CBD. | R176: =ROW() -> 176 | S176: Truck (5 axles) | T176: 105 | U176: 85 | V176: 75 | W176: 65
R177: =ROW() -> 177 | S177: Truck (6 axles) | T177: 126 | U177: 102 | V177: 90 | W177: 78
R178: =ROW() -> 178 | S178: 2018 truck rates are from http://www.panynj.gov/truckers-resources/index.html.
R179: =ROW() -> 179 | S179: 2018 auto and m/c rates are from http://www.panynj.gov/bridges-tunnels/tolls.html
G180: Weekdays (revenue in $000) | J180: Weekends (revenue in $000) | M180: Weighted Average ($000) | P180: Total | R180: =ROW() -> 180
G181: Lincoln | H181: Holland | I181: GW Bridge | J181: Lincoln | K181: Holland | L181: GW Bridge | M181: Lincoln | N181: Holland | O181: GW Bridge | P181: (rounded) | R181: =ROW() -> 181
B182: Survival rate | G182: =Bridges!E105 -> 1 | H182: =Bridges!F105 -> 1 | I182: =1-(1-Bridges!K122)*I186 -> 0.9857994876 | J182: =Bridges!E138 -> 1 | K182: =Bridges!F138 -> 1 | L182: =1-(1-Bridges!K155)*L186 -> 0.9931301338 | M182: =(G182*weekday_per_yr+J182*wkend_per_yr)/365 -> 1 | N182: =(H182*weekday_per_yr+K182*wkend_per_yr)/365 -> 1 | O182: =(I182*weekday_per_yr+L182*wkend_per_yr)/365 -> 0.9881091433 | R182: =ROW() -> 182
B183: Citation TK | R183: =ROW() -> 183
B184: Change in revenue | G184: =(G182-1)*H163 -> 0 | H184: =(H182-1)*H162 -> 0 | M184: =(M182-1)*H163 -> 0 | N184: =(N182-1)*H162 -> 0 | O184: =(O182-1)*H161 -> -9577110.044 | P184: =ROUND(SUM(M184:O184),-3) -> -9577000 | R184: =ROW() -> 184
B185: Citation TK | R185: =ROW() -> 185
B186: Share of GWB toll traffic that continues into Manhattan CBD | I186: =Approaches!I106 -> 0.06 | L186: =I186 -> 0.06 | R186: =ROW() -> 186
B187: Komanoff estimates. | R187: =ROW() -> 187
R188: =ROW() -> 188
B189: F. MTA Bus Co. | R189: =ROW() -> 189
R190: =ROW() -> 190
B191: This section, in formation in Sept-2014, allows for the option of reducing express bus fares to promote "fare equity" for commuters and other travelers who rely on MTA Bus Co. express buses (or who are deterred by budgetary considerations from making full use of that service). | L191: (Text from 2008 that may or may not be obsolete as of 2015) | R191: =ROW() -> 191
R192: =ROW() -> 192
L193: MTA Bus Co. (MTABC) was created as a subsidiary of the MTA in Sept. 2004, under an agreement with the City of New York, in order to maintain service by seven private bus companies. Under the agreement, NYC pays MTABC the difference between the cost of operation of the bus routes and all revenues and subsidies received by MTABC. Thus, the costs of MTABC operations are 100% reimbursable by the City. The transition of service began on Jan. 3, 2005 and was completed on Feb. 20, 2006. Upon completion, MTABC was operating over 1,250 buses serving approximately 350,000 riders daily. MTABC operates 46 local routes in the Bronx, Brooklyn and Queens, and 35 premium-fare express routes between those boroughs and Manhattan. | R193: =ROW() -> 193
B194: MTA Bus Co. Farebox Revenue, 2017, thousands (projected) | H194: This figure isn't used; included for info purposes only. | I194: 215630 | R194: =ROW() -> 194
B195: Table, "MTA Bus Company, February Financial Plan 2015-2018, Accrual Statement of Operations by Category, p. VI-181. From MTA 2015 Adopted Budget February Financial Plan 2015-2018.pdf. | R195: =ROW() -> 195
R196: =ROW() -> 196
G197: Ditto. | H197: 2014 | I197: 2015 | R197: =ROW() -> 197
B198: MTA Bus Co. Ridership (of which some are on xpress buses) | H198: 125025000 | I198: 125812000 | R198: =ROW() -> 198
B199: Same souce as revenue, directly above, but p. VI-187. 2014 figure is final estimate, 2015 is adopted budget. | R199: =ROW() -> 199
R200: =ROW() -> 200
B201: Here we derive annual ridership figures on MTA express buses. | L201: Source: MTA 2007 Budget (available at http://mta.info/mta/budget/nov2007/part7.pdf). | R201: =ROW() -> 201
... 231 more rows

Sheet Incidence
B1: Incidence | O1: ='Title Page'!G2 -> 2019-09-15 | AA1: =ROW() -> 1
O2: =CONCATENATE("Scenario now being run: ",Results!$K$27, ".") -> Scenario now being run: Fix NYC higher-range plan. | AA2: =ROW() -> 2
AA3: =ROW() -> 3
AA4: =ROW() -> 4
AA5: =ROW() -> 5
AA6: =ROW() -> 6
K7: =CONCATENATE("This worksheet estimates (in Sections 1 & 2) prospective cordon toll payments by residents, on a county by county basis. It then adds (3) prospective medallion taxi surcharge " & "payments, and (4) possible 'Outer Borough Toll Relief' (toll reductions on MTA bridges) to arrive at each county's share of toll 'incidence.' These calculations are shown and displayed in Rows ",AA35, "-",AA402, ". Further calculations in Rows ",AA407, "-",AA427, " estimate (5) county shares of possible discounted bus fares in 'transit deserts' and (6) impact on Manhattan residents of closing a monthly parking loophole." ) -> This worksheet estimates (in Sections 1 & 2) prospective cordon toll payments by residents, on a county by county basis. It then adds (3) prospective medallion taxi surcharge payments, and (4) possible 'Outer Borough Toll Relief' (toll reductions on MTA bridges) to arrive at each county's share of toll 'incidence.' These calculations are shown and displayed in Rows 35-402. Further calculations in Rows 407-427 estimate (5) county shares of possible discounted bus fares in 'transit deserts' and (6) impact on Manhattan residents of closing a monthly parking loophole. | AA7: =ROW() -> 7
AA8: =ROW() -> 8
AA9: =ROW() -> 9
AA10: =ROW() -> 10
AA11: =ROW() -> 11
K12: Click here | M12: for pie charts of borough/county incidence, with and without the taxi surcharge and outer-borough toll relief. | AA12: =ROW() -> 12
K13: Click here | M13: to see borough/county breakdowns of toll revenues on autos and trucks (not counting taxi surcharges and toll discounts on borough bridges). | AA13: =ROW() -> 13
K14: Click here | M14: to see borough/county breakdowns of taxi surcharge revenues. | AA14: =ROW() -> 14
K15: Click here | M15: to see borough/county breakdowns of possible discounts in tolls on MTA bridges. | AA15: =ROW() -> 15
K16: Click here | M16: to see total borough/county breakdowns of the toll plan being modeled (and shown graphically in the pie charts directly below). | AA16: =ROW() -> 16
AA17: =ROW() -> 17
K18: =CONCATENATE("Here we also estimate the number of different vehicles in each county or state that are likely to take at least one " & "trip into or through the CBD in a typical month. This enables estimation of the revenue and traffic impacts of offering one toll-exempt trip per month per vehicle -- a 'twist' envisioned in the 2011 Move NY Plan. These calculations begin in Row ",AA433, ".") -> Here we also estimate the number of different vehicles in each county or state that are likely to take at least one trip into or through the CBD in a typical month. This enables estimation of the revenue and traffic impacts of offering one toll-exempt trip per month per vehicle -- a 'twist' envisioned in the 2011 Move NY Plan. These calculations begin in Row 433. | AA18: =ROW() -> 18
AA19: =ROW() -> 19
AA20: =ROW() -> 20
AA21: =ROW() -> 21
K22: =CONCATENATE("Further below, this worksheet calculates the number of autos that are driven into or through the CBD for work purposes from each county on a typical weekday, and compares this to the " & "number of employed people living in each county. The resulting ratio offers a good county-by-county picture of the extent to which residents will be significantly affected by the cordon toll. These calculations are shown in Rows ",AA554, " to ",AA562, ".") -> Further below, this worksheet calculates the number of autos that are driven into or through the CBD for work purposes from each county on a typical weekday, and compares this to the number of employed people living in each county. The resulting ratio offers a good county-by-county picture of the extent to which residents will be significantly affected by the cordon toll. These calculations are shown in Rows 554 to 562. | AA22: =ROW() -> 22
AA23: =ROW() -> 23
AA24: =ROW() -> 24
AA25: =ROW() -> 25
K26: =CONCATENATE("Finally, we tabulate the number of vehicles registered to households in each borough and county within the MTA tax district. These figures are shown and displayed in Rows ",AA569, "-",AA588, " and are used to calculate the amount by which recurring vehicle registration fees would have to rise if the funds anticipated from the ",Select_Plan_Box, " had to be generated instead through registration surcharges.") -> Finally, we tabulate the number of vehicles registered to households in each borough and county within the MTA tax district. These figures are shown and displayed in Rows 569-588 and are used to calculate the amount by which recurring vehicle registration fees would have to rise if the funds anticipated from the Fix NYC higher-range plan had to be generated instead through registration surcharges. | AA26: =ROW() -> 26
AA27: =ROW() -> 27
AA28: =ROW() -> 28
AA29: =ROW() -> 29
AA30: =ROW() -> 30
AA31: =ROW() -> 31
B32: We begin with the county-by-county results. Their derivation takes up most of this worksheet. The results are shown in the yellow pie chart above, and broken out in the three pie charts below: | AA32: =ROW() -> 32
B33: 1. What residents of each county will pay. | AA33: =ROW() -> 33
B34: 2. What each county's residents will pay in the cordon (CBD) toll alone, i.e., what each county's net tolls would be without the taxi surcharge, outer-borough toll reductions, and other supplemental features of the toll overhaul. | AA34: =ROW() -> 34
B35: 3. The magnitude of the savings residents will enjoy via outer-borough toll relief. (These savings are subsumed in Chart #1.) | AA35: =ROW() -> 35
AA36: =ROW() -> 36
AA37: =ROW() -> 37
AA38: =ROW() -> 38
AA39: =ROW() -> 39
AA40: =ROW() -> 40
AA41: =ROW() -> 41
AA42: =ROW() -> 42
AA43: =ROW() -> 43
AA44: =ROW() -> 44
AA45: =ROW() -> 45
AA46: =ROW() -> 46
AA47: =ROW() -> 47
AA48: =ROW() -> 48
AA49: =ROW() -> 49
AA50: =ROW() -> 50
AA51: =ROW() -> 51
AA52: =ROW() -> 52
AA53: =ROW() -> 53
AA54: =ROW() -> 54
AA55: =ROW() -> 55
AA56: =ROW() -> 56
AA57: =ROW() -> 57
AA58: =ROW() -> 58
AA59: =ROW() -> 59
AA60: =ROW() -> 60
AA61: =ROW() -> 61
AA62: =ROW() -> 62
B63: =CONCATENATE("Pie shares in chart are from Row ",$AA$426, ".") -> Pie shares in chart are from Row 426. | I63: =CONCATENATE("Pie shares in chart are from Row ",$AA$397, ".") -> Pie shares in chart are from Row 397. | Q63: =CONCATENATE("Pie shares in chart are from Row ",$AA$276, ".") -> Pie shares in chart are from Row 276. | AA63: =ROW() -> 63
AA64: =ROW() -> 64
B65: Pie charts are derived below. | AA65: =ROW() -> 65
AA66: =ROW() -> 66
B67: 1. AUTOS | AA67: =ROW() -> 67
AA68: =ROW() -> 68
B69: Autos Part 1: Divide Trips to and through Manhattan Central Business District, by county/state of origin | AA69: =ROW() -> 69
AA70: =ROW() -> 70
G71: Bronx | H71: Brooklyn | I71: Manhattan | J71: Queens | K71: S.I. | L71: NYC | M71: Nassau | N71: Suffolk | O71: Westchester | P71: Rockland | Q71: Putnam | R71: Dutchess | S71: Orange | T71: MTA 12-Co's | U71: NJ | V71: CT | W71: Other | X71: Total | AA71: =ROW() -> 71
B72: A. Weekday Work Trips into (not through) Manhattan CBD | AA72: =ROW() -> 72
B73: % of workers solo-car-commuting to CBD regularly | G73: 0.031 | H73: 0.025 | I73: 0.013 | J73: 0.038 | K73: 0.058 | M73: 0.028 | N73: 0.012 | O73: 0.028 | P73: 0.044 | Q73: 0.021 | R73: =R$76/100*Q73 -> 0.0105 | S73: =R$77/100*P73 -> 0.011 | U73: =CONCATENATE("Percentages of workers car-commuting to CBD from outside 12-county MTA region weren't readily available. Numbers for these areas are estimated further below, in Row ",AA92, ", via a different procedure.") -> Percentages of workers car-commuting to CBD from outside 12-county MTA region weren't readily available. Numbers for these areas are estimated further below, in Row 92, via a different procedure. | AA73: =ROW() -> 73
B74: % of workers carpool-commuting to CBD regularly | G74: 0.011 | H74: 0.012 | I74: 0.007 | J74: 0.016 | K74: 0.022 | M74: 0.007 | N74: 0.003 | O74: 0.007 | P74: 0.014 | Q74: 0.004 | R74: =R$76/100*Q74 -> 0.002 | S74: =R$77/100*P74 -> 0.0035 | AA74: =ROW() -> 74
B75: Both above rows are from the TSTC database (<http://www.tstc.org/reports/cpfactsheets.php>), which drew them from Census data, except that: | AA75: =ROW() -> 75
B76: =CONCATENATE("1. Dutchess percent (for both solo and carpool) is Komanoff guesstimate, set at ",R76, "% of Putnam County.") -> 1. Dutchess percent (for both solo and carpool) is Komanoff guesstimate, set at 50% of Putnam County. | R76: 50 | AA76: =ROW() -> 76
B77: =CONCATENATE("2. Orange percent (for both solo and carpool) is Komanoff guesstimate, set at ",R77, "% of Rockland County.") -> 2. Orange percent (for both solo and carpool) is Komanoff guesstimate, set at 25% of Rockland County. | J77: =CONCATENATE("Note: To allow for reverse commuters from CBD who will pay toll on re-entry, Manhattan figures in Rows ",AA86," and ",AA90," have been supplemented by 11,049 reverse commuters in SOV's (Row ",AA86,"), and reverse-commuting carpoolers using 1,069 HOV-2's and 663 HOV-3's (Row ",AA90,").") -> Note: To allow for reverse commuters from CBD who will pay toll on re-entry, Manhattan figures in Rows 86 and 90 have been supplemented by 11,049 reverse commuters in SOV's (Row 86), and reverse-commuting carpoolers using 1,069 HOV-2's and 663 HOV-3's (Row 90). | R77: 25 | AA77: =ROW() -> 77
B78: Assumed car occupancy of carpools into CBD | F78: 2.333 | AA78: =ROW() -> 78
B79: Komanoff assumption. Assumes every third carpool has three people, while 'standard' has two. | AA79: =ROW() -> 79
B80: Population (July 1, 2017) | G80: 1471160 | H80: 2648771 | I80: 1664727 | J80: 2358582 | K80: 479458 | L80: =SUM(G80:K80) -> 8622698 | M80: 1369514 | N80: 1492953 | O80: 980244 | P80: 328868 | Q80: 99323 | R80: 295568 | S80: 382226 | T80: =SUM(L80:S80) -> 13571394 | AA80: =ROW() -> 80
B81: Source: https://www.census.gov/quickfacts/ny. Accessed 26-Sept-2018. | AA81: =ROW() -> 81
B82: Assumed % of population employed | F82: =143.4/316.13 -> 0.4536108563 | G82: =$F$82-2% -> 0.4336108563 | H82: 0.46 | I82: =$F$82+2% -> 0.4736108563 | J82: =$F$82+2% -> 0.4736108563 | K82: =$F$82-2% -> 0.4336108563 | L82: =$F$82+2% -> 0.4736108563 | M82: =$F$82+2% -> 0.4736108563 | N82: =$F$82 -> 0.4536108563 | O82: 0.46 | P82: 0.4536108563 | Q82: 0.4536108563 | R82: 0.4536108563 | S82: 0.4536108563 | AA82: =ROW() -> 82
B83: Rough est., calc'd from March 2013 seasonally adj'd employment of approx'ly 143.4 million (from USDOL/BLS, "The Employment Situation - March 2014," available from http://www.bls.gov/news.release/empsit.nr0.htm), and pop. of 316.13 million (http://quickfacts.census.gov/qfd/states/00000.html), adj'd for indiv counties by Komanoff. | AA83: =ROW() -> 83
B84: No. of workers | G84: =G82*G80 -> 637910.9473 | H84: =H82*H80 -> 1218434.66 | I84: =I82*I80 -> 788432.78 | J84: =J82*J80 -> 1117050.041 | K84: =K82*K80 -> 207898.1939 | L84: =SUM(G84:K84) -> 3969726.622 | M84: =M82*M80 -> 648616.6982 | N84: 677219.6887 | O84: 450912.24 | P84: 149178.0951 | Q84: 45053.99108 | R84: 134072.8536 | S84: 173381.8632 | T84: =SUM(L84:S84) -> 6248162.052 | AA84: =ROW() -> 84
B85: =CONCATENATE("Product of Rows ",AA82, " and ",AA80, ".") -> Product of Rows 82 and 80. | AA85: =ROW() -> 85
B86: No. of workers regularly solo-commuting to CBD | G86: =G73*G$84 -> 19775.23937 | H86: =H73*H$84 -> 30460.8665 | I86: =I73*I$84+11049 -> 21298.62614 | J86: =J73*J$84 -> 42447.90155 | K86: =K73*K$84 -> 12058.09525 | L86: =SUM(G86:K86) -> 126040.7288 | M86: =M73*M$84 -> 18161.26755 | N86: 8126.636265 | O86: 12625.54272 | P86: 6563.836184 | Q86: 946.1338127 | R86: 1407.764963 | S86: 1907.200495 | T86: =SUM(L86:S86) -> 175779.1108 | AA86: =ROW() -> 86
B87: =CONCATENATE("Product of Rows ",AA84, " and ",AA73, ".") -> Product of Rows 84 and 73. | AA87: =ROW() -> 87
B88: No. of workers regularly carpool-commuting to CBD | G88: =G74*G84 -> 7017.020421 | H88: =H74*H84 -> 14621.21592 | I88: =I74*I84 -> 5519.02946 | J88: =J74*J84 -> 17872.80065 | K88: =K74*K84 -> 4573.760267 | L88: =SUM(G88:K88) -> 49603.82672 | M88: =M74*M84 -> 4540.316888 | N88: 2031.659066 | O88: 3156.38568 | P88: 2088.493331 | Q88: 180.2159643 | R88: 268.1457071 | S88: 606.8365211 | T88: =SUM(L88:S88) -> 62475.87988 | AA88: =ROW() -> 88
B89: =CONCATENATE("Product of Rows ",AA84, " and ",AA74, ".") -> Product of Rows 84 and 74. | AA89: =ROW() -> 89
B90: No. of autos used by regular carpool-commuters to CBD | G90: =G88/$F$78 -> 3007.724141 | H90: =H88/$F$78 -> 6267.130699 | I90: =I88/$F$78+2138/2+1988/3 -> 4097.302955 | J90: =J88/$F$78 -> 7660.866117 | K90: =K88/$F$78 -> 1960.463038 | L90: =SUM(G90:K90) -> 22993.48695 | M90: =M88/$F$78 -> 1946.128113 | N90: 870.8354334 | O90: 1352.929996 | P90: 895.1964557 | Q90: 77.24644849 | R90: 114.9360082 | S90: 260.1099533 | T90: =SUM(L90:S90) -> 28510.86936 | AA90: =ROW() -> 90
B91: =CONCATENATE("Quotient of Rows ",AA88, " and ",AA78, ".") -> Quotient of Rows 88 and 78. | AA91: =ROW() -> 91
B92: No. autos used by regular commuters to CBD (SOV + carpool) | G92: =G86+G90 -> 22782.96351 | H92: =H86+H90 -> 36727.9972 | I92: =I86+I90 -> 25395.92909 | J92: =J86+J90 -> 50108.76766 | K92: =K86+K90 -> 14018.55829 | L92: =SUM(G92:K92) -> 149034.2157 | M92: =M86+M90 -> 20107.39566 | N92: 8997.471698 | O92: 13978.47272 | P92: 7459.03264 | Q92: 1023.380261 | R92: 1522.700971 | S92: 2167.310448 | T92: =SUM(L92:S92) -> 204289.9801 | U92: =(Distances!E171/(Distances!E112+Distances!E119))*(M92+N92) -> 53358.9235 | V92: =Distances!E178/Distances!E133*O92 -> 5103.251944 | W92: =Distances!E180/(Distances!E184-Distances!E180)*(SUM(G92:V92)-L92-T92) -> 5649.369073 | X92: =SUM(T92:W92) -> 268401.5247 | AA92: =ROW() -> 92
B93: =CONCATENATE("Sum of Rows ",AA86, " and ",AA90, ", except that:.") -> Sum of Rows 86 and 90, except that:. | G93: Bronx | H93: Brooklyn | I93: Manhattan | J93: Queens | K93: S.I. | L93: NYC | M93: Nassau | N93: Suffolk | O93: Westchester | P93: Rockland | Q93: Putnam | R93: Dutchess | S93: Orange | T93: MTA 12-Co's | U93: NJ | V93: CT | W93: Other | X93: Total | AA93: =ROW() -> 93
B94: =CONCATENATE("1. Number of NJ regular auto commuters is estimated by prorating NJ commuters in 'Distances' worksheet, Row ",Distances!O171, ", by sum of Nassau & Suffolk commuters in same worksheet, in Rows ",Distances!O112, " and ",Distances!O119, ".") -> 1. Number of NJ regular auto commuters is estimated by prorating NJ commuters in 'Distances' worksheet, Row 171, by sum of Nassau & Suffolk commuters in same worksheet, in Rows 112 and 119. | AA94: =ROW() -> 94
B95: =CONCATENATE("2. Number of CT regular auto commuters is estimated by prorating CT commuters in 'Distances' worksheet, Row ",Distances!O178, ", by Westchester commuters in same worksheet, Row ",Distances!O138, ".") -> 2. Number of CT regular auto commuters is estimated by prorating CT commuters in 'Distances' worksheet, Row 178, by Westchester commuters in same worksheet, Row 138. | AA95: =ROW() -> 95
B96: =CONCATENATE("3. Number of 'Other' regular auto commuters is estimated by prorating ratio of 'Other' commuters to all others in 'Distances' worksheet (ratio of Row ",Distances!O180, " to the difference between Rows ",Distances!O184, " and ",Distances!O180, ") by sum of all other columns in this row in this tab.") -> 3. Number of 'Other' regular auto commuters is estimated by prorating ratio of 'Other' commuters to all others in 'Distances' worksheet (ratio of Row 180 to the difference between Rows 184 and 180) by sum of all other columns in this row in this tab. | AA96: =ROW() -> 96
B97: Est'd % of weekdays that these "regular" commuters drive into CBD | J97: For NYC: | K97: 0.85 | M97: =CONCATENATE("Komanoff assumptions. Are intended to be plausible while ensuring that figure for total CBD-commuter autos in Cell X",AA107, " matches estimated CBD entries for work trips in 'Motor Vs' worksheet, Cell I",'Motor Vs'!O75, ".") -> Komanoff assumptions. Are intended to be plausible while ensuring that figure for total CBD-commuter autos in Cell X107 matches estimated CBD entries for work trips in 'Motor Vs' worksheet, Cell I75. | AA97: =ROW() -> 97
J98: For remainder of MTA 12-county region: | K98: 0.8 | AA98: =ROW() -> 98
J99: For NJ + CT: | K99: 0.8 | AA99: =ROW() -> 99
J100: For 'Other': | K100: 0.35 | AA100: =ROW() -> 100
B101: No. of autos driven to CBD for commuting on typical weekday | G101: =$K97*G92 -> 19365.51898 | H101: =$K97*H92 -> 31218.79762 | I101: =$K97*I92 -> 21586.53973 | J101: =$K97*J92 -> 42592.45251 | K101: =$K97*K92 -> 11915.77454 | L101: =SUM(G101:K101) -> 126679.0834 | M101: =$K98*M92 -> 16085.91653 | N101: 7197.977359 | O101: 11182.77817 | P101: 5967.226112 | Q101: 818.7042089 | R101: 1218.160777 | S101: 1733.848358 | T101: =SUM(L101:S101) -> 170883.6949 | U101: =$K99*U92 -> 42687.1388 | V101: =$K99*V92 -> 4082.601555 | W101: =$K100*W92 -> 1977.279176 | X101: =SUM(T101:W101) -> 219630.7144 | AA101: =ROW() -> 101
B102: =CONCATENATE("Product of estimated % in Rows ",AA97, "-",AA100, " and number of autos in Row ",AA92, ".") -> Product of estimated % in Rows 97-100 and number of autos in Row 92. | AA102: =ROW() -> 102
B103: Factor by which regular CBD-commute autos are supplemented by other, less regular work trips | J103: 0.15 | AA103: =ROW() -> 103
B104: Komanoff assumption. | AA104: =ROW() -> 104
B105: Additional CBD-commute autos | G105: =$J103*G101 -> 2904.827847 | H105: =$J103*H101 -> 4682.819643 | I105: =$J103*I101 -> 3237.98096 | J105: =$J103*J101 -> 6388.867877 | K105: =$J103*K101 -> 1787.366181 | L105: =SUM(G105:K105) -> 19001.86251 | M105: =$J103*M101 -> 2412.88748 | N105: 1079.696604 | O105: 1677.416726 | P105: 895.0839167 | Q105: 122.8056313 | R105: 182.7241165 | S105: 260.0772538 | T105: =SUM(L105:S105) -> 25632.55424 | U105: 6403.07082 | V105: 612.3902333 | W105: 296.5918763 | X105: =SUM(T105:W105) -> 32944.60716 | AA105: =ROW() -> 105
B106: =CONCATENATE("Product of estimated % in Row ",AA103, " and number of autos in Row ",AA101, ".") -> Product of estimated % in Row 103 and number of autos in Row 101. | AA106: =ROW() -> 106
B107: Total CBD-commuter autos | G107: =G101+G105 -> 22270.34683 | H107: =H101+H105 -> 35901.61726 | I107: =I101+I105 -> 24824.52069 | J107: =J101+J105 -> 48981.32039 | K107: =K101+K105 -> 13703.14072 | L107: =SUM(G107:K107) -> 145680.9459 | M107: =M101+M105 -> 18498.80401 | N107: 8277.673962 | O107: 12860.1949 | P107: 6862.310028 | Q107: 941.5098403 | R107: 1400.884893 | S107: 1993.925612 | T107: =SUM(L107:S107) -> 196516.2491 | U107: 49090.20962 | V107: 4694.991788 | W107: 2273.871052 | X107: =SUM(T107:W107) -> 252575.3216 | AA107: =ROW() -> 107
B108: =CONCATENATE("Sum of Rows ",AA101, " and ",AA105, ".") -> Sum of Rows 101 and 105. | AA108: =ROW() -> 108
G109: Bronx | H109: Brooklyn | I109: Manhattan | J109: Queens | K109: S.I. | L109: NYC | M109: Nassau | N109: Suffolk | O109: Westchester | P109: Rockland | Q109: Putnam | R109: Dutchess | S109: Orange | T109: MTA 12-Co's | U109: NJ | V109: CT | W109: Other | X109: Total | AA109: =ROW() -> 109
B110: B. Weekday Work Trips through Manhattan CBD | AA110: =ROW() -> 110
B111: No. of workers regularly car-commuting through CBD | G111: ='Motor Vs'!$K$73*G92 -> 5956.524018 | H111: ='Motor Vs'!$K$73*H92 -> 9602.403014 | I111: ='Motor Vs'!$K$73*I92 -> 6639.67449 | J111: ='Motor Vs'!$K$73*J92 -> 13100.75741 | K111: ='Motor Vs'!$K$73*K92 -> 3665.101737 | L111: =SUM(G111:K111) -> 38964.46067 | M111: ='Motor Vs'!$K$73*M92 -> 5257.006411 | N111: ='Motor Vs'!$K$73*N92 -> 2352.356674 | O111: ='Motor Vs'!$K$73*O92 -> 3654.621509 | P111: ='Motor Vs'!$K$73*P92 -> 1950.137306 | Q111: ='Motor Vs'!$K$73*Q92 -> 267.5590953 | R111: ='Motor Vs'!$K$73*R92 -> 398.1047023 | S111: ='Motor Vs'!$K$73*S92 -> 566.635536 | T111: =SUM(L111:S111) -> 53410.88191 | U111: ='Motor Vs'!$K$73*U92 -> 13950.49899 | V111: ='Motor Vs'!$K$73*V92 -> 1334.2269 | W111: ='Motor Vs'!$K$73*W92 -> 1477.007263 | X111: =SUM(T111:W111) -> 70172.61506 | AA111: =ROW() -> 111
B112: =CONCATENATE("Product of Cell K",'Motor Vs'!O73, " from 'Motor Vs' worksheet, which denotes auto through-trips as a percent of auto trips w/ CBD destination, and Row ",AA92, " of this tab, which denotes solo + carpool auto-trips from county that end in CBD.") -> Product of Cell K73 from 'Motor Vs' worksheet, which denotes auto through-trips as a percent of auto trips w/ CBD destination, and Row 92 of this tab, which denotes solo + carpool auto-trips from county that end in CBD. | AA112: =ROW() -> 112
B113: Manhatt. thru-commuters calc'd above, distrib'd to other columns | G113: =G111/($X$111-$I$111)*$I$111 -> 622.5019686 | H113: =H111/($X$111-$I$111)*$I$111 -> 1003.523995 | I113: NA | J113: =J111/($X$111-$I$111)*$I$111 -> 1369.128582 | K113: =K111/($X$111-$I$111)*$I$111 -> 383.0309488 | L113: =SUM(G113:K113) -> 3378.185494 | M113: =M111/($X$111-$I$111)*$I$111 -> 549.3970694 | N113: 245.8391263 | O113: 381.9356854 | P113: 203.8041495 | Q113: 27.96195618 | R113: 41.60496291 | S113: 59.21771414 | T113: =SUM(L113:S113) -> 4887.946158 | U113: =U111/($X$111-$I$111)*$I$111 -> 1457.933026 | V113: =V111/($X$111-$I$111)*$I$111 -> 139.4368375 | W113: =W111/($X$111-$I$111)*$I$111 -> 154.3584691 | X113: =SUM(T113:W113) -> 6639.67449 | AA113: =ROW() -> 113
B114: =CONCATENATE("Uses Manhattan and total figures in Row ",AA111, " to prorate Manhattan through-trips (an oxymoron) to each of the other columns, in proportion to their total through-trips in Row ",AA111, ".") -> Uses Manhattan and total figures in Row 111 to prorate Manhattan through-trips (an oxymoron) to each of the other columns, in proportion to their total through-trips in Row 111. | AA114: =ROW() -> 114
B115: Corrected # of workers regularly solo-commuting through CBD | G115: =G111+G113 -> 6579.025987 | H115: =H111+H113 -> 10605.92701 | I115: 0 | J115: =J111+J113 -> 14469.886 | K115: =K111+K113 -> 4048.132686 | L115: =SUM(G115:K115) -> 35702.97168 | M115: =M111+M113 -> 5806.40348 | N115: 2598.195801 | O115: 4036.557194 | P115: 2153.941455 | Q115: 295.5210515 | R115: 439.7096652 | S115: 625.8532501 | T115: =SUM(L115:S115) -> 51659.15357 | U115: =U111+U113 -> 15408.43201 | V115: =V111+V113 -> 1473.663738 | W115: =W111+W113 -> 1631.365732 | X115: =SUM(T115:W115) -> 70172.61506 | AA115: =ROW() -> 115
B116: =CONCATENATE("Sum of Rows ",AA111, " and ",AA113, ", except that Manhattan column is zeroed out.") -> Sum of Rows 111 and 113, except that Manhattan column is zeroed out. | AA116: =ROW() -> 116
B117: Est'd % of weekdays that these autos are driven into CBD | J117: For NYC: | K117: =K97 -> 0.85 | M117: =CONCATENATE("Komanoff assumptions. Each cell is same as value in corresponding cell, ",AA117-AA97, " rows above.") -> Komanoff assumptions. Each cell is same as value in corresponding cell, 20 rows above. | AA117: =ROW() -> 117
J118: For remainder of MTA 12-county region: | K118: =K98 -> 0.8 | AA118: =ROW() -> 118
J119: For NJ + CT: | K119: =K99 -> 0.8 | AA119: =ROW() -> 119
J120: For 'Other': | K120: =K100 -> 0.35 | AA120: =ROW() -> 120
B121: No. of autos driven thru CBD for commuting on typical weekday | G121: =$K117*G115 -> 5592.172089 | H121: =$K117*H115 -> 9015.037957 | I121: =$K117*I115 -> 0 | J121: =$K117*J115 -> 12299.4031 | K121: =$K117*K115 -> 3440.912783 | L121: =SUM(G121:K121) -> 30347.52593 | M121: =$K118*M115 -> 4645.122784 | N121: 2078.556641 | O121: 3229.245755 | P121: 1723.153164 | Q121: 236.4168412 | R121: 351.7677322 | S121: 500.6826001 | T121: =SUM(L121:S121) -> 43112.47144 | U121: =$K119*U115 -> 12326.74561 | V121: =$K119*V115 -> 1178.93099 | W121: =$K120*W115 -> 570.9780062 | X121: =SUM(T121:W121) -> 57189.12605 | AA121: =ROW() -> 121
B122: =CONCATENATE("Product of estimated % in Rows ",AA117, "-",AA120, " and number of autos in Row ",AA109, ".") -> Product of estimated % in Rows 117-120 and number of autos in Row 109. | AA122: =ROW() -> 122
B123: Factor by which thru-CBD-commute autos are supplemented by other, less regular thru-CBD work trips, weekdays | K123: =J103 -> 0.15 | O123: ` | AA123: =ROW() -> 123
B124: =CONCATENATE("Komanoff assumption, chosen to match percentage in Row ",AA103, ".") -> Komanoff assumption, chosen to match percentage in Row 103. | AA124: =ROW() -> 124
B125: Additional through-CBD-commute autos | G125: =$K123*G121 -> 838.8258133 | H125: =$K123*H121 -> 1352.255694 | I125: =$K123*I121 -> 0 | J125: =$K123*J121 -> 1844.910464 | K125: =$K123*K121 -> 516.1369175 | L125: =SUM(G125:K125) -> 4552.128889 | M125: =$K123*M121 -> 696.7684176 | N125: 311.7834961 | O125: 484.3868633 | P125: 258.4729746 | Q125: 35.46252618 | R125: 52.76515982 | S125: 75.10239001 | T125: =SUM(L125:S125) -> 6466.870716 | U125: =$K123*U121 -> 1849.011842 | V125: =$K123*V121 -> 176.8396485 | W125: =$K123*W121 -> 85.64670093 | X125: =SUM(T125:W125) -> 8578.368908 | AA125: =ROW() -> 125
B126: =CONCATENATE("Product of estimated % in Row ",AA123, " and number of autos in Row ",AA121, ".") -> Product of estimated % in Row 123 and number of autos in Row 121. | AA126: =ROW() -> 126
B127: Total through-CBD-commuter autos | G127: =G121+G125 -> 6430.997902 | H127: =H121+H125 -> 10367.29365 | I127: =I121+I125 -> 0 | J127: =J121+J125 -> 14144.31356 | K127: =K121+K125 -> 3957.0497 | L127: =SUM(G127:K127) -> 34899.65481 | M127: =M121+M125 -> 5341.891202 | N127: 2390.340137 | O127: 3713.632619 | P127: 1981.626139 | Q127: 271.8793674 | R127: 404.532892 | S127: 575.7849901 | T127: =SUM(L127:S127) -> 49579.34216 | U127: 14175.75745 | V127: 1355.770639 | W127: 656.6247071 | X127: =SUM(T127:W127) -> 65767.49496 | AA127: =ROW() -> 127
B128: =CONCATENATE("Sum of Rows ",AA121, " and ",AA125, ".") -> Sum of Rows 121 and 125. | AA128: =ROW() -> 128
AA129: =ROW() -> 129
B130: A. + B. Weekday Work Trips into or thru CBD | G130: =G107+G127 -> 28701.34473 | H130: =H107+H127 -> 46268.91091 | I130: =I107+I127 -> 24824.52069 | J130: =J107+J127 -> 63125.63395 | K130: =K107+K127 -> 17660.19042 | L130: =SUM(G130:K130) -> 180580.6007 | M130: =M107+M127 -> 23840.69521 | N130: 10668.0141 | O130: 16573.82752 | P130: 8843.936167 | Q130: 1213.389208 | R130: 1805.417785 | S130: 2569.710602 | T130: =SUM(L130:S130) -> 246095.5913 | U130: =U107+U127 -> 63265.96707 | V130: =V107+V127 -> 6050.762427 | W130: =W107+W127 -> 2930.495759 | X130: =SUM(T130:W130) -> 318342.8166 | AA130: =ROW() -> 130
AA131: =ROW() -> 131
G132: Bronx | H132: Brooklyn | I132: Manhattan | J132: Queens | K132: S.I. | L132: =L71 -> NYC | M132: Nassau | N132: Suffolk | O132: Westchester | P132: Rockland | Q132: Putnam | R132: Dutchess | S132: Orange | T132: MTA 12-Co's | U132: NJ | V132: CT | W132: Other | X132: Total | AA132: =ROW() -> 132
B133: C. Weekday Non-Work Trips into Manhattan CBD | AA133: =ROW() -> 133
B134: Each county or state's share of into-CBD Work Trips | G134: =G107/$X107 -> 0.08817309106 | H134: =H107/$X107 -> 0.1421422213 | I134: =I107/$X107 -> 0.09828561449 | J134: =J107/$X107 -> 0.193927578 | K134: =K107/$X107 -> 0.0542536802 | L134: =SUM(G134:K134) -> 0.5767821851 | M134: =M107/$X107 -> 0.07324074218 | N134: 0.03277309085 | O134: 0.05091627645 | P134: 0.02716936075 | Q134: 0.003727639875 | R134: 0.005546404471 | S134: 0.007894380178 | T134: =SUM(L134:S134) -> 0.7780500799 | U134: =U107/$X107 -> 0.1943586939 | V134: =V107/$X107 -> 0.01858848188 | W134: =W107/$X107 -> 0.00900274436 | X134: =SUM(T134:W134) -> 1 | AA134: =ROW() -> 134
B135: =CONCATENATE("Ratio of respective columns in Row ",AA107, " to Row Total in Cell X",AA107, ".") -> Ratio of respective columns in Row 107 to Row Total in Cell X107. | AA135: =ROW() -> 135
B136: Total Non-Work Trips into Manhattan CBD | G136: ='Motor Vs'!J76 -> 158700 | H136: =CONCATENATE("Figure in cell at left is all weekday non-work trips into CBD, even though it appears in Bronx column. It is taken directly from Cell J",'Motor Vs'!O76, " of 'Motor Vs' worksheet.") -> Figure in cell at left is all weekday non-work trips into CBD, even though it appears in Bronx column. It is taken directly from Cell J76 of 'Motor Vs' worksheet. | AA136: =ROW() -> 136
B137: Each county / state's non-work trips into CBD | G137: =G$134*$G136 -> 13993.06955 | H137: =H$134*$G136 -> 22557.97052 | I137: =I$134*$G136 -> 15597.92702 | J137: =J$134*$G136 -> 30776.30663 | K137: =K$134*$G136 -> 8610.059048 | L137: =SUM(G137:K137) -> 91535.33278 | M137: =M$134*$G136 -> 11623.30578 | N137: 5201.089519 | O137: 8080.413072 | P137: 4311.777551 | Q137: 591.5764482 | R137: 880.2143896 | S137: 1252.838134 | T137: =SUM(L137:S137) -> 123476.5477 | U137: =U$134*$G136 -> 30844.72472 | V137: =V$134*$G136 -> 2949.992074 | W137: =W$134*$G136 -> 1428.73553 | X137: =SUM(T137:W137) -> 158700 | AA137: =ROW() -> 137
B138: =CONCATENATE("Product of % in Row ",$AA$134, " and number of trips in Row ",AA136, ".") -> Product of % in Row 134 and number of trips in Row 136. | AA138: =ROW() -> 138
AA139: =ROW() -> 139
B140: D. Weekday Non-Work Trips through Manhattan CBD | AA140: =ROW() -> 140
B141: Each county or state's share of thru-CBD Work Trips | G141: =G127/$X127 -> 0.09778383541 | H141: =H127/$X127 -> 0.1576355258 | I141: =I127/$X127 -> 0 | J141: =J127/$X127 -> 0.2150654145 | K141: =K127/$X127 -> 0.06016725592 | L141: =SUM(G141:K141) -> 0.5306520316 | M141: =M127/$X127 -> 0.08122388126 | N141: 0.0363453122 | O141: 0.0564660798 | P141: 0.0301307833 | Q141: 0.00413394744 | R141: 0.006150954848 | S141: 0.008754856643 | T141: =SUM(L141:S141) -> 0.7538578471 | U141: =U127/$X127 -> 0.2155435213 | V141: =V127/$X127 -> 0.02061460056 | W141: =W127/$X127 -> 0.00998403098 | X141: =SUM(T141:W141) -> 1 | AA141: =ROW() -> 141
B142: =CONCATENATE("Ratio of respective columns in Row ",AA127, " to Row Total in Cell X",AA127, ".") -> Ratio of respective columns in Row 127 to Row Total in Cell X127. | AA142: =ROW() -> 142
B143: Total Non-Work Trips through Manhattan CBD | G143: ='Motor Vs'!J77 -> 41498.25712 | H143: =CONCATENATE("Figure in cell at left is all weekday non-work trips through CBD, even though it appears in Bronx column. It is taken directly from Cell J",'Motor Vs'!O16, " of 'Motor Vs' worksheet.") -> Figure in cell at left is all weekday non-work trips through CBD, even though it appears in Bronx column. It is taken directly from Cell J16 of 'Motor Vs' worksheet. | AA143: =ROW() -> 143
B144: Each county / state's non-work trips through CBD | G144: =G$141*$G143 -> 4057.858744 | H144: =H$141*$G143 -> 6541.599582 | I144: =I$141*$G143 -> 0 | J144: =J$141*$G143 -> 8924.839866 | K144: =K$141*$G143 -> 2496.836256 | L144: =SUM(G144:K144) -> 22021.13445 | M144: =M$141*$G143 -> 3370.649509 | N144: 1508.267111 | O144: 2343.243898 | P144: 1250.374992 | Q144: 171.5516138 | R144: 255.2539058 | S144: 363.311292 | T144: =SUM(L144:S144) -> 31283.78677 | U144: =U$141*$G143 -> 8944.680469 | V144: =V$141*$G143 -> 855.4699945 | W144: =W$141*$G143 -> 414.3198847 | X144: =SUM(T144:W144) -> 41498.25712 | AA144: =ROW() -> 144
B145: =CONCATENATE("Product of % in Row ",$AA$134, " and number of trips in Row ",AA143, ".") -> Product of % in Row 134 and number of trips in Row 143. | AA145: =ROW() -> 145
AA146: =ROW() -> 146
B147: C. + D. Weekday Non-Work Trips into or thru CBD | G147: =G137+G144 -> 18050.92829 | H147: =H137+H144 -> 29099.57011 | I147: =I137+I144 -> 15597.92702 | J147: =J137+J144 -> 39701.1465 | K147: =K137+K144 -> 11106.8953 | L147: =SUM(G147:K147) -> 113556.4672 | M147: =M137+M144 -> 14993.95529 | N147: 6709.356629 | O147: 10423.65697 | P147: 5562.152543 | Q147: 763.1280619 | R147: 1135.468295 | S147: 1616.149426 | T147: =SUM(L147:S147) -> 154760.3344 | U147: 39789.40519 | V147: 3805.462068 | W147: 1843.055415 | X147: =SUM(T147:W147) -> 200198.2571 | AA147: =ROW() -> 147
AA148: =ROW() -> 148
B149: All Weekday trips into CBD (autos only) | F149: =CONCATENATE("R's ",AA107,"+",AA137,"") -> R's 107+137 | G149: =G107+G137 -> 36263.41638 | H149: =H107+H137 -> 58459.58778 | I149: =I107+I137 -> 40422.44771 | J149: =J107+J137 -> 79757.62702 | K149: =K107+K137 -> 22313.19977 | L149: =SUM(G149:K149) -> 237216.2787 | M149: =M107+M137 -> 30122.1098 | N149: 13478.76348 | O149: 20940.60797 | P149: 11174.08758 | Q149: 1533.086288 | R149: 2281.099283 | S149: 3246.763746 | T149: =SUM(L149:S149) -> 319992.7968 | U149: =U107+U137 -> 79934.93434 | V149: =V107+V137 -> 7644.983862 | W149: =W107+W137 -> 3702.606582 | X149: =SUM(T149:W149) -> 411275.3216 | AA149: =ROW() -> 149
B150: All Weekday trips thru CBD (autos only) | F150: =CONCATENATE("R's ",AA127,"+",AA144,"") -> R's 127+144 | G150: =G127+G144 -> 10488.85665 | H150: =H127+H144 -> 16908.89323 | I150: =I127+I144 -> 0 | J150: =J127+J144 -> 23069.15343 | K150: =K127+K144 -> 6453.885957 | L150: =SUM(G150:K150) -> 56920.78926 | M150: =M127+M144 -> 8712.54071 | N150: 3898.607247 | O150: 6056.876516 | P150: 3232.001131 | Q150: 443.4309811 | R150: 659.7867978 | S150: 939.0962821 | T150: =SUM(L150:S150) -> 80863.12893 | U150: =U127+U144 -> 23120.43792 | V150: =V127+V144 -> 2211.240633 | W150: =W127+W144 -> 1070.944592 | X150: =T150+SUM(U150:W150) -> 107265.7521 | AA150: =ROW() -> 150
B151: All Wkday trips into+thru CBD (autos only) | F151: =CONCATENATE("R's ",AA149,"+",AA150,"") -> R's 149+150 | G151: =G149+G150 -> 46752.27303 | H151: =H149+H150 -> 75368.48102 | I151: =I149+I150 -> 40422.44771 | J151: =J149+J150 -> 102826.7805 | K151: =K149+K150 -> 28767.08573 | L151: =SUM(G151:K151) -> 294137.0679 | M151: =M149+M150 -> 38834.65051 | N151: 17377.37073 | O151: 26997.48449 | P151: 14406.08871 | Q151: 1976.51727 | R151: 2940.88608 | S151: 4185.860028 | T151: =SUM(L151:S151) -> 400855.9257 | U151: =U149+U150 -> 103055.3723 | V151: =V149+V150 -> 9856.224495 | W151: =W149+W150 -> 4773.551174 | X151: =SUM(T151:W151) -> 518541.0737 | AA151: =ROW() -> 151
B152: Same as previous row, per year ( x 1,000) | G152: =G151*weekday_per_yr/1000 -> 11688.06826 | H152: =H151*weekday_per_yr/1000 -> 18842.12025 | I152: =I151*weekday_per_yr/1000 -> 10105.61193 | J152: =J151*weekday_per_yr/1000 -> 25706.69511 | K152: =K151*weekday_per_yr/1000 -> 7191.771432 | L152: =SUM(G152:K152) -> 73534.26698 | M152: =M151*weekday_per_yr/1000 -> 9708.662626 | N152: 4344.342682 | O152: 6749.371122 | P152: 3601.522178 | Q152: 494.1293174 | R152: 735.2215201 | S152: 1046.465007 | T152: =SUM(L152:S152) -> 100213.9814 | U152: =U151*weekday_per_yr/1000 -> 25763.84307 | V152: =V151*weekday_per_yr/1000 -> 2464.056124 | W152: =W151*weekday_per_yr/1000 -> 1193.387793 | X152: =SUM(T152:W152) -> 129635.2684 | AA152: =ROW() -> 152
G153: Bronx | H153: Brooklyn | I153: Manhattan | J153: Queens | K153: S.I. | L153: =L92 -> 149034.2157 | M153: Nassau | N153: Suffolk | O153: Westchester | P153: Rockland | Q153: Putnam | R153: Dutchess | S153: Orange | T153: 204289.9801 | U153: NJ | V153: CT | W153: Other | X153: Total | AA153: =ROW() -> 153
B154: E. Weekend/Holiday Work Trips into (not through) Manhattan CBD | AA154: =ROW() -> 154
B155: No. autos driven to CBD for regular commuting (SOV + carpool) | G155: =G134*$X$155 -> 8364.164088 | H155: =H134*$X$155 -> 13483.71537 | I155: =I134*$X$155 -> 9323.445479 | J155: =J134*$X$155 -> 18396.11229 | K155: =K134*$X$155 -> 5146.543896 | L155: =SUM(G155:K155) -> 54713.98112 | M155: =M134*$X$155 -> 6947.670522 | N155: 3108.879436 | O155: 4829.955329 | P155: 2577.305488 | Q155: 353.6066526 | R155: 526.1359962 | S155: 748.8666938 | T155: =SUM(L155:S155) -> 73806.40124 | U155: =U134*$X$155 -> 18437.00826 | V155: =V134*$X$155 -> 1763.317025 | W155: =W134*$X$155 -> 854.006933 | X155: ='Motor Vs Weekends'!I76/'Motor Vs'!I76*X92 -> 94860.73345 | AA155: =ROW() -> 155
B156: =CONCATENATE("Each column is calculated as product of county or state share of weekday work trips from Row ",AA134," and Total in Row ",AA155, ". Total is calculated by prorating weekend to weekday work trips into CBD in respective tabs' Row ",'Motor Vs'!O76, " by total autos used by regular car commuters into CBD from Cell X",AA92, " of this tab.") -> Each column is calculated as product of county or state share of weekday work trips from Row 134 and Total in Row 155. Total is calculated by prorating weekend to weekday work trips into CBD in respective tabs' Row 76 by total autos used by regular car commuters into CBD from Cell X92 of this tab. | AA156: =ROW() -> 156
B157: Est'd % of weekdays that these "regular" autos are driven into CBD | J157: For NYC: | K157: =K97*$M$160 -> 0.7225 | M157: Komanoff assumptions. | AA157: =ROW() -> 157
J158: For remainder of MTA 12-county region: | K158: =K98*$M$160 -> 0.68 | M158: =CONCATENATE("Calculated by attenuating percentages for weekday commuters in Rows ",AA97, "-",AA100," by % factor directly below:") -> Calculated by attenuating percentages for weekday commuters in Rows 97-100 by % factor directly below: | AA158: =ROW() -> 158
J159: For NJ + CT: | K159: =K99*$M$160 -> 0.68 | AA159: =ROW() -> 159
J160: For 'Other': | K160: =K100*$M$160 -> 0.2975 | M160: 0.85 | AA160: =ROW() -> 160
B161: No. of autos driven to CBD for commuting on typical weekday | G161: =$K157*G155 -> 6043.108554 | H161: =$K157*H155 -> 9741.984354 | I161: =$K157*I155 -> 6736.189358 | J161: =$K157*J155 -> 13291.19113 | K161: =$K157*K155 -> 3718.377965 | L161: =SUM(G161:K161) -> 39530.85136 | M161: =$K158*M155 -> 4724.415955 | N161: 2114.038016 | O161: 3284.369623 | P161: 1752.567732 | Q161: 240.4525238 | R161: 357.7724774 | S161: 509.2293518 | T161: =SUM(L161:S161) -> 52513.69704 | U161: =$K159*U155 -> 12537.16561 | V161: =$K159*V155 -> 1199.055577 | W161: =$K160*W155 -> 254.0670626 | X161: =SUM(T161:W161) -> 66503.98529 | AA161: =ROW() -> 161
B162: =CONCATENATE("Product of estimated % in Rows ",AA157, "-",AA160, " and number of autos in Row ",AA155, ".") -> Product of estimated % in Rows 157-160 and number of autos in Row 155. | AA162: =ROW() -> 162
B163: Factor by which thru-CBD-commute autos are supplemented by other, less regular thru-CBD work trips, weekends | K163: 0.35 | AA163: =ROW() -> 163
B164: =CONCATENATE("Komanoff assumption. Is set at higher level than corresponding percentage, ",100*J103, "%, for weekday work trips in Row ",AA103, ", to reflect more episodic nature of weekend work trips.") -> Komanoff assumption. Is set at higher level than corresponding percentage, 15%, for weekday work trips in Row 103, to reflect more episodic nature of weekend work trips. | AA164: =ROW() -> 164
B165: Additional CBD-commute autos | G165: =$K163*G161 -> 2115.087994 | H165: =$K163*H161 -> 3409.694524 | I165: =$K163*I161 -> 2357.666275 | J165: =$K163*J161 -> 4651.916895 | K165: =$K163*K161 -> 1301.432288 | L165: =SUM(G165:K165) -> 13835.79798 | M165: =$K163*M161 -> 1653.545584 | N165: 739.9133058 | O165: 1149.529368 | P165: 613.3987061 | Q165: 84.15838332 | R165: 125.2203671 | S165: 178.2302731 | T165: =SUM(L165:S165) -> 18379.79396 | U165: =$K163*U161 -> 4388.007965 | V165: =$K163*V161 -> 419.6694519 | W165: =$K163*W161 -> 88.9234719 | X165: =SUM(T165:W165) -> 23276.39485 | AA165: =ROW() -> 165
B166: =CONCATENATE("Product of % specified in Row ",AA163, " and number of autos in Row ",AA161, ".") -> Product of % specified in Row 163 and number of autos in Row 161. | AA166: =ROW() -> 166
B167: Total CBD-commuter autos | G167: =G161+G165 -> 8158.196548 | H167: =H161+H165 -> 13151.67888 | I167: =I161+I165 -> 9093.855634 | J167: =J161+J165 -> 17943.10802 | K167: =K161+K165 -> 5019.810253 | L167: =SUM(G167:K167) -> 53366.64934 | M167: =M161+M165 -> 6377.961539 | N167: 2853.951322 | O167: 4433.898992 | P167: 2365.966438 | Q167: 324.6109071 | R167: 482.9928445 | S167: 687.4596249 | T167: =SUM(L167:S167) -> 70893.491 | U167: =U161+U165 -> 16925.17358 | V167: =V161+V165 -> 1618.725029 | W167: =W161+W165 -> 342.9905345 | X167: =SUM(T167:W167) -> 89780.38015 | AA167: =ROW() -> 167
B168: =CONCATENATE("Sum of Rows ",AA161, " and ",AA165, ".") -> Sum of Rows 161 and 165. | AA168: =ROW() -> 168
G169: =G132 -> Bronx | H169: =H132 -> Brooklyn | I169: Manhattan | J169: Queens | K169: S.I. | L169: NYC | M169: Nassau | N169: Suffolk | O169: Westchester | P169: Rockland | Q169: Putnam | R169: Dutchess | S169: Orange | T169: MTA 12-Co's | U169: NJ | V169: CT | W169: Other | X169: Total | AA169: =ROW() -> 169
B170: F. Weekend/Holiday Work Trips through Manhattan CBD | AA170: =ROW() -> 170
B171: No. of autos driven through CBD for commuting regularly | G171: =G141*$X$171 -> 2964.296788 | H171: =H141*$X$171 -> 4778.68843 | I171: =I141*$X$171 -> 0 | J171: =J141*$X$171 -> 6519.663649 | K171: =K141*$X$171 -> 1823.957945 | L171: =SUM(G171:K171) -> 16086.60681 | M171: =M141*$X$171 -> 2462.285196 | N171: 1101.800638 | O171: 1711.757554 | P171: 913.4084767 | Q171: 125.3197634 | R171: 186.4649267 | S171: 265.4016721 | T171: =SUM(L171:S171) -> 22853.04504 | U171: =U141*$X$171 -> 6534.157361 | V171: =V141*$X$171 -> 624.9273611 | W171: =W141*$X$171 -> 302.6638384 | X171: ='Motor Vs Weekends'!I73/'Motor Vs'!I73*X115 -> 30314.7936 | AA171: =ROW() -> 171
B172: =CONCATENATE("Each column is calculated as product of county or state share of weekday work thru-trips from Row ",AA141," and Total in Row ",AA171, ". Total is calculated by prorating weekend to weekday work trips into CBD in respective tabs' Row ",'Motor Vs'!O73, " by total work trips into CBD in this tab, Row ",AA115, ".") -> Each column is calculated as product of county or state share of weekday work thru-trips from Row 141 and Total in Row 171. Total is calculated by prorating weekend to weekday work trips into CBD in respective tabs' Row 73 by total work trips into CBD in this tab, Row 115. | AA172: =ROW() -> 172
B173: Est'd % of weekdays that these autos are driven through CBD | J173: For NYC: | K173: =K157 -> 0.7225 | M173: =CONCATENATE("Komanoff assumptions. Each cell is same as value in corresponding cell, ",AA305-AA271, " rows above.") -> Komanoff assumptions. Each cell is same as value in corresponding cell, 34 rows above. | AA173: =ROW() -> 173
J174: For remainder of MTA 12-county region: | K174: =K158 -> 0.68 | AA174: =ROW() -> 174
J175: For NJ + CT: | K175: =K159 -> 0.68 | AA175: =ROW() -> 175
J176: For 'Other': | K176: =K160 -> 0.2975 | AA176: =ROW() -> 176
B177: No. of autos driven thru CBD for commuting on typical weekday | G177: =$K173*G171 -> 2141.704429 | H177: =$K173*H171 -> 3452.60239 | I177: =$K173*I171 -> 0 | J177: =$K173*J171 -> 4710.456987 | K177: =$K173*K171 -> 1317.809615 | L177: =SUM(G177:K177) -> 11622.57342 | M177: =$K174*M171 -> 1674.353933 | N177: 749.2244335 | O177: 1163.995137 | P177: 621.1177641 | Q177: 85.21743909 | R177: 126.7961501 | S177: 180.473137 | T177: =SUM(L177:S177) -> 16223.75141 | U177: =$K175*U171 -> 4443.227006 | V177: =$K175*V171 -> 424.9506056 | W177: =$K176*W171 -> 90.04249193 | X177: =SUM(T177:W177) -> 21181.97152 | AA177: =ROW() -> 177
B178: =CONCATENATE("Product of estimated % in Rows ",AA173, "-",AA176, " and number of autos in Row ",AA171, ".") -> Product of estimated % in Rows 173-176 and number of autos in Row 171. | AA178: =ROW() -> 178
B179: Factor by which thru-CBD-commute autos are supplemented by other, less regular thru-CBD work trips | J179: =K163 -> 0.35 | O179: ` | AA179: =ROW() -> 179
B180: =CONCATENATE("Komanoff assumption, chosen to match percentage in Row ",AA163, ".") -> Komanoff assumption, chosen to match percentage in Row 163. | AA180: =ROW() -> 180
B181: Additional through-CBD-commute autos | G181: =$J179*G177 -> 749.5965502 | H181: =$J179*H177 -> 1208.410837 | I181: =$J179*I177 -> 0 | J181: =$J179*J177 -> 1648.659945 | K181: =$J179*K177 -> 461.2333652 | L181: =SUM(G181:K181) -> 4067.900697 | M181: =$J179*M177 -> 586.0238766 | N181: 262.2285517 | O181: 407.3982979 | P181: 217.3912174 | Q181: 29.82610368 | R181: 44.37865254 | S181: 63.16559796 | T181: =SUM(L181:S181) -> 5678.312995 | U181: =$J179*U177 -> 1555.129452 | V181: =$J179*V177 -> 148.7327119 | W181: =$J179*W177 -> 31.51487218 | X181: =SUM(T181:W181) -> 7413.690031 | AA181: =ROW() -> 181
B182: =CONCATENATE("Product of estimated % in Row ",AA179, " and number of autos in Row ",AA177, ".") -> Product of estimated % in Row 179 and number of autos in Row 177. | AA182: =ROW() -> 182
B183: Total through-CBD-commuter autos | G183: =G177+G181 -> 2891.300979 | H183: =H177+H181 -> 4661.013227 | I183: =I177+I181 -> 0 | J183: =J177+J181 -> 6359.116932 | K183: =K177+K181 -> 1779.04298 | L183: =SUM(G183:K183) -> 15690.47412 | M183: =M177+M181 -> 2260.37781 | N183: 1011.452985 | O183: 1571.393435 | P183: 838.5089816 | Q183: 115.0435428 | R183: 171.1748027 | S183: 243.638735 | T183: =SUM(L183:S183) -> 21902.06441 | U183: =U177+U181 -> 5998.356457 | V183: =V177+V181 -> 573.6833175 | W183: =W177+W181 -> 121.5573641 | X183: =SUM(T183:W183) -> 28595.66155 | AA183: =ROW() -> 183
B184: =CONCATENATE("Sum of Rows ",AA177, " and ",AA181, ".") -> Sum of Rows 177 and 181. | AA184: =ROW() -> 184
AA185: =ROW() -> 185
B186: E. + F. Weekend Work Trips into or thru CBD | G186: =G183+G167 -> 11049.49753 | H186: =H183+H167 -> 17812.6921 | I186: =I183+I167 -> 9093.855634 | J186: =J183+J167 -> 24302.22496 | K186: =K183+K167 -> 6798.853233 | L186: =SUM(G186:K186) -> 69057.12345 | M186: =M183+M167 -> 8638.339349 | N186: 3865.404308 | O186: 6005.292427 | P186: 3204.47542 | Q186: 439.6544499 | R186: 654.1676472 | S186: 931.0983599 | T186: =SUM(L186:S186) -> 92795.55541 | U186: =U183+U167 -> 22923.53004 | V186: =V183+V167 -> 2192.408346 | W186: =W183+W167 -> 464.5478986 | X186: =SUM(T186:W186) -> 118376.0417 | AA186: =ROW() -> 186
G187: =G132 -> Bronx | H187: Brooklyn | I187: Manhattan | J187: Queens | K187: S.I. | L187: NYC | M187: Nassau | N187: Suffolk | O187: Westchester | P187: Rockland | Q187: Putnam | R187: Dutchess | S187: Orange | T187: MTA 12-Co's | U187: NJ | V187: CT | W187: Other | X187: Total | AA187: =ROW() -> 187
B188: G. Weekend Non-Work Trips into Manhattan CBD | AA188: =ROW() -> 188
B189: Each county or state's share of into-CBD Work Trips | G189: =G134 -> 0.08817309106 | H189: =H134 -> 0.1421422213 | I189: =I134 -> 0.09828561449 | J189: =J134 -> 0.193927578 | K189: =K134 -> 0.0542536802 | L189: =SUM(G189:K189) -> 0.5767821851 | M189: =M134 -> 0.07324074218 | N189: 0.03277309085 | O189: 0.05091627645 | P189: 0.02716936075 | Q189: 0.003727639875 | R189: 0.005546404471 | S189: 0.007894380178 | T189: =SUM(L189:S189) -> 0.7780500799 | U189: =U134 -> 0.1943586939 | V189: =V134 -> 0.01858848188 | W189: =W134 -> 0.00900274436 | X189: =SUM(T189:W189) -> 1 | AA189: =ROW() -> 189
B190: =CONCATENATE("Copied from Row ",AA134, ".") -> Copied from Row 134. | AA190: =ROW() -> 190
B191: Total Non-Work Trips into Manhattan CBD | G191: ='Motor Vs Weekends'!J85 -> 239300 | H191: =CONCATENATE("Figure in cell at left is all weekend non-work trips into CBD, even though it appears in Bronx column. It is taken directly from Cell J",'Motor Vs'!O90, " of 'Motor Vs Weekends' worksheet.") -> Figure in cell at left is all weekend non-work trips into CBD, even though it appears in Bronx column. It is taken directly from Cell J90 of 'Motor Vs Weekends' worksheet. | AA191: =ROW() -> 191
B192: Each county / state's non-work trips into CBD | G192: =G$189*$G191 -> 21099.82069 | H192: =H$189*$G191 -> 34014.63356 | I192: =I$189*$G191 -> 23519.74755 | J192: =J$189*$G191 -> 46406.86942 | K192: =K$189*$G191 -> 12982.90567 | L192: =SUM(G192:K192) -> 138023.9769 | M192: =M$189*$G191 -> 17526.5096 | N192: 7842.600642 | O192: 12184.26495 | P192: 6501.628027 | Q192: 892.0242221 | R192: 1327.25459 | S192: 1889.125177 | T192: =SUM(L192:S192) -> 186187.3841 | U192: =U$189*$G191 -> 46510.03545 | V192: =V$189*$G191 -> 4448.223713 | W192: =W$189*$G191 -> 2154.356725 | X192: =SUM(T192:W192) -> 239300 | AA192: =ROW() -> 192
B193: =CONCATENATE("Product of % in Row ",AA189, " and number of trips in Row ",AA191, ".") -> Product of % in Row 189 and number of trips in Row 191. | AA193: =ROW() -> 193
AA194: =ROW() -> 194
B195: H. Weekend Non-Work Trips through Manhattan CBD | AA195: =ROW() -> 195
B196: Each county or state's share of thru-CBD Work Trips | G196: =G141 -> 0.09778383541 | H196: =H141 -> 0.1576355258 | I196: =I141 -> 0 | J196: =J141 -> 0.2150654145 | K196: =K141 -> 0.06016725592 | L196: =SUM(G196:K196) -> 0.5306520316 | M196: =M141 -> 0.08122388126 | N196: 0.0363453122 | O196: 0.0564660798 | P196: 0.0301307833 | Q196: 0.00413394744 | R196: 0.006150954848 | S196: 0.008754856643 | T196: =SUM(L196:S196) -> 0.7538578471 | U196: =U141 -> 0.2155435213 | V196: =V141 -> 0.02061460056 | W196: =W141 -> 0.00998403098 | X196: =SUM(T196:W196) -> 1 | AA196: =ROW() -> 196
B197: =CONCATENATE("Copied from Row ",AA141, ".") -> Copied from Row 141. | AA197: =ROW() -> 197
B198: Total Non-Work Trips through Manhattan CBD | G198: ='Motor Vs Weekends'!J77 -> 76466.82353 | H198: =CONCATENATE("Figure in cell at left is all weekend non-work trips through CBD, even though it appears in Bronx column. It is taken directly from Cell J",'Motor Vs'!O77, " of 'Motor Vs Weekends' worksheet.") -> Figure in cell at left is all weekend non-work trips through CBD, even though it appears in Bronx column. It is taken directly from Cell J77 of 'Motor Vs Weekends' worksheet. | AA198: =ROW() -> 198
B199: Each county / state's non-work trips through CBD | G199: =G$141*$G198 -> 7477.219286 | H199: =H$141*$G198 -> 12053.88794 | I199: =I$141*$G198 -> 0 | J199: =J$141*$G198 -> 16445.36909 | K199: =K$141*$G198 -> 4600.798941 | L199: =SUM(G199:K199) -> 40577.27526 | M199: =M$141*$G198 -> 6210.932195 | N199: 2779.210574 | O199: 4317.781759 | P199: 2304.005289 | Q199: 316.1098293 | R199: 470.3439789 | S199: 669.4560779 | T199: =SUM(L199:S199) -> 57645.11496 | U199: =U$141*$G198 -> 16481.92841 | V199: =V$141*$G198 -> 1576.333023 | W199: =W$141*$G198 -> 763.447135 | X199: =SUM(T199:W199) -> 76466.82353 | AA199: =ROW() -> 199
B200: =CONCATENATE("Product of % in Row ",AA141, " and number of trips in Row ",AA198, ".") -> Product of % in Row 141 and number of trips in Row 198. | AA200: =ROW() -> 200
... 432 more rows

Sheet Taxes Instead
B1: =CONCATENATE("Taxes Instead, i.e., Tax Alternatives to the ",Select_Plan_Box," ") -> Taxes Instead, i.e., Tax Alternatives to the Fix NYC higher-range plan | K1: ='Title Page'!G2 -> 2019-09-15 | L1: =ROW() -> 1
L2: =ROW() -> 2
B3: A big reason to begin pricing vehicle trips to and/or in the Manhattan CBD is to create a new revenue stream that will generate funds for maintaining and improving the NYC region's transportation infrastructure. Absent a new traffic-pricing plan, those new funds presumably would have to be raised through tax instruments. The MTA relies on a patchwork of taxes and fees levied on certain business activities in its 12-county region to supplement farebox revenues. These include a salex tax surcharge, a Petroleum Business Tax levied primarily on motor fuels, and the Payroll Mobility Tax, which has become a lightning rod for opponents of MTA funding in some NY suburban districts. These various taxes and fees are considered the most likely candidates to be increased, in the absence of the new revenue stream from traffic-pricing. This worksheet estimates the increases in sales or motor fuel tax rates or the Payroll Mobility Tax rate that would be needed to collect the same net revenue as traffic-pricing. The calculations assume that the increases would be imposed throughout the 12-county MTA region in New York State. We also calculate the average rise in automobile registration fees that would be required to match traffic-pricing's net revenue with a recurring annual surcharge on motor vehicle registration fees, charged only to vehicles registered within the City of New York. This tab concludes with a calculation of the rise in the NYC transit (bus and subway) fare that would be necessary to support debt service on bonds to finance capital investments to upgrade the subways that are included in the MTA capital plan but are currently (May 2015) unfunded. | L3: =ROW() -> 3 | N3: Table-graph below is "hard-wired," i.e., it's fixed and doesn't vary with changes in congestion pricing plan being modeled. It's a useful guide, though. -- CK, Nov. 28, 2018
L4: =ROW() -> 4
L5: =ROW() -> 5
L6: =ROW() -> 6
L7: =ROW() -> 7
L8: =ROW() -> 8
L9: =ROW() -> 9
L10: =ROW() -> 10
L11: =ROW() -> 11
L12: =ROW() -> 12
L13: =ROW() -> 13
L14: =ROW() -> 14
L15: =ROW() -> 15
L16: =ROW() -> 16
L17: =ROW() -> 17
L18: =ROW() -> 18
B19: Summary of Results | L19: =ROW() -> 19
L20: =ROW() -> 20
B21: Sales Tax (across the 12-county MTA tax district) | L21: =ROW() -> 21
B22: =CONCATENATE("1. To raise the $",Results!K$69/1000," billion a year in net revenue anticipated to be generated by the ",Select_Plan_Box," by instead raising the sales tax rate in the 12-county MTA region would require raising that rate by ",ROUND(100*J87,2)," percentage points. This would have the effect of raising the sales tax rate in New York City to ",ROUND(100*J92,3), "% from its current level of ",ROUND(100*J89,3), "%. Rates in the seven 'MTA' counties outside NYC would rise by the same amount (",ROUND(100*J87,2), " percentage points). See Part B of this worksheet, beginning in Row ",L52, ".") -> 1. To raise the $1.91 billion a year in net revenue anticipated to be generated by the Fix NYC higher-range plan by instead raising the sales tax rate in the 12-county MTA region would require raising that rate by 0.78 percentage points. This would have the effect of raising the sales tax rate in New York City to 9.653% from its current level of 8.875%. Rates in the seven 'MTA' counties outside NYC would rise by the same amount (0.78 percentage points). See Part B of this worksheet, beginning in Row 52. | L22: =ROW() -> 22
L23: =ROW() -> 23
L24: =ROW() -> 24
L25: =ROW() -> 25
L26: =ROW() -> 26
B27: Gasoline Tax (across the 12-county MTA tax district) | L27: =ROW() -> 27
B28: =CONCATENATE("2. To raise the $",Results!K$69/1000," billion a year in net revenue anticipated to be generated by the ",Select_Plan_Box," by instead raising the motor fuels tax rate in the 12-county MTA region would require raising that rate by ",ROUND(100*J133,0)," cents per gallon. This would have the effect of raising the current MTA-related state and local motor fuels tax rate in New York City and the 7 surrounding counties to ",ROUND(100*J135,0), " cents a gallon from its current level of ",ROUND(100*J114,0), " cents. See Part C of this worksheet, beginning in Row ",L100, ".") -> 2. To raise the $1.91 billion a year in net revenue anticipated to be generated by the Fix NYC higher-range plan by instead raising the motor fuels tax rate in the 12-county MTA region would require raising that rate by 64 cents per gallon. This would have the effect of raising the current MTA-related state and local motor fuels tax rate in New York City and the 7 surrounding counties to 103 cents a gallon from its current level of 38 cents. See Part C of this worksheet, beginning in Row 100. | L28: =ROW() -> 28
L29: =ROW() -> 29
L30: =ROW() -> 30
L31: =ROW() -> 31
L32: =ROW() -> 32
B33: Payroll Mobility Tax (across the 12-county MTA tax district) | L33: =ROW() -> 33
B34: =CONCATENATE("3. To raise the $",Results!K$69/1000," billion a year in net revenue anticipated to be generated by the ",Select_Plan_Box," by instead raising the Payroll Mobility Tax rate in the 12-county MTA region would require raising that rate by ",ROUND(100*J151,2)," percentage points. This would require raising the Payroll Mobility Tax rate in all 12 counties (the 5 boroughs of New York City and the 7 suburban counties) to ",ROUND(100*J153,2), "% from the current ",ROUND(100*J147,3), "%. See Part D of this worksheet, beginning in Row ",L140, ".") -> 3. To raise the $1.91 billion a year in net revenue anticipated to be generated by the Fix NYC higher-range plan by instead raising the Payroll Mobility Tax rate in the 12-county MTA region would require raising that rate by 0.34 percentage points. This would require raising the Payroll Mobility Tax rate in all 12 counties (the 5 boroughs of New York City and the 7 suburban counties) to 0.68% from the current 0.34%. See Part D of this worksheet, beginning in Row 140. | L34: =ROW() -> 34
L35: =ROW() -> 35
L36: =ROW() -> 36
L37: =ROW() -> 37
L38: =ROW() -> 38
B39: Vehicle Registration Surcharge (NYC only) | L39: =ROW() -> 39
B40: =CONCATENATE("4. To raise the $",Results!K$69/1000," billion a year in net revenue anticipated to be generated by the ",Select_Plan_Box," by instead raising automobile registration fees on vehicles registered within New York City limits, current fees would need to rise by $",ROUND(J162,0)," per vehicle. This burden would fall most heavily on Staten Island and Queens, which have the most vehicles per capita, while Manhattan, with just ",ROUND(F171,2), " vehicles per household, would pay relatively little. In fact, under this scheme the average Manhattan household would pay only 1/",ROUND(J171/F171,0), " as much as the average household in the four other boroughs, notwithstanding the far greater average income and wealth of Manhattan residents.") -> 4. To raise the $1.91 billion a year in net revenue anticipated to be generated by the Fix NYC higher-range plan by instead raising automobile registration fees on vehicles registered within New York City limits, current fees would need to rise by $1016 per vehicle. This burden would fall most heavily on Staten Island and Queens, which have the most vehicles per capita, while Manhattan, with just 0.3 vehicles per household, would pay relatively little. In fact, under this scheme the average Manhattan household would pay only 1/2 as much as the average household in the four other boroughs, notwithstanding the far greater average income and wealth of Manhattan residents. | L40: =ROW() -> 40
L41: =ROW() -> 41
L42: =ROW() -> 42
L43: =ROW() -> 43
L44: =ROW() -> 44
L45: =ROW() -> 45
B46: Transit Fare Hike (subway and bus fares only, but only to fund subway investments earmarked in the Move NY - Gridlock Sam plan) | L46: =ROW() -> 46
B47: =CONCATENATE("5. To raise the $",ROUND(J273/1000000,-1)," million a year in prospective debt service for NYC Transit's unfunded share of the MTA 2015-2019 capital plan raising all NYC Transit bus and subway fares, the average fare paid by riders would need to rise by ",ROUND(100*J311,1), "%.") -> 5. To raise the $310 million a year in prospective debt service for NYC Transit's unfunded share of the MTA 2015-2019 capital plan raising all NYC Transit bus and subway fares, the average fare paid by riders would need to rise by 8.3%. | L47: =ROW() -> 47
L48: =ROW() -> 48
L49: =ROW() -> 49
B50: =CONCATENATE("See further below (past Row ",L190, ") for estimates for additional revenue alternatives.") -> See further below (past Row 190) for estimates for additional revenue alternatives. | L50: =ROW() -> 50
L51: =ROW() -> 51
B52: A. Raising the Sales Tax in the 12-County MTA Region | G52: 2017 Sales Tax Collections (local portion) | H52: Combined State/Local Sales Tax Rate | I52: Local Sales Tax Rate | J52: Sales Tax Base (rounded to nearest million) | L52: =ROW() -> 52
L53: =ROW() -> 53
L54: =ROW() -> 54
B55: New York City | G55: 7419054304 | H55: 0.08875 | I55: =H55-4% -> 0.04875 | J55: =ROUND(G55/I55,-6) -> 152186000000 | L55: =ROW() -> 55
B56: Dutchess | G56: 183017825.6 | H56: 0.08125 | I56: =H56-4% -> 0.04125 | J56: 4437000000 | L56: =ROW() -> 56
B57: Nassau | G57: 1159400449 | H57: 0.08625 | I57: 0.04625 | J57: 25068000000 | L57: =ROW() -> 57
B58: Orange | G58: 279646699.8 | H58: 0.08125 | I58: 0.04125 | J58: 6779000000 | L58: =ROW() -> 58
B59: Putnam | G59: 58791987.93 | H59: 0.08375 | I59: 0.04375 | J59: 1344000000 | L59: =ROW() -> 59
B60: Rockland | G60: 209114362.3 | H60: 0.08375 | I60: 0.04375 | J60: 4780000000 | L60: =ROW() -> 60
B61: Suffolk | G61: 1383711455 | H61: 0.08625 | I61: 0.04625 | J61: 29918000000 | L61: =ROW() -> 61
B62: Westchester except 4 cities below | G62: 525513104.2 | H62: 0.07375 | I62: 0.03375 | J62: 15571000000 | L62: =ROW() -> 62
B63: Mount Vernon | G63: 20264450.22 | H63: 0.08375 | I63: 0.04375 | J63: 463000000 | L63: =ROW() -> 63
B64: New Rochelle | G64: 28226380.13 | H64: 0.08375 | I64: 0.04375 | J64: 645000000 | L64: =ROW() -> 64
B65: White Plains | G65: 49244842.59 | H65: 0.08375 | I65: 0.04375 | J65: 1126000000 | L65: =ROW() -> 65
B66: Yonkers | G66: =60555818.33+30371777.83 -> 90927596.16 | H66: 0.08375 | I66: 0.04375 | J66: 2078000000 | L66: =ROW() -> 66
B67: Source: Sales tax collections are from Excel file, as570.xls, downloaded from NY State Dept of Taxation and Finance Web site, https://www.tax.ny.gov/research/stats/statistics/sales_tax/government/transparency_reports_list.htm, Oct 21, 2018. Combined State/Local Sales Tax Rates are from Rand New York. Updated: Feb. 2, 2010. Available at: http://bit.ly/ciKUrF. Local rates are Combined rates less 4.00% (percentage points), which is state portion. Sales Tax Base is calculated by dividing sales tax collections by respective local sales tax rate. Yonkers figure = "Yonkers City" + "Yonkers Special." | L67: =ROW() -> 67
L68: =ROW() -> 68
L69: =ROW() -> 69
L70: =ROW() -> 70
B71: 12-County Total, Taxable Sales (rounded) | J71: =SUM(J55:J66) -> 244395000000 | L71: =ROW() -> 71
B72: =CONCATENATE("Sum of eight rows, ",L55, "-",L62, ".") -> Sum of eight rows, 55-62. | L72: =ROW() -> 72
B73: Assumed attrition in taxable sales due to increase in tax rate | J73: 0.005 | L73: =ROW() -> 73
B74: Komanoff estimate. Ideally would be parametrized to magnitude of tax increase. | L74: =ROW() -> 74
B75: Assumed annual increase in taxable sales going forward. | J75: 0.01 | L75: =ROW() -> 75
B76: Komanoff estimate. | L76: =ROW() -> 76
B77: Benchmark year for tax calculations in table | J77: 2017 | L77: =ROW() -> 77
B78: Benchmark year for tax calculations for this analysis | J78: 2018 | L78: =ROW() -> 78
B79: No. of years to benchmark year from most recent period reflected in taxable sales figure. | J79: =J78-J77 -> 1 | L79: =ROW() -> 79
B80: =CONCATENATE("Difference between Rows ",L77, " and ",L54, ".") -> Difference between Rows 77 and 54. | L80: =ROW() -> 80
B81: Projected % increase in taxable sales from most recent level to benchmark year. | J81: =(1+J75)^J79-1 -> 0.01 | L81: =ROW() -> 81
B82: =CONCATENATE("Calculated by exponentiating % in Row ",L75, " for number of years indicated in Row ",L79, ".") -> Calculated by exponentiating % in Row 75 for number of years indicated in Row 79. | L82: =ROW() -> 82
B83: Available Base for Sales Tax in Benchmark Year (rounded) | J83: =ROUND(J71*(1-J73)*(1+J81),-6) -> 245605000000 | L83: =ROW() -> 83
B84: =CONCATENATE("Calculated by increasing Row ",L71, " by Row ",L81, " and decreasing the result by Row ",L73, ".") -> Calculated by increasing Row 71 by Row 81 and decreasing the result by Row 73. | L84: =ROW() -> 84
B85: =CONCATENATE("Revenue needed to match projection from ",Select_Plan_Box,".") -> Revenue needed to match projection from Fix NYC higher-range plan. | J85: =Results!K$69*1000000 -> 1910000000 | L85: =ROW() -> 85
B86: =CONCATENATE("From 'Results' tab, Cell C",Results!N14, ".") -> From 'Results' tab, Cell C14. | K86: This is expressed in percentage points. | L86: =ROW() -> 86
B87: =CONCATENATE("% change in sales tax to yield net revenue projected from ",Select_Plan_Box, ".") -> % change in sales tax to yield net revenue projected from Fix NYC higher-range plan. | J87: =J85/J83 -> 0.007776714643 | L87: =ROW() -> 87
B88: =CONCATENATE("Ratio of Row ",L85, " to Row ",L83, ".") -> Ratio of Row 85 to Row 83. | L88: =ROW() -> 88
B89: Current total sales tax rate in NYC (Note: rate in most surrounding counties is slightly lower, varying from 7.375% in Westchester (outside of cities) to 8.625% in Nassau & Suffolk, per "New York State Tax Rates." Rand New York. Updated: Feb. 2, 2010. Available at: http://bit.ly/ciKUrF.) | J89: 0.08875 | L89: =ROW() -> 89
L90: =ROW() -> 90
L91: =ROW() -> 91
B92: =CONCATENATE("New NYC sales tax rate, to yield net revenue projected from ",Select_Plan_Box, "") -> New NYC sales tax rate, to yield net revenue projected from Fix NYC higher-range plan | J92: =J89+J87 -> 0.09652671464 | L92: =ROW() -> 92
B93: =CONCATENATE("Sum of Rows ",L87, " and ",L89, ".") -> Sum of Rows 87 and 89. | L93: =ROW() -> 93
B94: Current Sales Tax for MTA across 12-county MTA Region | J94: 0.00375 | L94: =ROW() -> 94
B95: Source: Metropolitan Commuter Transportation District (MCTD) Sales and Use Tax Rate Increase Effective June 1, 2005. NYS Dept. of Taxation and Finance. Available at: http://bit.ly/e27AOM . | L95: =ROW() -> 95
L96: =ROW() -> 96
B97: =CONCATENATE("Multiple to current MTA sales tax implied by additional ",ROUND(J87*100,2), "% tax shown in Cell J",L87,".") -> Multiple to current MTA sales tax implied by additional 0.78% tax shown in Cell J87. | J97: =J87/J94 -> 2.073790572 | L97: =ROW() -> 97
B98: =CONCATENATE("Ratio of Row ",L87, " to Row ",L94, ".") -> Ratio of Row 87 to Row 94. | L98: =ROW() -> 98
L99: =ROW() -> 99
B100: B. Raising the Motor Fuel Tax in the 12-County MTA Region | L100: =ROW() -> 100
L101: =ROW() -> 101
B102: Present motor fuel taxes that are local or are allocable to the MTA (does not include standard state tax rate) | L102: =ROW() -> 102
B103: Petroleum Business Tax Rate (per gallon) | J103: 0.169 | L103: =ROW() -> 103
B104: Source: NYS DTF, Fuel tax rates. Article 13-A, Publication 908 (1/18). Was $0.184 in 2014, $0.178 in 2015, $0..170 in 2016, $0.162 in 2017 (same source). | L104: =ROW() -> 104
B105: State Excise Tax Rate (per gallon) | J105: 0.0805 | L105: =ROW() -> 105
B106: Source: NYS DTF, Fuel tax rates. Article 13-A, Publication 908 (1/14). Includes petroleum testing fee. | L106: =ROW() -> 106
B107: Total Motor Fuel Taxes collected by NYS, allocable to the MTA | J107: =SUM(J103:J105) -> 0.2495 | L107: =ROW() -> 107
B108: =CONCATENATE("Sum of Rows ",L103, " and ",L105, ".") -> Sum of Rows 103 and 105. | L108: =ROW() -> 108
B109: NYC Sales Tax Rate on gasoline | I109: 0.045 | L109: =ROW() -> 109
B110: Source: Sales and Use Tax. New York City Finance. "Tax rate." 2018. Available at: https://www1.nyc.gov/site/finance/taxes/business-nys-sales-tax.page | L110: =ROW() -> 110
B111: =CONCATENATE("Approx. price of gas/gallon, to which % in Cell E",L109," is applied.") -> Approx. price of gas/gallon, to which % in Cell E109 is applied. | I111: 3 | L111: =ROW() -> 111
B112: Based loosely on U.S. average retail price of all grades of gasoline, Jan-Aug 2018 of $2.66 (w/o taxes), calc'd from data in Monthly Energy Review, Table 9.4. | L112: =ROW() -> 112
B113: =CONCATENATE("Local Sales Tax (",I109*100, "% of price in dollars)") -> Local Sales Tax (4.5% of price in dollars) | J113: =I109*I111 -> 0.135 | L113: =ROW() -> 113
B114: Total State and Local Motor Fuel Taxes in New York City, baseline: | J114: =SUM(J107:J113) -> 0.3845 | L114: =ROW() -> 114
B115: =CONCATENATE("Sum of Rows ",L107, " and ",L113, ".") -> Sum of Rows 107 and 113. | L115: =ROW() -> 115
B116: Taxable motor fuel consumed in MTA Region, gallons, 2017 | J116: 3000811994 | L116: =ROW() -> 116
B117: Email communication from "Ziter, Cary B (TAX)" <Cary.Ziter@tax.ny.gov>, Nov.134, 2018, in response to Komanoff inquiry. Figure shown is 12 months, March 2017 - Feb 2018. For comparison, prior 12 months (3/16-2/17): 2,906,712,823; preceding 12 months (3/15-2/16): 2,837,150,170. | L117: =ROW() -> 117
L118: =ROW() -> 118
L119: =ROW() -> 119
B120: Assumed annual change in motor fuel sales in MTA region, going forward from 2017. | J120: 0.01 | L120: =ROW() -> 120
B121: Komanoff estimate, based on expectation that post-2014 drop in gasoline price will more than offset (putative) trend toward improved fuel economy. | L121: =ROW() -> 121
B122: Benchmark year for tax calculations | J122: 2018 | L122: =ROW() -> 122
B123: No. of years to benchmark year from most recent period reflected in taxable sales figure. | J123: =J122-2017 -> 1 | L123: =ROW() -> 123
B124: =CONCATENATE("Difference between Row ",L122, " and 2014.") -> Difference between Row 122 and 2014. | L124: =ROW() -> 124
B125: Projected % change in taxable sales from most recent level to benchmark year. | J125: =(1+J120)^J123-1 -> 0.01 | L125: =ROW() -> 125
B126: =CONCATENATE("Calculated by exponentiating % in Row ",L120, " for number of years indicated in Row ",L123, ".") -> Calculated by exponentiating % in Row 120 for number of years indicated in Row 123. | L126: =ROW() -> 126
B127: Assumed attrition in taxable motor fuel sales due to increase in motor fuel tax rate | J127: 0.02 | L127: =ROW() -> 127
B128: Komanoff estimate. Ideally would be parametrized to magnitude of tax increase. | L128: =ROW() -> 128
B129: Estimated Available Base for Motor Fuels Tax in Benchmark Year, Gallons (rounded) | J129: =ROUND(J116*(1+J125)*(1-J127),-6) -> 2970000000 | L129: =ROW() -> 129
B130: =CONCATENATE("Calculated by increasing Row ",L116, " by Row ",L125, " and decreasing the result by Row ",L127, ".") -> Calculated by increasing Row 116 by Row 125 and decreasing the result by Row 127. | L130: =ROW() -> 130
B131: =CONCATENATE("Revenue needed to match projection from ",Select_Plan_Box,".") -> Revenue needed to match projection from Fix NYC higher-range plan. | J131: =Results!K$69*1000000 -> 1910000000 | L131: =ROW() -> 131
B132: =CONCATENATE("From 'Results' tab, Cell C",Results!N$14, ".") -> From 'Results' tab, Cell C14. | L132: =ROW() -> 132
B133: =CONCATENATE("Increase in motor fuels tax to yield net revenue projected from ",Select_Plan_Box, ".") -> Increase in motor fuels tax to yield net revenue projected from Fix NYC higher-range plan. | J133: =J131/J129 -> 0.6430976431 | L133: =ROW() -> 133
B134: =CONCATENATE("Ratio of Row ",L131, " to Row ",L129, ".") -> Ratio of Row 131 to Row 129. | L134: =ROW() -> 134
B135: Revised total rate per gallon of fuel of MTA-dedicated tax | J135: =J114+J133 -> 1.027597643 | L135: =ROW() -> 135
B136: =CONCATENATE("Sum of Rows ",L114, " and ",L133, ".") -> Sum of Rows 114 and 133. | L136: =ROW() -> 136
B137: Implied % Increase in MTA-dedicated motor fuel tax | J137: =J135/J114-1 -> 1.672555639 | L137: =ROW() -> 137
B138: =CONCATENATE("Ratio of Row ",L135, " to Row ",L114, ".") -> Ratio of Row 135 to Row 114. | L138: =ROW() -> 138
L139: =ROW() -> 139
B140: C. Raising the Payroll Mobility Tax Rate in the 12-County MTA Region | L140: =ROW() -> 140
L141: =ROW() -> 141
B142: Current (1Q 2017 actual) revenue generated by PMT | J142: 483000000 | L142: =ROW() -> 142
B143: MTA, "Consolidated Interim Financial Statements as of and for the Three-Month Period Ended March 31, 2018," p 26 of 131, available at http://web.mta.info/mta/budget/pdf/MTA-Consolidated-Financial-Statements-2018-Q1_Issued.pdf | L143: =ROW() -> 143
L144: =ROW() -> 144
B145: Current (2017 est'd) revenue generated by PMT | J145: =4*J142 -> 1932000000 | L145: =ROW() -> 145
B146: =CONCATENATE("Four times Row ",L142, ".") -> Four times Row 142. | L146: =ROW() -> 146
B147: PMT Rate | J147: 0.0034 | L147: =ROW() -> 147
B148: No source needed. Figure is commonly known. | L148: =ROW() -> 148
B149: =CONCATENATE("Revenue needed to match projection from ",Select_Plan_Box,".") -> Revenue needed to match projection from Fix NYC higher-range plan. | J149: =Results!K$69*1000000 -> 1910000000 | L149: =ROW() -> 149
B150: =CONCATENATE("From 'Results' tab, Cell C",Results!N$14, ".") -> From 'Results' tab, Cell C14. | L150: =ROW() -> 150
B151: =CONCATENATE("Increase in Payroll Mobility Tax rate to match revenue from ",Select_Plan_Box, ".") -> Increase in Payroll Mobility Tax rate to match revenue from Fix NYC higher-range plan. | J151: =J149/J145*J147 -> 0.003361283644 | L151: =ROW() -> 151
B152: =CONCATENATE("Calculated by prorating the current PMT rate shown in Row ",L147, " by the ratio of Row ",L149, " to Row ",L142,".") -> Calculated by prorating the current PMT rate shown in Row 147 by the ratio of Row 149 to Row 142. | L152: =ROW() -> 152
B153: =CONCATENATE("Rate required to generate projected 2017 revenue plus revenue projected for ",Select_Plan_Box, ".") -> Rate required to generate projected 2017 revenue plus revenue projected for Fix NYC higher-range plan. | J153: =J147+J151 -> 0.006761283644 | L153: =ROW() -> 153
B154: =CONCATENATE("Sum of Rows ",L147, " and ",L151, ".") -> Sum of Rows 147 and 151. | L154: =ROW() -> 154
L155: =ROW() -> 155
B156: D. Raising Automobile Registration Fees in NYC (but not in the 7 "suburban" MTA counties) | L156: =ROW() -> 156
L157: =ROW() -> 157
B158: Number of Registered Automobiles in the five boroughs | J158: =Incidence!V572 -> 1879464 | L158: =ROW() -> 158
B159: =CONCATENATE("From 'Incidence' worksheet, Cell V",Incidence!AA572, ". Drawn from U.S. Census, American Community Survey, 2012 data.") -> From 'Incidence' worksheet, Cell V572. Drawn from U.S. Census, American Community Survey, 2012 data. | L159: =ROW() -> 159
B160: =CONCATENATE("Revenue needed to match projection from ",Select_Plan_Box,"") -> Revenue needed to match projection from Fix NYC higher-range plan | J160: =Results!K$69*1000000 -> 1910000000 | L160: =ROW() -> 160
B161: =CONCATENATE("From 'Results' tab, Cell C",Results!N$14, ".") -> From 'Results' tab, Cell C14. | L161: =ROW() -> 161
B162: =CONCATENATE("Incrs in NYC per-auto registration fee to match revenue from ",Select_Plan_Box,"") -> Incrs in NYC per-auto registration fee to match revenue from Fix NYC higher-range plan | J162: =J160/J158 -> 1016.247185 | L162: =ROW() -> 162
B163: =CONCATENATE("Ratio of Row ",L160, " to Row ",L158, ". Assumes no exemptions/leakage; also ignores trucks.") -> Ratio of Row 160 to Row 158. Assumes no exemptions/leakage; also ignores trucks. | L163: =ROW() -> 163
B164: No of Reg. Motor Veh's (passenger + commercial + half-a-dozen other categories) in 5 boroughs | J164: =Incidence!V570 -> 2107321 | L164: =ROW() -> 164
B165: =CONCATENATE("From 'Incidence' worksheet, Cell V",Incidence!AA570, ". Drawn from NYMTC data for 2015.") -> From 'Incidence' worksheet, Cell V570. Drawn from NYMTC data for 2015. | L165: =ROW() -> 165
B166: =CONCATENATE("Incrs in NYC per-motor vehicle registration fee to match revenue from ",Select_Plan_Box,"") -> Incrs in NYC per-motor vehicle registration fee to match revenue from Fix NYC higher-range plan | J166: =J160/J164 -> 906.3640518 | L166: =ROW() -> 166
B167: =CONCATENATE("Ratio of Row ",L$182, " to Row ",L164, ". Assumes no exemptions/leakage; includes all motor vehicles, not just passenger vehs.") -> Ratio of Row 182 to Row 164. Assumes no exemptions/leakage; includes all motor vehicles, not just passenger vehs. | L167: =ROW() -> 167
L168: =ROW() -> 168
B169: Results: Impacts, by borough (based on surcharging passenger autos only) | L169: =ROW() -> 169
D170: =Incidence!G569 -> Bronx | E170: =Incidence!H569 -> Brooklyn | F170: =Incidence!I569 -> Manhattan | G170: =Incidence!J569 -> Queens | H170: =Incidence!K569 -> S.I. | I170: =Incidence!V569 -> NYC | J170: NYC w/o Manhattan | L170: =ROW() -> 170
B171: Autos per Household | D171: =Incidence!G586 -> 0.5065675304 | E171: =Incidence!H586 -> 0.4815349824 | F171: =Incidence!I586 -> 0.3037220465 | G171: =Incidence!J586 -> 0.9118394462 | H171: =Incidence!K586 -> 1.574130717 | I171: =Incidence!V586 -> 0.6090658737 | J171: =Incidence!W586 -> 0.7065363674 | L171: =ROW() -> 171
B172: Annual cost per Household | D172: =$J$162*D171 -> 514.797827 | E172: 489.3585705 | F172: 308.6566749 | G172: 926.6542707 | H172: 1599.70591 | I172: 618.9614799 | J172: 718.0155947 | L172: =ROW() -> 172
B173: Total, $ millions per yr | D173: =$J$162*Incidence!G572/1000000 -> 245.0324401 | E173: =$J$162*Incidence!H572/1000000 -> 449.8834827 | F173: =$J$162*Incidence!I572/1000000 -> 230.4696179 | G173: =$J$162*Incidence!J572/1000000 -> 723.1137335 | H173: =$J$162*Incidence!K572/1000000 -> 261.5007257 | I173: =$J$162*Incidence!V572/1000000 -> 1910 | J173: =$J$162*Incidence!W572/1000000 -> 1679.530382 | L173: =ROW() -> 173
B174: =CONCATENATE("Row ",L171, " is copied from 'Incidence' tab, Row ",Incidence!AA586, ".") -> Row 171 is copied from 'Incidence' tab, Row 586. | L174: =ROW() -> 174
B175: =CONCATENATE("Row ",L172, " is product of per-auto fee in Cell J",L162, " and borough avg # of autos per HH in Row ",L171, ".") -> Row 172 is product of per-auto fee in Cell J162 and borough avg # of autos per HH in Row 171. | L175: =ROW() -> 175
B176: =CONCATENATE("Row ",L173, " is product of per-auto fee in Cell J",L162, " and borough total # of autos per HH from 'Incidence' tab, Row ",Incidence!AA572, ".") -> Row 173 is product of per-auto fee in Cell J162 and borough total # of autos per HH from 'Incidence' tab, Row 572. | L176: =ROW() -> 176
L177: =ROW() -> 177
B178: E. Raising Automobile Registration Fees in all 12 MTA counties | L178: =ROW() -> 178
L179: =ROW() -> 179
B180: Number of Registered Automobiles (passenger vehicles only) in five boroughs + seven non-NYC MTA counties | J180: =Incidence!U572 -> 5290965 | L180: =ROW() -> 180
B181: =CONCATENATE("From 'Incidence' worksheet, Cell U",Incidence!AA572, ". Drawn from NYMTC data for 2015.") -> From 'Incidence' worksheet, Cell U572. Drawn from NYMTC data for 2015. | L181: =ROW() -> 181
B182: =CONCATENATE("Revenue needed to match projection from ",Select_Plan_Box,"") -> Revenue needed to match projection from Fix NYC higher-range plan | J182: =Results!K$69*1000000 -> 1910000000 | L182: =ROW() -> 182
B183: =CONCATENATE("From 'Results' tab, Cell C",Results!N$14, ".") -> From 'Results' tab, Cell C14. | L183: =ROW() -> 183
B184: =CONCATENATE("Incrs in NYC per-auto registration fee to match revenue from ",Select_Plan_Box,"") -> Incrs in NYC per-auto registration fee to match revenue from Fix NYC higher-range plan | J184: =J182/J180 -> 360.992749 | L184: =ROW() -> 184
B185: =CONCATENATE("Ratio of Row ",L$182, " to Row ",L180, ". Assumes no exemptions/leakage; also ignores trucks.") -> Ratio of Row 182 to Row 180. Assumes no exemptions/leakage; also ignores trucks. | L185: =ROW() -> 185
B186: No of Reg. Motor Veh's (passenger + commercial + half-a-dozen other categories) in 5 boroughs + 7 other MTA counties | J186: =Incidence!U570 -> 5899245 | L186: =ROW() -> 186
B187: =CONCATENATE("From 'Incidence' worksheet, Cell U",Incidence!AA570, ". Drawn from NYMTC data for 2015.") -> From 'Incidence' worksheet, Cell U570. Drawn from NYMTC data for 2015. | L187: =ROW() -> 187
B188: =CONCATENATE("Incrs in NYC per-motor vehicle registration fee to match revenue from ",Select_Plan_Box,"") -> Incrs in NYC per-motor vehicle registration fee to match revenue from Fix NYC higher-range plan | J188: =J182/J186 -> 323.7702452 | L188: =ROW() -> 188
B189: =CONCATENATE("Ratio of Row ",L$182, " to Row ",L186, ". Assumes no exemptions/leakage; includes all motor vehicles, not just passenger vehs.") -> Ratio of Row 182 to Row 186. Assumes no exemptions/leakage; includes all motor vehicles, not just passenger vehs. | L189: =ROW() -> 189
L190: =ROW() -> 190
B191: F. "Millionaires' Tax" | L191: =ROW() -> 191
L192: =ROW() -> 192
B193: In 2017, Mayor Bill de Blasio and NY State Senator Michael Gianaris, Democrat of Queen, have separately proposed raising the top marginal tax rate on income earned by people filing taxes in NYC. This has been dubbed the millionaires' tax. | L193: =ROW() -> 193
L194: =ROW() -> 194
L195: =ROW() -> 195
B196: In a news article dated Aug 6, 2017, The NY Times reported that "The proposed new tax would raise about $700 million to $800 million a year, with more than $500 million going toward capital costs for subways and buses and about $250 million for the half-price MetroCard program, city officials said. It would increase the city’s highest income tax rate by about half a percentage point, to 4.4 percent from about 3.9 percent, for married couples with incomes above $1 million and individuals who make more than $500,000." | L196: =ROW() -> 196
L197: =ROW() -> 197
L198: =ROW() -> 198
L199: =ROW() -> 199
B200: Link: https://www.nytimes.com/2017/08/06/nyregion/bill-de-blasio-will-push-for-tax-on-wealthy-to-fix-subway.html | L200: =ROW() -> 200
... 131 more rows

Sheet Why
B1: Why? | C1: The Logical Underpinnings of Congestion Pricing (a brief tutorial) | H1: ='Title Page'!G2 -> 2019-09-15
B4: The text imprinted in the graphic at right distills the essence of the traffic "problem": although drivers going to or through congested areas are quite cognizant of traffic's impact on the time their own trip will take, they're largely heedless of the extent to which their trips slow down traffic at large. Indeed, drivers have no need to ponder the "time costs" their trips impose on others, since they aren't charged for them.
B8: When traffic is light or even moderate, those time costs are generally modest -- my trip hardly slows down traffic, and there are so few other vehicles that any delays caused by my driving can't amount to much. But in the heavy traffic conditions that typify congested NYC roads -- especially in the Manhattan Central Business District and on the approaches to it -- those costs can be substantial.
B12: =CONCATENATE("In another part of this spreadsheet, the 'Delay Costs' page (tab), we estimate that just the in-bound leg of an average trip into and out of the CBD, from a distance of around ",ROUND('Motor Vs'!I101,0)," miles, slows down other road users -- cars, trucks, cabs, buses -- by an aggregate total of ",0.5*ROUNDDOWN(2*Delays!N105,-1)," to ",0.5*ROUNDUP(2*Delays!N105,-1), " minutes. Yet no 'price signal' compels the would-be driver contemplating that car trip to factor those prospective delays into her or his decision to drive or not.") -> In another part of this spreadsheet, the 'Delay Costs' page (tab), we estimate that just the in-bound leg of an average trip into and out of the CBD, from a distance of around 18 miles, slows down other road users -- cars, trucks, cabs, buses -- by an aggregate total of 75 to 80 minutes. Yet no 'price signal' compels the would-be driver contemplating that car trip to factor those prospective delays into her or his decision to drive or not.
B16: =CONCATENATE("Congestion pricing, or 'traffic pricing' broadly, 'closes this loop.' It does so through toll charges that incentivize prospective trip-takers to take into account the delays their trips will "&"impose on others. This 'cost-internalization' will lead some trip-takers -- just how many depends on the toll level -- to switch their trips to different modes (transit, carpool, bike), to other destinations, or to "&"other times of the day or week. The resulting thinning of the traffic stream will improve traffic flow significantly (provided the toll is more than a token dollar or two). We estimate that for the ",Results!K27,", average speeds of car travel within the Manhattan Central Business District on weekdays will increase by ",100*ROUNDDOWN(Results!B14,2), "-",100*ROUNDUP(Results!B14,2), "%. Though the percentage gains in speeds outside the CBD (on the approaches) will be smaller, traffic volumes there are so great that the aggregate hours saved on trips that use the approaches but don't cross into " & "the CBD (and thus won't pay the toll) may even exceed the total time savings on trips going into or through the CBD.") -> Congestion pricing, or 'traffic pricing' broadly, 'closes this loop.' It does so through toll charges that incentivize prospective trip-takers to take into account the delays their trips will impose on others. This 'cost-internalization' will lead some trip-takers -- just how many depends on the toll level -- to switch their trips to different modes (transit, carpool, bike), to other destinations, or to other times of the day or week. The resulting thinning of the traffic stream will improve traffic flow significantly (provided the toll is more than a token dollar or two). We estimate that for the Fix NYC higher-range plan, average speeds of car travel within the Manhattan Central Business District on weekdays will increase by 20-21%. Though the percentage gains in speeds outside the CBD (on the approaches) will be smaller, traffic volumes there are so great that the aggregate hours saved on trips that use the approaches but don't cross into the CBD (and thus won't pay the toll) may even exceed the total time savings on trips going into or through the CBD.
B25: =CONCATENATE("To see those time savings, go to the 'Results' page (it's a few pages 'up' from this one). Our model estimates that, over the course of a year, the ",Results!K27," will save car and truck users a total of ",ROUND(Results!S119,0), " million hours they now spend sitting in traffic in the CBD, and another ",ROUND(Results!S120,0), " million hours outside the CBD. Moreover, around ",ROUND(100*'Cost-Benefit'!I247/'Cost-Benefit'!I245,0), "% of the non-CBD saved hours will be on trips that don't even enter the Manhattan core and thus will not be charged a congestion toll. The monetary value of all of the saved time? Around ",ROUND((Results!R119+Results!R120)/1000,0), " billion dollars a year, as can be seen elsewhere on that page.") -> To see those time savings, go to the 'Results' page (it's a few pages 'up' from this one). Our model estimates that, over the course of a year, the Fix NYC higher-range plan will save car and truck users a total of 45 million hours they now spend sitting in traffic in the CBD, and another 43 million hours outside the CBD. Moreover, around 70% of the non-CBD saved hours will be on trips that don't even enter the Manhattan core and thus will not be charged a congestion toll. The monetary value of all of the saved time? Around 2 billion dollars a year, as can be seen elsewhere on that page. | J25: Sachs' book was published in 1984, in German; an English edition followed in 1992 (Univ. of California Press) and is available via this link: <http://www.ucpress.edu/book.php?isbn=9780520068780>. The full (English) title is: For Love of the Automobile: Looking Back Into the History of Our Desires. Of the hundreds of books I've read on transport, cities and "automobility," it remains my favorite. Click this link <http://bit.ly/M9fRUk> to access my review in Kokopelli Notes in 1993. For my 2012 meditation, published in Streetsblog, on Sachs and the late American scholar-activist-organizer Richard Grossman, who gifted me the book, click: <http://bit.ly/XWED4U> -- C. Komanoff
B30: =CONCATENATE("The other big plus from congestion pricing in New York City will be generation of a large and reliable revenue stream that can be used to improve the city and region's transportation infrastructure. "&"We estimate that after paying for toll collection and other system costs, the ",Results!K27," will be able to provide some $",ROUNDDOWN(Results!E14/1000,1)/1000000," billion to invest *each year* in improved subways, buses, rail and roads. These expenditures will revitalize mass transit, saving transit users an estimated ",ROUND(Results!S121,0), " million hours in travel time annually and drawing even more car trips off of the roads and into transit (thus contributing to the travel time savings noted in the prior paragraph). Road improvements " & "that might also be financed by the congestion revenues will " & "generate further road travel time savings that we haven't quantified here.") -> The other big plus from congestion pricing in New York City will be generation of a large and reliable revenue stream that can be used to improve the city and region's transportation infrastructure. We estimate that after paying for toll collection and other system costs, the Fix NYC higher-range plan will be able to provide some $1.91 billion to invest *each year* in improved subways, buses, rail and roads. These expenditures will revitalize mass transit, saving transit users an estimated 97 million hours in travel time annually and drawing even more car trips off of the roads and into transit (thus contributing to the travel time savings noted in the prior paragraph). Road improvements that might also be financed by the congestion revenues will generate further road travel time savings that we haven't quantified here.

Sheet Flowchart
B1: Flowchart | E1: ='Title Page'!G2 -> 2019-09-15
B5: This worksheet sketches the key relationships among the four travel modes -- car/truck, taxi, subway and bus -- that are modeled in the BTA. This is done graphically, at right, and schematically, below.
B8: Below, for each vehicle category, we itemize the "agent" impacting its use (e.g., the cordon toll, or travel time savings due to it) and specify the direction (positive or negative) of the impact and its approximate magnitude.
B11: "Strength of effect" is approximate. It is meant to reflect not only the elasticities (which are shown in the Elasticities worksheet), but also the magnitude of the agents (tolls, fares, etc.) assumed in both the 2011 Move NY Plan and the 2015 Move NY - Sam Schwartz Plan, as outlined in the Traffic Plans worksheet.
B15: Example: for car and truck trips, we assume a larger time-elasticity than price-elasticity; thus, a 10% reduction in travel time would generate a greater percentage increase in car trips than would a 10% reduction in trip cost. Nevertheless, the impact of tolls in almost any NYC cordon toll plan exceeds the "rebound effect" of faster travel; this is because the tolls would raise the average price of CBD-bound trips by a greater percent than the time savings would reduce the same trips' travel times.
B21: How Key Parameters (Agents) Affect Mode Choice and Magnitudes (Volumes) in the Balanced Transportation Analyzer
B24: Note: "Transit" denotes subway and bus service. | D24: Direction of effect (negative or positive) | E24: Strength of effect (large, medium or small)
B26: Dependent Variable (the quantity affected by the agent)
C27: Agent (operates on and affects the dependent variable) | F27: Interpretation/Explanation
B29: Car and truck trips to CBD | C29: Cordon toll on cars and trucks | D29: Negative | E29: Large | F29: CBD tolls have big impact on number of trips.
C30: Travel time savings because cordon toll has cut traffic | D30: Positive | E30: Medium | F30: Speed gains make car travel more attractive.
C31: Improved and/or cheaper transit service | D31: Negative | E31: Small-Medium | F31: Better transit attracts some trips from cars, but not a lot.
C32: More taxi medallions (yellow cabs) | D32: Negative | E32: Small | F32: More medallions add to CBD gridlock, making car travel less attractive.
B34: Yellow cab (taxi) trips | C34: Taxi fare surcharge | D34: Negative | E34: Small | F34: Taxi use is much less price-elastic than car use.
C35: Cordon toll on cars and trucks | D35: Positive | E35: Small | F35: Higher entrance fees for cars make taxis more attractive, but effect is small.
C36: Travel time savings because cordon toll has cut traffic | D36: Positive | E36: Medium | F36: Taxi users are time-sensitive; higher speeds from cordon tolls will result in more trips.
C37: Improved and/or cheaper transit service | D37: Negative | E37: Small | F37: Better transit attracts some trips from taxis, but not a lot.
C38: More taxi medallions (yellow cabs) | D38: Either | E38: Small | F38: More medallions cut "hail time" but also make taxi rides take longer; net impact depends on particulars, but is probably minor.
B40: Subway trips | C40: Fare reductions (financed by cordon toll and taxi surcharge) | D40: Positive | E40: Small | F40: Transit use isn't very price-elastic.
C41: Cordon toll on cars and trucks | D41: Positive | E41: Small | F41: Higher entrance fees for cars make transit more attractive, but effect is small.
C42: Travel time savings from subway service improvements | D42: Positive | E42: Medium | F42: Transit use is relatively time-sensitive; better service attracts trips.
C43: More taxi medallions (yellow cabs) | D43: Positive | E43: Small | F43: More medallions add to CBD gridlock, making car travel less attractive vis-à-vis subways.
B45: Bus trips | C45: Fare reductions (financed by cordon toll and taxi surcharge) | D45: Positive | E45: Small | F45: Transit use isn't very price-elastic.
C46: Cordon toll on cars and trucks | D46: Positive | E46: Small | F46: Higher entrance fees for cars make transit more attractive, but effect is small.
C47: Travel time savings from bus service improvements | D47: Positive | E47: Medium | F47: Transit use is relatively time-sensitive; better service attracts trips.
C48: More taxi medallions (yellow cabs) | D48: Negative | E48: Small | F48: More medallions add to CBD gridlock, making bus travel less attractive.
B50: Timing of car/truck trips to CBD | C50: Higher toll for one time period vis-à-vis prior or next period | D50: Negative | E50: Small | F50: Not many drivers will switch travel time to take advantage of a lower toll.
B52: Timing of subway trips to CBD | C52: Higher fare for one time period vis-à-vis prior or next period | D52: Negative | E52: Small | F52: Not many drivers will switch travel time to take advantage of a lower toll.

Sheet Assumptions
B1: Assumptions | I1: ='Title Page'!G2 -> 2019-09-15 | L1: =ROW() -> 1
L2: =ROW() -> 2
L3: =ROW() -> 3
B4: This worksheet collects key assumptions that drive the BTA. It was largely prepared in 2011 and hasn't been fully updated. | L4: =ROW() -> 4
L5: =ROW() -> 5
B6: The assumptions here are linked from but not to the assumptions in the various worksheet tabs. Changing figures in this worksheet will not change the values of any calculations in or results from the BTA. | L6: =ROW() -> 6
L7: =ROW() -> 7
L8: =ROW() -> 8
B9: This list of assumptions follows the sequence of the worksheet tabs. Where worksheets have been skipped, either their key assumptions have been treated elsewhere in this sheet, or they were considered peripheral and were omitted. | L9: =ROW() -> 9
L10: =ROW() -> 10
L11: =ROW() -> 11
B12: =CONCATENATE("Rather than scroll through this long (",MAX(L1:L10087), " rows) worksheet, click on any link below to be taken directly to that section.") -> Rather than scroll through this long (776 rows) worksheet, click on any link below to be taken directly to that section. | L12: =ROW() -> 12
L13: =ROW() -> 13
B14: Results & Policy Levers | L14: =ROW() -> 14
B15: Revenues | L15: =ROW() -> 15
B16: Cost-Benefit | L16: =ROW() -> 16
B17: Travel | L17: =ROW() -> 17
B18: Motor Vs & Motor Vs Weekends | L18: =ROW() -> 18
B19: Incidence | L19: =ROW() -> 19
B20: Trucks | L20: =ROW() -> 20
B21: Taxis | L21: =ROW() -> 21
B22: Transit | L22: =ROW() -> 22
B23: Subways | L23: =ROW() -> 23
B24: Subway vs. Bus | L24: =ROW() -> 24
B25: Buses | L25: =ROW() -> 25
B26: Weekday Hours & Weekend Hours | L26: =ROW() -> 26
B27: Weekends | L27: =ROW() -> 27
B28: Speed-Volume, Cordon | L28: =ROW() -> 28
B29: Speed-Volume, non-Cordon | L29: =ROW() -> 29
B30: VMT | L30: =ROW() -> 30
B31: Elasticities | L31: =ROW() -> 31
B32: Cordon | L32: =ROW() -> 32
B33: Emissions | L33: =ROW() -> 33
B34: Parking | L34: =ROW() -> 34
B35: Value of Time | L35: =ROW() -> 35
L36: =ROW() -> 36
B37: Results • Policy Levers | L37: =ROW() -> 37
L38: =ROW() -> 38
B39: Assumptions that are inputted into the Results and Policy Levers worksheet tabs are not shown here. Those "input assumptions" pertain to the particular traffic scenarios that we have pre-programmed into the model (which users are free to modify). Rather, the assumptions annotated here are those that take the input assumptions (tolls, transit fares, etc.) and calculate the changes in traffic, revenues and emissions that those inputs will bring about. | L39: =ROW() -> 39
L40: =ROW() -> 40
L41: =ROW() -> 41
L42: =ROW() -> 42
L43: =ROW() -> 43
B44: Cost-Benefit | L44: =ROW() -> 44
L45: =ROW() -> 45 | N45: ='Cost-Benefit'!O779 -> 0
B46: =CONCATENATE("The Cost-Benefit worksheet, now ",MAX('Cost-Benefit'!O688,'Cost-Benefit'!O1498), " rows long, derives estimates of important social-cost indicators but is not essential to the architecture of the BTA. It is also exhaustively referenced. Accordingly, only a handful of key assumptions are shown here. ") -> The Cost-Benefit worksheet, now 688 rows long, derives estimates of important social-cost indicators but is not essential to the architecture of the BTA. It is also exhaustively referenced. Accordingly, only a handful of key assumptions are shown here. | L46: =ROW() -> 46
L47: =ROW() -> 47
L48: =ROW() -> 48
B49: Average value of a vehicle-hour saved in traffic (these values are used to monetize time savings from cordon tolls) | L49: =ROW() -> 49
B50: Weekdays, within CBD (derived via matrix of values est'd for autos, taxis, trucks, etc. in Value of Time wksht) | I50: ='Value of Time'!M90 -> 51.56237566 | L50: =ROW() -> 50
B51: Factors to adjust weekday time value to weekends, and in-CBD to outside-CBD (Komanoff assumptions) | L51: =ROW() -> 51
B52: Weekends vs. Weekdays | D52: =CONCATENATE("Shown in Cost-Ben tab, Row ",'Cost-Benefit'!O126, ".") -> Shown in Cost-Ben tab, Row 126. | I52: ='Cost-Benefit'!M126 -> 0.6 | L52: =ROW() -> 52
B53: Out-CBD hour vs. Inside | D53: =CONCATENATE("Shown in Cost-Ben tab, Row ",'Cost-Benefit'!O127, ".") -> Shown in Cost-Ben tab, Row 127. | I53: ='Cost-Benefit'!M127 -> 0.6666666667 | L53: =ROW() -> 53
B54: Out-CBD hr vs. In, for vans, trucks, rigs | E54: =CONCATENATE("From VOTime tab, Row ",'Value of Time'!O104, ".") -> From VOTime tab, Row 104. | I54: ='Value of Time'!D104 -> 0.9 | L54: =ROW() -> 54
B55: Weekends, within CBD | D55: =CONCATENATE("(Product of Rows ",L50, " and ",L52, ".)") -> (Product of Rows 50 and 52.) | I55: =I50*I52 -> 30.9374254 | L55: =ROW() -> 55
B56: Weekdays, approaches to CBD (same method as for Weekdays, above, though with different weighting of vehicles) | I56: ='Value of Time'!M126 -> 29.38880628 | L56: =ROW() -> 56
B57: Weekends, approaches to CBD (employs same approaches-to-CBD factor as for weekdays) | I57: =I56*I52 -> 17.63328377 | L57: =ROW() -> 57
L58: =ROW() -> 58
B59: Climate value of each metric ton of CO2 emissions averted through cordon toll | I59: 50 | L59: =ROW() -> 59
B60: Komanoff assumption. Note that U.S. gov't now uses value of $XX in cost-benefit analyses (citation TK). | L60: =ROW() -> 60
B61: Military and national-security cost reduction, per gallon of gasoline averted through toll | I61: ='Cost-Benefit'!L489/'Cost-Benefit'!L495 -> 0.1851485166 | L61: =ROW() -> 61
B62: =CONCATENATE("Calculations are documented in 'Cost-Benefit' worksheet tab, Rows ",'Cost-Benefit'!O462, " through ",'Cost-Benefit'!O495, ".") -> Calculations are documented in 'Cost-Benefit' worksheet tab, Rows 462 through 495. | L62: =ROW() -> 62
B63: Air quality value of each metric ton PM10 emissions w/i CBD averted through cordon toll | I63: ='Cost-Benefit'!E556*'Cost-Benefit'!H556 -> 0 | L63: =ROW() -> 63
B64: =CONCATENATE("Calculations documented in 'Cost-Benefit' worksheet tab, Rows ",'Cost-Benefit'!O535, " through ",'Cost-Benefit'!O556, ". Is ",'Cost-Benefit'!H556, "x value assigned by Calif. Air Resources Board.") -> Calculations documented in 'Cost-Benefit' worksheet tab, Rows 535 through 556. Is x value assigned by Calif. Air Resources Board. | L64: =ROW() -> 64
B65: Gain in NYC bicycling's mode share (in % pts) that would be triggered by each 1% drop in traffic on city streeets | I65: =Bicycles!L216*(Bicycles!L214-Bicycles!L199) -> 0.001835579302 | L65: =ROW() -> 65
B66: =CONCATENATE("Calculations documented in 'Bicycles' worksheet tab, Rows ",Bicycles!O197, "-",Bicycles!O217, ". Underlying assumption is that eliminating NYC auto traffic on streets would cause cycling's mode share to rise to current urban levels in Germany, Denmark and Netherlands.") -> Calculations documented in 'Bicycles' worksheet tab, Rows 197-217. Underlying assumption is that eliminating NYC auto traffic on streets would cause cycling's mode share to rise to current urban levels in Germany, Denmark and Netherlands. | L66: =ROW() -> 66
L67: =ROW() -> 67
B68: Value of each life saved from reduced emissions or increased physical activity resulting from cordon toll | I68: =ROUND('Cost-Benefit'!I638*'Cost-Benefit'!I644,0) -> 5 | J68: million | L68: =ROW() -> 68
B69: =CONCATENATE("Derived in 'Cost-Benefit' tab, Rows ",'Cost-Benefit'!O638, " through ",'Cost-Benefit'!O646, ".") -> Derived in 'Cost-Benefit' tab, Rows 638 through 646. | L69: =ROW() -> 69
L70: =ROW() -> 70
B71: Travel | L71: =ROW() -> 71
L72: =ROW() -> 72
B73: Auto occupancies for trips to CBD | L73: =ROW() -> 73
B74: Work | I74: =Travel!G101 -> 1.15 | L74: =ROW() -> 74
B75: Non-work | I75: =Travel!G102 -> 1.5 | L75: =ROW() -> 75
B76: Through trips | I76: =Travel!G103 -> 1.294521293 | L76: =ROW() -> 76
B77: =CONCATENATE("First two figures are shown in Rows ",Travel!P101, "-",Travel!P102, ", but are taken from 'H.I.S.' worksheet, Row ",H.I.S.!Z125, ". Third is weighted avg of those two.") -> First two figures are shown in Rows 101-102, but are taken from 'H.I.S.' worksheet, Row 125. Third is weighted avg of those two. | L77: =ROW() -> 77
B78: Vehicle-occupancy elasticities (VOE) (a parameter used to translate increased trip costs into increased carpooling) | L78: =ROW() -> 78
B79: Work | C79: VOE was defined in a paper by Graham et al. cited in Travel worksheet. A value of negative 0.10 was used in a related paper co-authored by Graham and also cited there. We use that value for non-work trips but halve it for work trips to reflect greater difficulty of car-pooling for work trips. For through trips we take average of work and non-work trips. | I79: =Travel!G282 -> -0.05 | L79: =ROW() -> 79
B80: Non-work | I80: =Travel!H282 -> -0.1 | L80: =ROW() -> 80
B81: Through trips | I81: =Travel!I282 -> -0.075 | L81: =ROW() -> 81
L82: =ROW() -> 82
L83: =ROW() -> 83
B84: Motor Vs • Motor Vs Weekends | E84: =CONCATENATE("(This section occupies the next ",L234 - L109+1, " rows.)") -> (This section occupies the next 126 rows.) | L84: =ROW() -> 84
L85: =ROW() -> 85
B86: There may be no more vital input parameter to the BTA than the number of car (and truck) trips into the Manhattan Central Business District (CBD) on weekdays. It is this figure (along with the toll charge itself) that will largely determine toll revenues from cordon pricing. (Note that the BTA counts medallion taxi crossings into the CBD separate from autos, since taxi entries may be subject to a different pricing form than the "straight" cordon charge.) | L86: =ROW() -> 86
L87: =ROW() -> 87
L88: =ROW() -> 88
L89: =ROW() -> 89
L90: =ROW() -> 90
B91: =CONCATENATE("In recent decades, a mantra that '800,000-850,000 cars enter the Manhattan CBD on weekdays' has entered the vocabulary of New Yorkers. The figure of ",INT(H117/1000), ",",H117-1000*INT(H117/1000), " appearing in Cell H",L117, " falls short of that iconic number by several hundred thousand. Here are three reasons why:") -> In recent decades, a mantra that '800,000-850,000 cars enter the Manhattan CBD on weekdays' has entered the vocabulary of New Yorkers. The figure of 580,500 appearing in Cell H117 falls short of that iconic number by several hundred thousand. Here are three reasons why: | L91: =ROW() -> 91
L92: =ROW() -> 92
L93: =ROW() -> 93
B94: =CONCATENATE("1. Many cordon-crossing trips -- an estimated ",INT('Motor Vs'!I67/1000), ",",ROUND('Motor Vs'!I67,0)-1000*INT('Motor Vs'!I67/1000), " on weekdays -- are the return legs of through-trips. While those trips are toll-eligible, the BTA treats them differently from ordinary cordon-crossing trips, due to different cost characteristics. Thus, the figure in Cell H",L117, " isn't directly comparable to the nominal 800-850 thousand vehicles entering the CBD.") -> 1. Many cordon-crossing trips -- an estimated 80,400 on weekdays -- are the return legs of through-trips. While those trips are toll-eligible, the BTA treats them differently from ordinary cordon-crossing trips, due to different cost characteristics. Thus, the figure in Cell H117 isn't directly comparable to the nominal 800-850 thousand vehicles entering the CBD. | L94: =ROW() -> 94
L95: =ROW() -> 95
L96: =ROW() -> 96
B97: =CONCATENATE("2. An estimated ",INT(H113/1000), ",000 trips are by medallion taxicabs. These too are treated separately from 'ordinary' vehicle crossings into the CBD.") -> 2. An estimated 32,000 trips are by medallion taxicabs. These too are treated separately from 'ordinary' vehicle crossings into the CBD. | L97: =ROW() -> 97
L98: =ROW() -> 98
B99: =CONCATENATE("3. Vehicle entries to the Manhattan CBD have fallen in recent years. The BTA is baselined to 2015 traffic data; vehicle volumes in 2011 appear to have been roughly ",ROUND(2.5*INT(4*(E105-H105)/10000),0), ",000 less than in 2006, based on an analogous dataset of crossings into Manhattan maintained by NYCDOT shown in the box below.") -> 3. Vehicle entries to the Manhattan CBD have fallen in recent years. The BTA is baselined to 2015 traffic data; vehicle volumes in 2011 appear to have been roughly 55,000 less than in 2006, based on an analogous dataset of crossings into Manhattan maintained by NYCDOT shown in the box below. | L99: =ROW() -> 99
L100: =ROW() -> 100
L101: =ROW() -> 101
E102: 2006 | F102: 2009 | G102: 2012 | H102: 2015 | I102: 2015 vs. 2006 | L102: =ROW() -> 102
B103: NYCDOT, "Manhattan River Crossings," 24-h volumes | D103: Inbound | E103: 955662 | F103: 923683 | G103: 908994 | H103: ='Weekday Hours'!C59 -> 903987 | L103: =ROW() -> 103
D104: Outbound | E104: 951456 | F104: 904382 | G104: 897655 | H104: ='Weekday Hours'!K59 -> 891803 | L104: =ROW() -> 104
D105: Avg, rounded | E105: =ROUND(AVERAGE(E103:E104),-2) -> 953600 | F105: =ROUND(AVERAGE(F103:F104),-2) -> 914000 | G105: =ROUND(AVERAGE(G103:G104),-2) -> 903300 | H105: =ROUND(AVERAGE(H103:H104),-2) -> 897900 | I105: =H105/E105-1 -> -0.0584102349 | L105: =ROW() -> 105
B106: =CONCATENATE("Taken together, the factors in Rows ",L94, "-",L101, " explain the lion's share of the discrepancy between the popular figure of 800,000-850,000 cars entering the Manhattan CBD on weekdays, and the BTA figure of ",INT(H117/1000), ",",H117-1000*INT(H117/1000), " appearing in Cell H",L117, ".") -> Taken together, the factors in Rows 94-101 explain the lion's share of the discrepancy between the popular figure of 800,000-850,000 cars entering the Manhattan CBD on weekdays, and the BTA figure of 580,500 appearing in Cell H117. | L106: =ROW() -> 106
L107: =ROW() -> 107
L108: =ROW() -> 108
B109: Daily vehicle trips into the Manhattan CBD (baseline, 2015) | H109: Weekdays | I109: Weekends | L109: =ROW() -> 109
B110: Auto trips for work that don't go through cordon | H110: =ROUND('Motor Vs'!I85,-2) -> 225700 | I110: =ROUND('Motor Vs Weekends'!I85,-2) -> 79800 | J110: =CONCATENATE("Note: These figures treat 'through-round-trips' -- trips that cross the CBD in connecting a non-CBD origin and destination, and then do the same on the return journey -- as one CBD trip, even though they will pay two tolls. See 'Motor Vehicles' tab, Rows ",'Motor Vs'!O35, "-",'Motor Vs'!O85, ".") -> Note: These figures treat 'through-round-trips' -- trips that cross the CBD in connecting a non-CBD origin and destination, and then do the same on the return journey -- as one CBD trip, even though they will pay two tolls. See 'Motor Vehicles' tab, Rows 35-85. | L110: =ROW() -> 110
B111: Same as above, not for work | D111: Figures reflect 2015 travel levels and are drawn primarily from NYMTC's "Hub-Bound Travel Report, 2015," with key data recorded in Hub-Bound worksheet. Some data are from H.I.S. and Taxi worksheets, and all were checked against Bruce Schaller's 2006 report for Transportation Alternatives, "Necessity or Choice? Why People Drive in Manhattan." | H111: =ROUND('Motor Vs'!J85,-2) -> 158700 | I111: =ROUND('Motor Vs Weekends'!J85,-2) -> 239300 | L111: =ROW() -> 111
B112: Thru trips by all vehicles | H112: =ROUND('Motor Vs'!K85,-2) -> 100500 | I112: =ROUND('Motor Vs Weekends'!K85,-2) -> 102000 | L112: =ROW() -> 112
B113: Taxicabs | H113: =ROUND('Motor Vs'!L85,-2) -> 32900 | I113: =ROUND('Motor Vs Weekends'!L85,-2) -> 30300 | L113: =ROW() -> 113
B114: Trucks | H114: =ROUND('Motor Vs'!M85,-2) -> 40700 | I114: =ROUND('Motor Vs Weekends'!M85,-2) -> 16200 | L114: =ROW() -> 114
B115: Buses | H115: =ROUND('Motor Vs'!N85,-2) -> 54900 | I115: =ROUND('Motor Vs Weekends'!N85,-1) -> 53800 | L115: =ROW() -> 115
B116: Total | D116: =CONCATENATE("Figures here are rounded from figures in both worksheets' Row ",'Motor Vs'!O85, ".") -> Figures here are rounded from figures in both worksheets' Row 85. | H116: =ROUND('Motor Vs'!H85,-2) -> 613400 | I116: =ROUND('Motor Vs Weekends'!H85,-2) -> 521400 | L116: =ROW() -> 116
B117: Total, less Taxicabs | H117: =H116-H113 -> 580500 | I117: =I116-I113 -> 491100 | L117: =ROW() -> 117
L118: =ROW() -> 118
B119: Percent of (non-taxi) auto trips to CBD on weekdays that are work trips: | I119: ='Motor Vs'!I53 -> 0.5870820187 | L119: =ROW() -> 119
B120: =CONCATENATE("Taken from 'Motor Vs' worksheet, Row ",'Motor Vs'!O53, ", but derived in H.I.S. worksheet, Row ",H.I.S.!Z128, ".") -> Taken from 'Motor Vs' worksheet, Row 53, but derived in H.I.S. worksheet, Row 128. | L120: =ROW() -> 120
B121: Percent of (non-taxi) auto trips to CBD on weekends that are work trips: | I121: ='Motor Vs Weekends'!I53 -> 0.25 | L121: =ROW() -> 121
B122: =CONCATENATE("Komanoff assumption entered in Row ",'Motor Vs Weekends'!O53, " of 'Motor Vs Weekends' tab.") -> Komanoff assumption entered in Row 53 of 'Motor Vs Weekends' tab. | L122: =ROW() -> 122
B123: Percent of car or truck thru-trips that return thru cordon (as opposed to bypassing CBD on return leg): | I123: ='Motor Vs'!I57 -> 0.8 | L123: =ROW() -> 123
B124: =CONCATENATE("Komanoff assumption entered in Row ",'Motor Vs'!O57, ", intended to capture 'toll-shopping' as well as presumed greater flexibility and range of through-trips.") -> Komanoff assumption entered in Row 57, intended to capture 'toll-shopping' as well as presumed greater flexibility and range of through-trips. | L124: =ROW() -> 124
B125: Ratio of trip mileage, CBD-through-trips to trips whose destination is CBD | I125: ='Motor Vs'!K95 -> 1.5 | L125: =ROW() -> 125
B126: =CONCATENATE("Komanoff assumption entered in Row ",'Motor Vs'!O95, ". See other columns, same row, for factors for trucks and buses.") -> Komanoff assumption entered in Row 95. See other columns, same row, for factors for trucks and buses. | L126: =ROW() -> 126
L127: =ROW() -> 127
B128: One-Way Trip Distances for trips into cordon (miles) | G128: Total Distance | H128: Non-CBD Part | I128: CBD Portion | L128: =ROW() -> 128
B129: Auto trips for work that don't go thru cordon | E129: =CONCATENATE("See 'Motor Vs' sheet, Rows ",'Motor Vs'!O93, "-", 'Motor Vs'!O101, ". Non-CBD Portions are derived in 'Distances' worksheet, by weighting auto-commuters to CBD (est'd in 2006 by B. Schaller) and driving distances from nearly 100 geographic entities.") -> See 'Motor Vs' sheet, Rows 93-101. Non-CBD Portions are derived in 'Distances' worksheet, by weighting auto-commuters to CBD (est'd in 2006 by B. Schaller) and driving distances from nearly 100 geographic entities. | G129: ='Motor Vs'!I101 -> 18.10690938 | H129: ='Motor Vs'!I93 -> 16.85690938 | I129: ='Motor Vs'!I99 -> 1.25 | L129: =ROW() -> 129
B130: Same as above, not for work | G130: ='Motor Vs'!J101 -> 18.10690938 | H130: ='Motor Vs'!J93 -> 16.85690938 | I130: ='Motor Vs'!J99 -> 1.25 | L130: =ROW() -> 130
B131: Thru trips by all vehicles | G131: ='Motor Vs'!K101 -> 26.88536406 | H131: ='Motor Vs'!K93 -> 25.28536406 | I131: ='Motor Vs'!K99 -> 1.6 | L131: =ROW() -> 131
B132: Taxicabs | G132: ='Motor Vs'!L101 -> 7.5 | H132: ='Motor Vs'!L93 -> 6 | I132: ='Motor Vs'!L99 -> 1.5 | L132: =ROW() -> 132
B133: Trucks | G133: ='Motor Vs'!M101 -> 18.54822094 | H133: ='Motor Vs'!M93 -> 15.54822094 | I133: ='Motor Vs'!M99 -> 3 | L133: =ROW() -> 133
B134: Buses | G134: ='Motor Vs'!N101 -> 7.5 | H134: ='Motor Vs'!N93 -> 6 | I134: ='Motor Vs'!N99 -> 1.5 | L134: =ROW() -> 134
B135: =CONCATENATE("CBD Portions for weekends are slightly higher than for wkdays for auto work + non-work trips. See factors in 'Motor Vs Weekends' tab, Row ",'Motor Vs Weekends'!O97, ".") -> CBD Portions for weekends are slightly higher than for wkdays for auto work + non-work trips. See factors in 'Motor Vs Weekends' tab, Row 97. | L135: =ROW() -> 135
L136: =ROW() -> 136
B137: Per-hour motor vehicle entries to Manhattan CBD (baseline = 2010) | L137: =ROW() -> 137
D138: Weekdays | L138: =ROW() -> 138
C139: Graveyard, 11 pm - 5 am | D139: ='Motor Vs'!G142 -> 9664.691671 | E139: =CONCATENATE("Figures here are derived through elaborate algorithms in 'Weekday Hours' and 'Weekend Hours' worksheets, with final calculations appearing in Row ",'Motor Vs'!O142, " of 'Motor Vs'. Sums, multiplied by hours, equal totals in Row ",L116, ".") -> Figures here are derived through elaborate algorithms in 'Weekday Hours' and 'Weekend Hours' worksheets, with final calculations appearing in Row 142 of 'Motor Vs'. Sums, multiplied by hours, equal totals in Row 116. | I139: Weekends | L139: =ROW() -> 139
C140: Morning pre-peak, 5 am - 6 am | D140: ='Motor Vs'!H142 -> 22558.10256 | H140: Graveyard, Midnight - 10 am | I140: ='Motor Vs Weekends'!G142 -> 12748.99027 | L140: =ROW() -> 140
C141: Morning peak, 6 am - 9 am | D141: ='Motor Vs'!I142 -> 38807.19332 | H141: Early Shoulder, 10 am - Noon | I141: ='Motor Vs Weekends'!H142 -> 23592.28267 | L141: =ROW() -> 141
C142: Morning post-peak, 9 am - 10 am | D142: ='Motor Vs'!J142 -> 35208.90707 | H142: Shoulder 1, Noon - 5 pm | I142: ='Motor Vs Weekends'!I142 -> 29726.03539 | L142: =ROW() -> 142
C143: Midday peak, 10 am - 2 pm | D143: ='Motor Vs'!K142 -> 29231.18974 | H143: Peak, 5 pm - 8 pm | I143: ='Motor Vs Weekends'!J142 -> 31629.52909 | L143: =ROW() -> 143
C144: P.M. peak, 2 pm - 8 pm | D144: ='Motor Vs'!L142 -> 32023.10013 | H144: Shoulder 2, 8 pm - 10 pm | I144: ='Motor Vs Weekends'!K142 -> 28816.27397 | L144: =ROW() -> 144
C145: P.M. post-peak, 8 pm - 11 pm | D145: ='Motor Vs'!M142 -> 24053.30021 | H145: Late Shoulder 2, 10 pm - Midnight | I145: ='Motor Vs Weekends'!L142 -> 22787.1099 | L145: =ROW() -> 145
L146: =ROW() -> 146
B147: Traffic-weighted avg speed for motor vehicles within Manhattan CBD, 6 am - 6 pm weekdays, mph | I147: ='Motor Vs'!K204 -> 7.099691545 | L147: =ROW() -> 147
B148: =CONCATENATE("Equals figure in 'Motor Vs' tab, Row ",'Motor Vs'!O204, ". See discussion in that worksheet, Rows ",'Motor Vs'!O194, " through ",'Motor Vs'!O207, ", which draws on 2009-10 NYCDOT data.") -> Equals figure in 'Motor Vs' tab, Row 204. See discussion in that worksheet, Rows 194 through 207, which draws on 2009-10 NYCDOT data. | L148: =ROW() -> 148
B149: Traffic-wghtd avg speed for motor veh's on approaches to Manhattan CBD, 6 am - 6 pm wkdays, mph | I149: ='Motor Vs'!K220 -> 18.22007975 | L149: =ROW() -> 149
B150: =CONCATENATE("Equals figure in 'Motor Vs' tab, Row ",'Motor Vs'!O220, ". See discussion in that worksheet, Rows ",'Motor Vs'!O212, " through ",'Motor Vs'!O222, ", which draws on data in 2007 PlaNYC report.") -> Equals figure in 'Motor Vs' tab, Row 220. See discussion in that worksheet, Rows 212 through 222, which draws on data in 2007 PlaNYC report. | L150: =ROW() -> 150
L151: =ROW() -> 151
B152: Average motor-vehicle speeds (baseline, 2009-10 for CBD, 2007 for Approaches) | L152: =ROW() -> 152
B153: Weekdays | F153: Weekends | L153: =ROW() -> 153
D154: CBD | E154: Approaches | L154: =ROW() -> 154
C155: Graveyard, 11 pm - 5 am | D155: ='Motor Vs'!G201 -> 20.27188291 | E155: ='Motor Vs'!G217 -> 55 | H155: CBD | I155: Approaches | L155: =ROW() -> 155
C156: Morning pre-peak, 5 am - 6 am | D156: ='Motor Vs'!H201 -> 18.98033818 | E156: ='Motor Vs'!H217 -> 40.16183622 | G156: Graveyard, Midnight - 10 am | H156: ='Motor Vs Weekends'!G201 -> 17.55072338 | I156: ='Motor Vs Weekends'!G217 -> 54.83656164 | L156: =ROW() -> 156
C157: Morning peak, 6 am - 9 am | D157: ='Motor Vs'!I201 -> 7.234526134 | E157: ='Motor Vs'!I217 -> 17.40263133 | G157: Early Shoulder, 10 am - Noon | H157: ='Motor Vs Weekends'!H201 -> 11.19827291 | I157: ='Motor Vs Weekends'!H217 -> 29.62978712 | L157: =ROW() -> 157
C158: Morning post-peak, 9 am - 10 am | D158: ='Motor Vs'!J201 -> 7.223529837 | E158: ='Motor Vs'!J217 -> 20.22048355 | G158: Shoulder 1, Noon - 5 pm | H158: ='Motor Vs Weekends'!I201 -> 7.937133815 | I158: ='Motor Vs Weekends'!I217 -> 22.32553393 | L158: =ROW() -> 158
C159: Midday peak, 10 am - 2 pm | D159: ='Motor Vs'!K201 -> 9.225369101 | E159: ='Motor Vs'!K217 -> 23.17704134 | G159: Peak, 5 pm - 8 pm | H159: ='Motor Vs Weekends'!J201 -> 6.742491475 | I159: ='Motor Vs Weekends'!J217 -> 20.40488128 | L159: =ROW() -> 159
C160: P.M. peak, 2 pm - 8 pm | D160: ='Motor Vs'!L201 -> 5.902516335 | E160: ='Motor Vs'!L217 -> 15.56224154 | G160: Shoulder 2, 8 pm - 10 pm | H160: ='Motor Vs Weekends'!K201 -> 8.605613754 | I160: ='Motor Vs Weekends'!K217 -> 25.93615334 | L160: =ROW() -> 160
C161: P.M. post-peak, 8 pm - 11 pm | D161: ='Motor Vs'!M201 -> 8.540127884 | E161: ='Motor Vs'!M217 -> 26.53713271 | G161: Late Shoulder 2, 10 pm - Midnight | H161: ='Motor Vs Weekends'!L201 -> 10.76475852 | I161: ='Motor Vs Weekends'!L217 -> 32.98781455 | L161: =ROW() -> 161
B162: =CONCATENATE("Weekday speeds in Rows ",L155, " through ",L161, " are calculated in 'Motor Vs' and 'Motor Vs Weekends' tabs so that (i) traffic-weighted average speeds equal averages in Rows ",L147, " and ",L149, ", and (ii) each period’s speed and traffic volume satisfy equations developed in 'Speed-Vol., Cordon and 'Speed-Vol., non-Cordon' tabs. Same applies to calculations of weekend speeds. Averages are harmonic, due to speed's inverse relationship to time.") -> Weekday speeds in Rows 155 through 161 are calculated in 'Motor Vs' and 'Motor Vs Weekends' tabs so that (i) traffic-weighted average speeds equal averages in Rows 147 and 149, and (ii) each period’s speed and traffic volume satisfy equations developed in 'Speed-Vol., Cordon and 'Speed-Vol., non-Cordon' tabs. Same applies to calculations of weekend speeds. Averages are harmonic, due to speed's inverse relationship to time. | L162: =ROW() -> 162
L163: =ROW() -> 163
L164: =ROW() -> 164
L165: =ROW() -> 165
L166: =ROW() -> 166
B167: Baseline costs for CBD-bound trips (round-trips, 2010-12) | L167: =ROW() -> 167
B168: Note: These costs, comprising fuel (gasoline) and parking, are the baseline relative to which proposed tolls will raise the total price of a CBD trip. The resulting percentage increases in the trip price will be "operated on" by the assumed price-elasticities to yield contractions (decreases) in the number of trips. The BTA specifies a set of 42 such costs -- one for each of 6 trip types in each of 7 trip periods -- for weekdays, and another 36 (6 x 6) for weekends. Below, we show the component costs for one trip type, work trips, for each of the 7 weekday periods. | L168: =ROW() -> 168
L169: =ROW() -> 169
L170: =ROW() -> 170
L171: =ROW() -> 171
L172: =ROW() -> 172
B173: Baseline Costs, Work Trips Only (weekdays) | L173: =ROW() -> 173
C174: ='Motor Vs'!P243 -> Graveyard | D174: ='Motor Vs'!Q243 -> A.M. Pre-peak | E174: ='Motor Vs'!R243 -> A.M. Peak | F174: ='Motor Vs'!S243 -> A.M. Post-peak | G174: ='Motor Vs'!T243 -> Midday Peak | H174: ='Motor Vs'!U243 -> P.M. Peak | I174: ='Motor Vs'!V243 -> P.M. Post-peak | L174: =ROW() -> 174
C175: ='Motor Vs'!P244 -> 11 p.m. - 5 a.m. | D175: ='Motor Vs'!Q244 -> 5 a.m. - 6 a.m. | E175: ='Motor Vs'!R244 -> 6 a.m. - 9 a.m. | F175: ='Motor Vs'!S244 -> 9 a.m. - 10 a.m. | G175: ='Motor Vs'!T244 -> 10 a.m. - 2 p.m. | H175: ='Motor Vs'!U244 -> 2 p.m. - 8 p.m. | I175: ='Motor Vs'!V244 -> 8 p.m. - 11 p.m. | L175: =ROW() -> 175
B176: Fuel | C176: ='Motor Vs'!P271 -> 4.964111743 | D176: ='Motor Vs'!Q271 -> 4.98729839 | E176: ='Motor Vs'!R271 -> 7.72454381 | F176: ='Motor Vs'!S271 -> 7.138249769 | G176: ='Motor Vs'!T271 -> 6.560172687 | H176: ='Motor Vs'!U271 -> 8.252310165 | I176: ='Motor Vs'!V271 -> 6.155284935 | L176: =ROW() -> 176
B177: Parking | C177: ='Motor Vs'!P272 -> 1.3575 | D177: ='Motor Vs'!Q272 -> 3.7975 | E177: ='Motor Vs'!R272 -> 19.35 | F177: ='Motor Vs'!S272 -> 19.36 | G177: ='Motor Vs'!T272 -> 19.32 | H177: ='Motor Vs'!U272 -> 10.9675 | I177: ='Motor Vs'!V272 -> 5.8225 | L177: =ROW() -> 177
B178: Existing Tolls | C178: ='Motor Vs'!P273 -> 2.780226714 | D178: ='Motor Vs'!Q273 -> 2.780226714 | E178: ='Motor Vs'!R273 -> 3.030737708 | F178: ='Motor Vs'!S273 -> 2.780226714 | G178: ='Motor Vs'!T273 -> 2.780226714 | H178: ='Motor Vs'!U273 -> 2.905482211 | I178: ='Motor Vs'!V273 -> 2.780226714 | L178: =ROW() -> 178
B179: Other* | C179: ='Motor Vs'!P274 -> 1.44855275 | D179: ='Motor Vs'!Q274 -> 2.8971055 | E179: ='Motor Vs'!R274 -> 2.8971055 | F179: ='Motor Vs'!S274 -> 2.8971055 | G179: ='Motor Vs'!T274 -> 2.8971055 | H179: ='Motor Vs'!U274 -> 2.8971055 | I179: ='Motor Vs'!V274 -> 2.8971055 | L179: =ROW() -> 179
B180: Total | C180: ='Motor Vs'!P270 -> 10.55039121 | D180: ='Motor Vs'!Q270 -> 14.4621306 | E180: ='Motor Vs'!R270 -> 33.00238702 | F180: ='Motor Vs'!S270 -> 32.17558198 | G180: ='Motor Vs'!T270 -> 31.5575049 | H180: ='Motor Vs'!U270 -> 25.02239788 | I180: ='Motor Vs'!V270 -> 17.65511715 | L180: =ROW() -> 180
B181: *Perceived cost of possible traffic or parking tickets, incremental maintenance, crash costs, etc. | L181: =ROW() -> 181
B182: =CONCATENATE("Each figure in matrix is product of calculations on subsidiary assumptions which may be traced via Rows ",'Motor Vs'!O236, " through ",'Motor Vs'!O274, " of 'Motor Vs' tab. Fuel costs vary by time of day due to differences in travel speeds which affect fuel economy. Slight variation in existing tolls reflects PANYNJ time-of-day tolls. Most critical item, parking, has its own eponymous worksheet tab.") -> Each figure in matrix is product of calculations on subsidiary assumptions which may be traced via Rows 236 through 274 of 'Motor Vs' tab. Fuel costs vary by time of day due to differences in travel speeds which affect fuel economy. Slight variation in existing tolls reflects PANYNJ time-of-day tolls. Most critical item, parking, has its own eponymous worksheet tab. | L182: =ROW() -> 182
L183: =ROW() -> 183
L184: =ROW() -> 184
L185: =ROW() -> 185
B186: Means-Tested Tolling's Impact (Reduxn) on Avg Cordon Toll (if applicable) | I186: ='Motor Vs'!B312 -> 0 | L186: =ROW() -> 186
B187: This figure reflects two assumptions: (i) that 12% of CBD-bound auto trips will qualify for means-tested discount from cordon toll, and (ii) that the discount will be set at 50%. First assumption reflects detailed geographic analysis by urban planner Josef Szende under supervision of C. Komanoff, predicated on discount being extended only to households with income no greater than $45,000 a year and located more than 1/4 mile from rail or express bus stop to CBD. Second assumption is by Komanoff. | L187: =ROW() -> 187
L188: =ROW() -> 188
L189: =ROW() -> 189
L190: =ROW() -> 190
L191: =ROW() -> 191
B192: Share of cordon-crossing trips assumed to be exempt from cordon toll | I192: ='Motor Vs'!J371 -> 0.04 | L192: =ROW() -> 192
B193: Komanoff assumption, intended to reflect disability, emergency personnel, and similar categories that might be exempted in enabling legislation. | L193: =ROW() -> 193
L194: =ROW() -> 194
B195: Driving Elasticities | D195: =CONCATENATE("For discussion and derivation, see Elasticities' worksheet, esp'ly Rows ",Elasticities!O62, "-",Elasticities!O102, " & ",Elasticities!O142, "-",Elasticities!O174, ". For cross-elasticities, see Rows ",Elasticities!O103, "-",Elasticities!O138, ". Weekend thru-trip elasticities differ from values here, due to different weights betw work and non-work trips.") -> For discussion and derivation, see Elasticities' worksheet, esp'ly Rows 62-102 & 142-174. For cross-elasticities, see Rows 103-138. Weekend thru-trip elasticities differ from values here, due to different weights betw work and non-work trips. | F195: Price (i.e., w/r/t % increase in trip's total cost) | H195: Time (i.e., w/r/t % increase in trip's total duration) | L195: =ROW() -> 195
L196: =ROW() -> 196
B197: Auto trips for work | G197: =Elasticities!G66 -> -0.4 | I197: =Elasticities!G67 -> -1 | L197: =ROW() -> 197
B198: Auto trips for non-work | G198: =Elasticities!H66 -> -0.6 | I198: =Elasticities!H67 -> -1 | L198: =ROW() -> 198
B199: Thru trips (one figure fits all) | G199: =Elasticities!I66 -> -0.4825835963 | I199: =Elasticities!I67 -> -1 | L199: =ROW() -> 199
B200: Taxi trips (medallion cabs only) | G200: =Elasticities!G68 -> -0.3 | I200: =Elasticities!G69 -> -0.6 | L200: =ROW() -> 200
... 576 more rows

Sheet Traffic-Pricing Plans
B1: Traffic-Pricing Plans | L1: ='Title Page'!G2 -> 2019-09-15
L2: =CONCATENATE("Scenario now being run: ",Results!$K$27, ".") -> Scenario now being run: Fix NYC higher-range plan.
B4: This tab summarizes the Move NY and Fix NYC congestion pricing traffic plans.
B6: Click here for visuals summarizing the Move NY plan(s).
B7: Click here for visuals summarizing the Fix NYC plan(s).
B8: Click here for links to articles by Komanoff and others in Streetsblog making the case for congestion pricing for NYC.
B10: =CONCATENATE("At this writing, on ",TEXT(L1, "mm-dd-yyyy"),", two plans -- two *sets* of plans, actually -- dominate public discussion of congestion pricing for NYC.") -> At this writing, on 09-15-2019, two plans -- two *sets* of plans, actually -- dominate public discussion of congestion pricing for NYC.
B12: 1. Move NY
B13: One set of plans, called Move NY, was crafted by renowned traffic engineer (and former NYC Traffic Commissioner) Sam Schwartz. Two variations on that plan are "packaged" in the BTA: a plan with flat tolls (a single cordon toll, 24-7-365), and a variable-toll plan with premium tolls during peak hours and lower tolls in off-peak, designed to be revenue-equivalent to the flat-toll plan.
B17: 2. Fix NYC
B18: The other set, Fix NYC, was propounded by the Fix NYC task force assembled by NY Governor Andrew Cuomo in late 2017. The task force report, published in Jan. 2017 (and available via this link: http://www.hntb.com/HNTB/media/HNTBMediaLibrary/Home/Fix-NYC-Panel-Report.pdf), actually consists of 126 toll and surcharge combinations (since there are 3 cordon-toll options and 42 for-hire vehicle -- taxis and Ubers -- surcharge options).
B22: From those 126 possible Fix NYC combinations, I selected three that I deemed representative of the range of Fix NYC options: I call them the Fix NYC lower-range plan, the Fix NYC higher-range plan, and the Fix NYC turbo-charged. The three are packaged in the BTA, alongside the two Move NY variations noted directly above.
B25: Key similarities between Move NY and Fix NYC
B26: ▪ Both (sets of) plans create a digital cordon encompassing Manhattan Island south of 60th Street, which drivers of cars and trucks pay to enter.
B27: ▪ Both plans exempt for-hire vehicles (taxis, Ubers, etc.) from the cordon fee but charge FHV's for travel within the "Manhattan taxi zone," which ranges at least to 60th Street and perhaps as far north as 110th St (West side) and 96th St (East side).
B29: ▪ Both sets of plans have higher cordon tolls and FHV surcharges during peak hours (the exception being the Move NY flat toll plan).
B30: ▪ Both sets of plans have a "top" cordon toll of $11.52 round-trip, matching the toll on the MTA's four "major" bridges.
B31: ▪ Both sets of plans charge vehicles for only one round-trip per day into the cordon zone.
B32: ▪ Both sets of plans propose allocating the lion's share of net revenues to capital improvements that enhance subway service.
B33: ▪ Both sets of plans pledge to provide transportation enhancements in the city's "transit deserts" -- sections of the boroughs poorly served by subways.
B35: Key differences between Move NY and Fix NYC
B36: ▪ Fix NYC lets drivers using the East River bridges circumvent the cordon toll by exiting directly onto the northbound FDR and remaining until at least East 63rd Street.
B37: ▪ Cordon tolls are higher and generate more revenue in the Move NY plans, though there is wide variation among the cordon toll levels in the Fix NYC plans.
B38: ▪ FHV surcharges in the Move NY plans are based on miles and minutes driven within the Manhattan taxi zone, whereas in Fix NYC the FHV surcharges are levied entirely within the "drop" and thus do not vary with time and distance traveled.
B40: ▪ Move NY reduces tolls on the seven MTA bridges by $2.50 in each direction (for the major bridges) and $1.00 (minor bridges). The funds to reduce these charges are provided, in effect, by the higher cordon tolls under the Move NY plans.
B42: ▪ Move NY charges an effective half-round-trip cordon toll ($5.76) in each direction, whereas Fix NYC charges the full round-trip rate ($11.52) inbound only. | N42: Map is copied from Fix NYC report. In Move NY plan, surcharges on for-hire vehicle trips extend to 110th Street on the west side.
B43: ▪ Move NY charges trucks on a sliding scale based on the number of axles, whereas Fix NYC charges all trucks at a uniform rate (which is 2.2x the auto rate).
B44: ▪ Move NY allocates one-fourth of net toll and surcharge revenues to (largely unspecified) enhancements of the city's roads and bridges.
B46: Comparison of benefits and impacts of the Move NY and Fix NYC plans
B47: The table below was generated for my Streetsblog post of Jan. 23, 2018: The Fix NYC Congestion Pricing Plan Looks Solid — If Cuomo Aims High (https://nyc.streetsblog.org/2018/01/23/the-fix-nyc-congestion-pricing-plan-looks-solid-if-cuomo-aims-high/). The Move NY flat-toll plan was excluded, for concision. | N47: Shown below: cover of Fix NYC report. Here's link to download:
N48: http://www.hntb.com/HNTB/media/HNTBMediaLibrary/Home/Fix-NYC-Panel-Report.pdf
C51: Three Fix NYC Scenarios compared with each other and with Move NY Plan (with variable tolls)
B53: Scenario (not included here: #1, Baseline. #5, Move NY Plan w/ flat $11.52 toll) | H53: 2 | I53: 3 | J53: 4 | K53: 6
H54: Fix NYC lower-range plan | I54: Fix NYC higher-range plan | J54: Fix NYC turbo-charged | K54: Move NY Plan w Variable Tolls
B55: All figures in table except Row A count benefits from investing most of the immediately available net revenues in improved subway service.
B58: A. Immediate ∆ in CBD vehicle speeds weekdays 6am-6pm | H58: 0.08052 | I58: 0.11253 | J58: 0.1046 | K58: 0.1366
B59: B. Same as above, some years out (w/ transit investments) | H59: 0.118 | I59: 0.198 | J59: 0.184 | K59: 0.2030507173
B60: C. Annual net revenue available to improve travel | H60: 1000000000 | I60: 1740000000 | J60: 1700000000 | K60: 1530000000
B61: D. Manhattan residents' share of new tolls + surcharges | H61: 0.187 | I61: 0.322 | J61: 0.234 | K61: 0.2851724968
B62: E. Predicted annual net benefit | H62: 1790000000 | I62: 3170000000 | J62: 3080000000 | K62: 2720000000
B63: F. Daily traveler time savings (hours) | H63: 276000 | I63: 514000 | J63: 490000 | K63: 493000
B65: Scenario numbers at top of columns correspond to scenarios programmed into the BTA. Not included here are Baseline scenario (#1) and Move NY Plan with Flat Toll (#5).
B66: Figs are hard-wired rather than linked because they can't be active in model at same time. Current results may be slightly different, due to ongoing evolution of the BTA.
B67: Figs for Rows B-F were modeled assuming respective annual investments (in millions) of $550, $1,300, $1,200, and $1,000.
B70: "Time Coverage" under the various Fix NYC Plans | H70: 2 | I70: 3 | J70: 4 | K70: 6
B71: =CONCATENATE("Percentages of hours are calculated by multiplying number of hours of coverage (14 weekday hours for both lower-range and higher-range Fix NYC plans, plus 10 weekend/holiday hours for higher-range plan) by respective numbers " &"of weekdays and weekend/holidays in year, from Constants tab. Percentages of trips factors those numbers by # of inbound trips in each time period, from Row ",'Motor Vs'!O139, " of 'Motor Vs' and 'Motor Vs Weekend' tabs.") -> Percentages of hours are calculated by multiplying number of hours of coverage (14 weekday hours for both lower-range and higher-range Fix NYC plans, plus 10 weekend/holiday hours for higher-range plan) by respective numbers of weekdays and weekend/holidays in year, from Constants tab. Percentages of trips factors those numbers by # of inbound trips in each time period, from Row 139 of 'Motor Vs' and 'Motor Vs Weekend' tabs. | H71: Fix NYC lower-range plan | I71: Fix NYC higher-range plan | J71: Fix NYC turbo-charged | K71: Move NY Plan w Variable Tolls
B76: Percent of hours in which at least some cordon toll is charged | H76: =14*weekday_per_yr/8760 -> 0.399543379 | I76: =(14*weekday_per_yr+10*wkend_per_yr)/8760 -> 0.5308219178 | J76: 1 | K76: 1
B78: Percent of inbound trips for which at least some cordon toll is charged | H78: =SUM('Motor Vs'!I139:L139)*weekday_per_yr/('Motor Vs'!N139*weekday_per_yr+'Motor Vs Weekends'!N139*wkend_per_yr) -> 0.5399321259 | I78: =(SUM('Motor Vs'!I139:L139)*weekday_per_yr+SUM('Motor Vs Weekends'!I139:K139)*wkend_per_yr)/('Motor Vs'!N139*weekday_per_yr+'Motor Vs Weekends'!N139*wkend_per_yr) -> 0.7022885018 | J78: 1 | K78: 1
B81: Comparison of Move NY and Fix NYC plans with and without cordon tolling
B82: The table below was generated for my Streetsblog post of Feb. 22, 2018: The Cost of Cold Feet: No Cordon Toll Means Kissing Most Congestion Pricing Benefits Goodbye (https://nyc.streetsblog.org/2018/02/22/the-cost-of-cold-feet-no-cordon-toll-means-kissing-most-congestion-pricing-benefits-goodbye/).
D86: Removing cordon tolls cuts the benefits from Fix NYC by 60 percent or more
H88: =CONCATENATE("Scenario 2 benefits average ",ROUND(100*M104,0), "% less than Scenario 1.") -> Scenario 2 benefits average 72% less than Scenario 1. | J88: =CONCATENATE("Scenario 4 benefits average ",ROUND(100*N104,0), "% less than Scenario 3.") -> Scenario 4 benefits average 60% less than Scenario 3.
H91: 1 | I91: 2 | J91: 3 | K91: 4
H92: Fix NYC lower-range plan, complete | I92: Same as #1 but with no cordon tolls | J92: Fix NYC higher-range plan, complete | K92: Same as #3 but with no cordon tolls
B93: All figures in table except Row A count the benefits from investing most of the immediately available net revenues in improved subway service. | M93: %'s below denote the extent to which Col 2 & 4 entries are less than Col 1 & 2 | P93: #'s below denote the extent to which Col 1 & 3 entries are multiples of Col 2 & 4
B96: A. Immediate gain in CBD vehicle speeds wkdays 6am-6pm | H96: 0.08028188827 | I96: 0.01706066655 | J96: 0.1276941699 | K96: 0.04572215841 | M96: =1-I96/H96 -> 0.7874904674 | N96: =1-K96/J96 -> 0.6419401259 | P96: =H96/I96 -> 4.70567126 | Q96: =J96/K96 -> 2.792829
B97: B. Same as above, some years out (w/ transit investments) | H97: 0.1176730797 | I97: 0.03388222243 | J97: 0.197554495 | K97: 0.08628165691 | M97: =1-I97/H97 -> 0.7120647941 | N97: =1-K97/J97 -> 0.5632513607 | P97: =H97/I97 -> 3.473003577 | Q97: =J97/K97 -> 2.289646515
B98: C. Annual net revenue available to improve travel | H98: 1050000000 | I98: 260000000 | J98: 1780000000 | K98: 720000000 | M98: =1-I98/H98 -> 0.7523809524 | N98: =1-K98/J98 -> 0.595505618
B99: D. Predicted annual net benefit | H99: 1940000000 | I99: 620000000 | J99: 3290000000 | K99: 1370000000 | M99: =1-I99/H99 -> 0.6804123711 | N99: =1-K99/J99 -> 0.5835866261
B100: E. Daily traveler time savings (hours) | H100: 277000 | I100: 91000 | J100: 514000 | K100: 210000 | M100: =1-I100/H100 -> 0.6714801444 | N100: =1-K100/J100 -> 0.5914396887
B102: All figures except Row A take credit for the fruits of transit investment from the congestion revenues.
B103: Figs for Row B were modeled assuming respective annual investments in transit (in millions) of $550, $250, $1,300 and $600. | M103: Column averages
M104: =AVERAGE(M96:M100) -> 0.7207657459 | N104: =AVERAGE(N96:N100) -> 0.5951446839
B105: Figs are hard-wired rather than linked because they can't be active in model at same time. Current results may be slightly different, due to ongoing evolution of the BTA.
B108: Move NY plan, illustrated
B110: Map depicts toll reductions on MTA bridges along with new toll to drive into and out of Manhattan CBD. | J110: Side-by-side comparison contrasts Move NY plan (w/ flat toll) with Bloomberg congestion pricing proposal from 2007-08.
B142: Fix NYC Plans, illustrated
B144: Cordon toll options from the Fix NYC report | J144: For-hire vehicle (taxis, Ubers, etc.) surcharge options from the Fix NYC report
J186: Fig 9 from Fix NYC report embodies 42 options for charging for-hire vehicles (yellow taxis, Ubers, Lyfts, etc.), based on the 7x6 matrix. We selected three, which we assigned to the cordon-toll options shown in Fig. 12, at left. For the lower-price plan, we assumed the $2.00 fee charged in the hours shown in the cell annotated with the blue-ink circle. For the turbo-charged, we assumed the range of prices and hours corresponding to the cell annotated with the green-ink circle. For the higher-price plan, we assumed the $5.00 and $3.00 charges charged in the hours shown in the cell annotated with the red-ink circle. Note that we made our own calculations of revenues for each plan, using the Taxis and UberLyft tabs in the BTA. Go to the Policy Levers tab to see the inputs we used to simulate the Fix NYC modeling for-hire vehicles in the respective scenarios
B189: Fig 12 from Fix NYC report illustrates three cordon-toll options. They correspond to the lower-price, higher-price and turbo-chargeds outlined above and packaged into the BTA.
B194: Streetsblog posts about the Move NY Plan | F194: Posts are by C. Komanoff except where noted | AK194: N | AL194: ='Policy Levers'!E40 -> 0 | AM194: ='Policy Levers'!F40 -> 0 | AN194: ='Policy Levers'!G40 -> 12.24 | AO194: ='Policy Levers'!H40 -> 6.12 | AP194: ='Policy Levers'!I40 -> 6.12 | AQ194: ='Policy Levers'!J40 -> 6
B196: May 29, 2018: | C196: Eight Reasons Why Congestion Pricing Goes Great With the Fast Forward Plan to Fix NYC Transit
B197: May 1, 2018: | C197: A Better Taxi Surcharge: More Congestion Reduction, Less Pain for Cab Drivers
B198: April 10, 2018: | C198: Setting Up a Cordon Toll Would Pay for Itself in a Few Months
B199: April 3, 2018: | C199: Albany Didn’t Even Get the Taxi Fees Right
B200: March 21, 2018: | C200: Manhattan Congestion is Too Intense to Fix With an Uber Charge Alone
B201: March 7, 2018: | C201: An Hourly Fee on Cabs and Ubers Is Less Radical Than It Appears
B202: Feb 22, 2018: | C202: The Cost of Cold Feet: No Cordon Toll Means Kissing Most Congestion Pricing Benefits Goodbye
B203: Feb 14, 2018: | C203: Broad Business-Labor Coalition Ready to Back Congestion Pricing If Cuomo Releases a Strong Plan | I203: by David Meyer
B204: Feb 8, 2018: | C204: Jo Anne Simon on Congestion Pricing: We Can Do This | I204: by David Meyer | J204: (a legislator talks about congestion pricing with cogency and empathy)
B205: Feb 6, 2018: | C205: De Blasio Sounds Ready to Negotiate on Congestion Pricing | I205: by David Meyer
B206: Jan 30, 2018: | C206: Corey Johnson Calls on Albany to Pass Congestion Pricing “This Year, This Session” | I206: by David Meyer | J206: (the new speaker of the NYC Council lays it on the line for congestion pricing)
B207: Jan 23, 2018: | C207: The Fix NYC Congestion Pricing Plan Looks Solid — If Cuomo Aims High
B208: Jan 12, 2018: | C208: Congestion Pricing Will Help Stop Climate Change — But Differently Than You Think
B209: Jan 2, 2018: | C209: Why Congestion Pricing Won’t Overwhelm the Subways
B210: Dec 5, 2017: | C210: London Traffic Would Be At Least 20 Percent Slower Without Congestion Pricing
B211: Aug 14, 2017: | C211: De Blasio Is Wrong — There’s a Congestion Pricing Plan That Affects All Boroughs Fairly
B212: July 6, 2017: | C212: Top Legal Expert Concludes NYC Has Power to Toll Its Own Roads and Bridges
B213: June 7, 2017: | C213: No, Traffic Congestion Is Not “Self-Correcting”
B214: June 5, 2017: | C214: Move NY Campaign Says Toll Reform Can Bypass Albany — Is City Hall Listening?
B215: Aug 10, 2016: | C215: Tolling Opens Up Possibilities for Better Brooklyn Bridge Walking and Biking
B216: June 1, 2016: | C216: New York Can’t Afford to Put Off the Move NY Plan Any Longer
B217: March 9, 2016: | C217: Street Safety Benefits of Congestion Charging Are Bigger Than We Thought
B218: Jan 4, 2016: | C218: Newsday Endorses Move NY for 2016, While the Times Misses Its Chance
B219: Aug 12, 2015: | C219: The Link Between Bridge Toll Dysfunction and Unsafe Streets
B220: May 12, 2015: | C220: How Much Will Fares Rise Without Closing the MTA Capital Plan Gap? Try 25% | AK220: D | AL220: ='Policy Levers'!E39 -> 0 | AM220: ='Policy Levers'!F39 -> 0 | AN220: ='Policy Levers'!G39 -> 12.24 | AO220: ='Policy Levers'!H39 -> 6.12 | AP220: ='Policy Levers'!I39 -> 6.12 | AQ220: ='Policy Levers'!J39 -> 6
B221: April 22, 2015: | C221: 13 State and City Elected Officials Sign On to Move NY Toll Reform | I221: by Stephen Miller
B222: Feb 17, 2015: | C222: The Complete Guide to the Final Move NY Plan | I222: by Stephen Miller
B223: Feb 17, 2015: | C223: The Politics of NYC Toll Reform -- What's Different This Time | I223: by Stephen Miller
B224: Oct 7, 2014: | C224: Fair Tolls: Fixing NYC’s Gridlock and Transit Shortfall in One Fell Swoop | J224: (Toll fairness is key to solving mass transit's chronic funding woes and cutting down on lethal traffic congestion) | AK224: S | AL224: ='Policy Levers'!E38 -> 0 | AM224: ='Policy Levers'!F38 -> 0 | AN224: ='Policy Levers'!G38 -> 0 | AO224: ='Policy Levers'!H38 -> 2.75 | AP224: ='Policy Levers'!I38 -> 6.12 | AQ224: ='Policy Levers'!J38 -> 2.75
B225: May 16, 2012: | C225: Traffic-Pricing is Evolving … Can Its Opponents? | J225: (Appeal to a former legislator to rethink his opposition to traffic pricing and support the Move NY - Sam Schwartz toll-rebalancing plan)
B226: May 3, 2012: | C226: Why Gridlock Sam’s Traffic Plan Could Go the Distance | J226: (Reviews extensive, favorable press coverage of Sam Schwartz's traffic-toll plan in early 2012. Has links to profiles of Sam and his plan by Bill Keller (NYT former top editor), Crain's NY, WSJ, NY Observer, and other major outlets)
B227: March 26, 2012: | C227: The Greater Good of Bike Tolls | J227: (A look at a controversial (if peripheral) element of the Move NY - Sam Schwartz Plan, and a "greater good" appeal to cycle advocates and others)
B228: Other plans advanced by C. Komanoff during 2008-2010 included the Kheel-Komanoff Plan, the Kheel Plan, Kheel Plan II, and an MTA Rescue Plan. These plans are no longer fully supported by the BTA, because of changes in key baseline conditions (traffic levels, transit fares, toll levels). They did, however, generate media interest and were also described in articles and reports by C. Komanoff. Here's a fairly complete list:
B231: Links pertaining to the Kheel-Komanoff Plan (all are from 2009)
B232: for a March fact sheet on the plan: <http://nnyn.org/kheelplan/Free%20Transit%20Plan%20Fact%20Sheet%20_%20March%202009.pdf>
B233: for a March 13 Newsday article: <http://www.newsday.com/news/opinion/oped/ny-opkhe136067115mar13,0,4278279.story>
B234: for a March 10 Streetsblog article: <http://www.streetsblog.org/2009/03/10/beyond-ravitch-still-time-for-a-bolder-plan/>
B235: for a Feb. Gotham Gazette article: <http://www.gothamgazette.com/article/fea/20090209/202/2821>
B236: for a Jan. Grist article: <http://gristmill.grist.org/story/2009/1/6/134612/6720>
B237: for the NNYN Web page summarizing the plan: <http://www.nnyn.org/kheelplan/kheel_komanoff_plan.html>
B238: Links pertaining to the original Kheel Plan
B239: for the "Bolder Plan" report: <http://www.nnyn.org/kheelplan/Full%20Kheel%20Report%20for%20web%20_%2023%20Jan%202008.pdf>
B240: for a Feb. 2008 article in Grist about the plan: <http://gristmill.grist.org/story/2008/2/11/64835/1733>
B241: for the BTA 1.0 spreadsheet: <http://www.nnyn.org/BTA%20_%2024%20Jan%202008.xls>
B242: for the NNYN Web page with these and other links: <http://www.nnyn.org/kheelplan/kheel_plan1.html>
B243: Links pertaining to the Kheel II Plan
B244: for the NNYN press release announcing the Kheel II Plan: <http://www.nnyn.org/kheelplan/kheel_plan_release.html>
B245: for the NNYN Web page summarizing the plan: <http://www.nnyn.org/kheelplan/kheel_plan2.html>
B246: Links pertaining to the MTA Rescue Plan (both are from 2009)
B247: a May 7 Streetsblog article: <http://www.streetsblog.org/2009/05/07/albanys-choice-or-ours/>
B248: an April 16, 2009 Streetsblog article: <http://www.streetsblog.org/2009/04/16/needed-a-better-way-to-sweeten-the-ravitch-plan/>

Sheet BdB's Plan
B1: Bill de Blasio's Plan | J1: ='Title Page'!G2 -> 2019-09-15 | O1: =ROW() -> 1
J2: =CONCATENATE("Scenario now being run: ",Results!$K$27, ".") -> Scenario now being run: Fix NYC higher-range plan. | O2: =ROW() -> 2
O3: =ROW() -> 3
B4: This worksheet quantifies potential time savings from Mayor de Blasio's new traffic-control measures announced in Oct. 2017. | O4: =ROW() -> 4
O5: =ROW() -> 5
B6: It centers on one of five baskets of measures in the mayor's announcement: the "clear streets" initiative targeting 11 crosstown streets. | O6: =ROW() -> 6
O7: =ROW() -> 7
B8: Quantification of that measure or measures follows directly below. The text of the mayor's announcement is appended at the very bottom. | O8: =ROW() -> 8
O9: =ROW() -> 9
B10: 1. Clear Lanes: Keeping Traffic Moving in Manhattan’s CBDs | O10: =ROW() -> 10
